Department Family,Entity,Date,Expense Type,Expense Area,Supplier,Transaction Number,Amount,Item Description
BEIS,UKRI - AHRC,01/05/2018,Computing Consumables,IS,Premier Farnell UK Ltd T/A Farnell Onecall,98175502,47.88,Computing Consumables
BEIS,UKRI - AHRC,01/05/2018,Computing Consumables,IS,Academia Ltd,98175729,90.94,Computing Consumables
BEIS,UKRI - AHRC,01/05/2018,Conferences & Seminars,"Languages,Literature & International Engagement",University College London,98101573,750,Conferences & Seminars
BEIS,UKRI - AHRC,01/05/2018,Hospitality,"Languages,Literature & International Engagement",University College London,98101573,434.26,Hospitality
BEIS,UKRI - AHRC,01/05/2018,Provisions ( Food etc),HR,Banner Group Ltd,98171198,3.74,Provisions ( Food etc)
BEIS,UKRI - AHRC,01/05/2018,Provisions ( Food etc),HR,Banner Group Ltd,98171198,41.18,Provisions ( Food etc)
BEIS,UKRI - AHRC,01/05/2018,Provisions ( Food etc),HR,Arco Limited,98174996,186.84,Provisions ( Food etc)
BEIS,UKRI - AHRC,01/05/2018,Purchase of non capital equipment,HR,Banner Group Ltd,98171198,23.3,Purchase of non capital equipment
BEIS,UKRI - AHRC,01/05/2018,T&S Overseas - Accommodation,"Languages,Literature & International Engagement",Redfern Travel Ltd,98175764,0.5,T&S Overseas - Accommodation
BEIS,UKRI - AHRC,01/05/2018,T&S Overseas - Accommodation,"Languages,Literature & International Engagement",Redfern Travel Ltd,98175764,1.44,T&S Overseas - Accommodation
BEIS,UKRI - AHRC,01/05/2018,T&S Overseas - Accommodation,"Languages,Literature & International Engagement",Redfern Travel Ltd,98175764,0.5,T&S Overseas - Accommodation
BEIS,UKRI - AHRC,01/05/2018,T&S Overseas - Accommodation,"Languages,Literature & International Engagement",Redfern Travel Ltd,98175764,0.49,T&S Overseas - Accommodation
BEIS,UKRI - AHRC,01/05/2018,T&S Overseas - Accommodation,SMT,Redfern Travel Ltd,98175764,122.1,T&S Overseas - Accommodation
BEIS,UKRI - AHRC,01/05/2018,T&S Overseas - Accommodation,SMT,Redfern Travel Ltd,98175764,118.46,T&S Overseas - Accommodation
BEIS,UKRI - AHRC,01/05/2018,T&S Overseas - Flights,Newton Programme Delivery,Redfern Travel Ltd,98175764,174.61,T&S Overseas - Flights
BEIS,UKRI - AHRC,01/05/2018,T&S Overseas - Flights,SMT,Redfern Travel Ltd,98175764,175,T&S Overseas - Flights
BEIS,UKRI - AHRC,01/05/2018,T&S Overseas - Other Charges,"Languages,Literature & International Engagement",Redfern Travel Ltd,98175764,193,T&S Overseas - Other Charges
BEIS,UKRI - AHRC,01/05/2018,T&S UK - Accommodation,Communications,Redfern Travel Ltd,98175764,0.5,T&S UK - Accommodation
BEIS,UKRI - AHRC,01/05/2018,T&S UK - Accommodation,Communications,Redfern Travel Ltd,98175764,88.2,T&S UK - Accommodation
BEIS,UKRI - AHRC,01/05/2018,T&S UK - Accommodation,Communications,Redfern Travel Ltd,98175764,0.5,T&S UK - Accommodation
BEIS,UKRI - AHRC,01/05/2018,T&S UK - Accommodation,Communications,Redfern Travel Ltd,98175764,99,T&S UK - Accommodation
BEIS,UKRI - AHRC,01/05/2018,T&S UK - Accommodation,Communications,Redfern Travel Ltd,98175764,0.2,T&S UK - Accommodation
BEIS,UKRI - AHRC,01/05/2018,T&S UK - Accommodation,Creative Arts & Digital Humanities,Redfern Travel Ltd,98175764,1,T&S UK - Accommodation
BEIS,UKRI - AHRC,01/05/2018,T&S UK - Accommodation,Creative Arts & Digital Humanities,Redfern Travel Ltd,98175764,88.2,T&S UK - Accommodation
BEIS,UKRI - AHRC,01/05/2018,T&S UK - Accommodation,Creative Arts & Digital Humanities,Redfern Travel Ltd,98175764,0.5,T&S UK - Accommodation
BEIS,UKRI - AHRC,01/05/2018,T&S UK - Accommodation,Creative Arts & Digital Humanities,Redfern Travel Ltd,98175764,88.2,T&S UK - Accommodation
BEIS,UKRI - AHRC,01/05/2018,T&S UK - Accommodation,Creative Arts & Digital Humanities,Redfern Travel Ltd,98175764,0.5,T&S UK - Accommodation
BEIS,UKRI - AHRC,01/05/2018,T&S UK - Accommodation,Creative Arts & Digital Humanities,Redfern Travel Ltd,98175764,62,T&S UK - Accommodation
BEIS,UKRI - AHRC,01/05/2018,T&S UK - Accommodation,Creative Arts & Digital Humanities,Redfern Travel Ltd,98175764,0.4,T&S UK - Accommodation
BEIS,UKRI - AHRC,01/05/2018,T&S UK - Accommodation,GCRF - Programme Delivery,Redfern Travel Ltd,98175764,0.5,T&S UK - Accommodation
BEIS,UKRI - AHRC,01/05/2018,T&S UK - Accommodation,GCRF - Programme Delivery,Redfern Travel Ltd,98175764,84.99,T&S UK - Accommodation
BEIS,UKRI - AHRC,01/05/2018,T&S UK - Accommodation,GCRF - Programme Delivery,Redfern Travel Ltd,98175764,0.5,T&S UK - Accommodation
BEIS,UKRI - AHRC,01/05/2018,T&S UK - Accommodation,GCRF - Programme Delivery,Redfern Travel Ltd,98175764,137,T&S UK - Accommodation
BEIS,UKRI - AHRC,01/05/2018,T&S UK - Accommodation,GCRF - Programme Delivery,Redfern Travel Ltd,98175764,0.2,T&S UK - Accommodation
BEIS,UKRI - AHRC,01/05/2018,T&S UK - Accommodation,"Histories,Culture & Heritage",Redfern Travel Ltd,98175764,0.5,T&S UK - Accommodation
BEIS,UKRI - AHRC,01/05/2018,T&S UK - Accommodation,"Histories,Culture & Heritage",Redfern Travel Ltd,98175764,1.44,T&S UK - Accommodation
BEIS,UKRI - AHRC,01/05/2018,T&S UK - Accommodation,"Histories,Culture & Heritage",Redfern Travel Ltd,98175764,4293,T&S UK - Accommodation
BEIS,UKRI - AHRC,01/05/2018,T&S UK - Accommodation,"Histories,Culture & Heritage",Redfern Travel Ltd,98175764,0.5,T&S UK - Accommodation
BEIS,UKRI - AHRC,01/05/2018,T&S UK - Accommodation,"Histories,Culture & Heritage",Redfern Travel Ltd,98175764,130,T&S UK - Accommodation
BEIS,UKRI - AHRC,01/05/2018,T&S UK - Accommodation,"Histories,Culture & Heritage",Redfern Travel Ltd,98175764,0.5,T&S UK - Accommodation
BEIS,UKRI - AHRC,01/05/2018,T&S UK - Accommodation,"Histories,Culture & Heritage",Redfern Travel Ltd,98175764,65,T&S UK - Accommodation
BEIS,UKRI - AHRC,01/05/2018,T&S UK - Accommodation,"Histories,Culture & Heritage",Redfern Travel Ltd,98175764,0.5,T&S UK - Accommodation
BEIS,UKRI - AHRC,01/05/2018,T&S UK - Accommodation,"Histories,Culture & Heritage",Redfern Travel Ltd,98175764,65,T&S UK - Accommodation
BEIS,UKRI - AHRC,01/05/2018,T&S UK - Accommodation,"Histories,Culture & Heritage",Redfern Travel Ltd,98175764,0.5,T&S UK - Accommodation
BEIS,UKRI - AHRC,01/05/2018,T&S UK - Accommodation,"Histories,Culture & Heritage",Redfern Travel Ltd,98175764,65,T&S UK - Accommodation
BEIS,UKRI - AHRC,01/05/2018,T&S UK - Accommodation,"Histories,Culture & Heritage",Redfern Travel Ltd,98175764,0.5,T&S UK - Accommodation
BEIS,UKRI - AHRC,01/05/2018,T&S UK - Accommodation,"Histories,Culture & Heritage",Redfern Travel Ltd,98175764,65,T&S UK - Accommodation
BEIS,UKRI - AHRC,01/05/2018,T&S UK - Accommodation,"Histories,Culture & Heritage",Redfern Travel Ltd,98175764,0.5,T&S UK - Accommodation
BEIS,UKRI - AHRC,01/05/2018,T&S UK - Accommodation,"Histories,Culture & Heritage",Redfern Travel Ltd,98175764,65,T&S UK - Accommodation
BEIS,UKRI - AHRC,01/05/2018,T&S UK - Accommodation,"Histories,Culture & Heritage",Redfern Travel Ltd,98175764,0.5,T&S UK - Accommodation
BEIS,UKRI - AHRC,01/05/2018,T&S UK - Accommodation,"Histories,Culture & Heritage",Redfern Travel Ltd,98175764,137,T&S UK - Accommodation
BEIS,UKRI - AHRC,01/05/2018,T&S UK - Accommodation,"Histories,Culture & Heritage",Redfern Travel Ltd,98175764,0.5,T&S UK - Accommodation
BEIS,UKRI - AHRC,01/05/2018,T&S UK - Accommodation,"Histories,Culture & Heritage",Redfern Travel Ltd,98175764,137,T&S UK - Accommodation
BEIS,UKRI - AHRC,01/05/2018,T&S UK - Accommodation,"Histories,Culture & Heritage",Redfern Travel Ltd,98175764,0.5,T&S UK - Accommodation
BEIS,UKRI - AHRC,01/05/2018,T&S UK - Accommodation,"Histories,Culture & Heritage",Redfern Travel Ltd,98175764,137,T&S UK - Accommodation
BEIS,UKRI - AHRC,01/05/2018,T&S UK - Accommodation,"Histories,Culture & Heritage",Redfern Travel Ltd,98175764,0.5,T&S UK - Accommodation
BEIS,UKRI - AHRC,01/05/2018,T&S UK - Accommodation,"Histories,Culture & Heritage",Redfern Travel Ltd,98175764,137,T&S UK - Accommodation
BEIS,UKRI - AHRC,01/05/2018,T&S UK - Accommodation,"Histories,Culture & Heritage",Redfern Travel Ltd,98175764,0.5,T&S UK - Accommodation
BEIS,UKRI - AHRC,01/05/2018,T&S UK - Accommodation,"Histories,Culture & Heritage",Redfern Travel Ltd,98175764,137,T&S UK - Accommodation
BEIS,UKRI - AHRC,01/05/2018,T&S UK - Accommodation,"Histories,Culture & Heritage",Redfern Travel Ltd,98175764,0.5,T&S UK - Accommodation
BEIS,UKRI - AHRC,01/05/2018,T&S UK - Accommodation,"Histories,Culture & Heritage",Redfern Travel Ltd,98175764,137,T&S UK - Accommodation
BEIS,UKRI - AHRC,01/05/2018,T&S UK - Accommodation,"Histories,Culture & Heritage",Redfern Travel Ltd,98175764,0.5,T&S UK - Accommodation
BEIS,UKRI - AHRC,01/05/2018,T&S UK - Accommodation,"Histories,Culture & Heritage",Redfern Travel Ltd,98175764,0.5,T&S UK - Accommodation
BEIS,UKRI - AHRC,01/05/2018,T&S UK - Accommodation,"Histories,Culture & Heritage",Redfern Travel Ltd,98175764,1.79,T&S UK - Accommodation
BEIS,UKRI - AHRC,01/05/2018,T&S UK - Accommodation,"Languages,Literature & International Engagement",Redfern Travel Ltd,98175764,0.5,T&S UK - Accommodation
BEIS,UKRI - AHRC,01/05/2018,T&S UK - Accommodation,"Languages,Literature & International Engagement",Redfern Travel Ltd,98175764,0.1,T&S UK - Accommodation
BEIS,UKRI - AHRC,01/05/2018,T&S UK - Accommodation,PSU Project Office,Redfern Travel Ltd,98175764,0.5,T&S UK - Accommodation
BEIS,UKRI - AHRC,01/05/2018,T&S UK - Accommodation,PSU Project Office,Redfern Travel Ltd,98175764,87,T&S UK - Accommodation
BEIS,UKRI - AHRC,01/05/2018,T&S UK - Accommodation,PSU Project Office,Redfern Travel Ltd,98175764,0.1,T&S UK - Accommodation
BEIS,UKRI - AHRC,01/05/2018,T&S UK - Accommodation,SMT,Redfern Travel Ltd,98175764,0.5,T&S UK - Accommodation
BEIS,UKRI - AHRC,01/05/2018,T&S UK - Accommodation,SMT,Redfern Travel Ltd,98175764,703.2,T&S UK - Accommodation
BEIS,UKRI - AHRC,01/05/2018,T&S UK - Accommodation,SMT,Redfern Travel Ltd,98175764,0.5,T&S UK - Accommodation
BEIS,UKRI - AHRC,01/05/2018,T&S UK - Accommodation,SMT,Redfern Travel Ltd,98175764,149,T&S UK - Accommodation
BEIS,UKRI - AHRC,01/05/2018,T&S UK - Accommodation,SMT,Redfern Travel Ltd,98175764,0.5,T&S UK - Accommodation
BEIS,UKRI - AHRC,01/05/2018,T&S UK - Accommodation,SMT,Redfern Travel Ltd,98175764,204.71,T&S UK - Accommodation
BEIS,UKRI - AHRC,01/05/2018,T&S UK - Accommodation,SMT,Redfern Travel Ltd,98175764,0.5,T&S UK - Accommodation
BEIS,UKRI - AHRC,01/05/2018,T&S UK - Accommodation,SMT,Redfern Travel Ltd,98175764,146,T&S UK - Accommodation
BEIS,UKRI - AHRC,01/05/2018,T&S UK - Accommodation,SMT,Redfern Travel Ltd,98175764,0.5,T&S UK - Accommodation
BEIS,UKRI - AHRC,01/05/2018,T&S UK - Accommodation,SMT,Redfern Travel Ltd,98175764,103.5,T&S UK - Accommodation
BEIS,UKRI - AHRC,01/05/2018,T&S UK - Accommodation,SMT,Redfern Travel Ltd,98175764,0.5,T&S UK - Accommodation
BEIS,UKRI - AHRC,01/05/2018,T&S UK - Accommodation,SMT,Redfern Travel Ltd,98175764,112.5,T&S UK - Accommodation
BEIS,UKRI - AHRC,01/05/2018,T&S UK - Accommodation,SMT,Redfern Travel Ltd,98175764,0.5,T&S UK - Accommodation
BEIS,UKRI - AHRC,01/05/2018,T&S UK - Accommodation,SMT,Redfern Travel Ltd,98175764,130,T&S UK - Accommodation
BEIS,UKRI - AHRC,01/05/2018,T&S UK - Accommodation,SMT,Redfern Travel Ltd,98175764,1,T&S UK - Accommodation
BEIS,UKRI - AHRC,01/05/2018,T&S UK - Accommodation,SMT,Redfern Travel Ltd,98175764,189.06,T&S UK - Accommodation
BEIS,UKRI - AHRC,01/05/2018,T&S UK - Accommodation,SMT,Redfern Travel Ltd,98175764,0.5,T&S UK - Accommodation
BEIS,UKRI - AHRC,01/05/2018,T&S UK - Accommodation,SMT,Redfern Travel Ltd,98175764,65,T&S UK - Accommodation
BEIS,UKRI - AHRC,01/05/2018,T&S UK - Accommodation,SMT,Redfern Travel Ltd,98175764,0.5,T&S UK - Accommodation
BEIS,UKRI - AHRC,01/05/2018,T&S UK - Accommodation,SMT,Redfern Travel Ltd,98175764,130,T&S UK - Accommodation
BEIS,UKRI - AHRC,01/05/2018,T&S UK - Accommodation,SMT,Redfern Travel Ltd,98175764,104.35,T&S UK - Accommodation
BEIS,UKRI - AHRC,01/05/2018,T&S UK - Accommodation,SMT,Redfern Travel Ltd,98175764,1.1,T&S UK - Accommodation
BEIS,UKRI - AHRC,01/05/2018,T&S UK - Flights,Newton Programme Delivery,Redfern Travel Ltd,98175764,214.61,T&S UK - Flights
BEIS,UKRI - AHRC,01/05/2018,T&S UK - Other Charges,HR,Redfern Travel Ltd,98175764,23,T&S UK - Other Charges
BEIS,UKRI - AHRC,01/05/2018,T&S UK - Other Charges,PSU Project Office,Redfern Travel Ltd,98175764,84,T&S UK - Other Charges
BEIS,UKRI - AHRC,01/05/2018,T&S UK - Other Charges,PSU Project Office,Redfern Travel Ltd,98175764,98.3,T&S UK - Other Charges
BEIS,UKRI - AHRC,01/05/2018,T&S UK - Public Transport,Business Process & Analysis,Redfern Travel Ltd,98175764,139.6,T&S UK - Public Transport
BEIS,UKRI - AHRC,01/05/2018,T&S UK - Public Transport,Communications,Redfern Travel Ltd,98175764,5,T&S UK - Public Transport
BEIS,UKRI - AHRC,01/05/2018,T&S UK - Public Transport,Communications,Redfern Travel Ltd,98175764,-79.4,T&S UK - Public Transport
BEIS,UKRI - AHRC,01/05/2018,T&S UK - Public Transport,Communications,Redfern Travel Ltd,98175764,100.7,T&S UK - Public Transport
BEIS,UKRI - AHRC,01/05/2018,T&S UK - Public Transport,Communications,Redfern Travel Ltd,98175764,138.7,T&S UK - Public Transport
BEIS,UKRI - AHRC,01/05/2018,T&S UK - Public Transport,Communications,Redfern Travel Ltd,98175764,1,T&S UK - Public Transport
BEIS,UKRI - AHRC,01/05/2018,T&S UK - Public Transport,Communications,Redfern Travel Ltd,98175764,140.5,T&S UK - Public Transport
BEIS,UKRI - AHRC,01/05/2018,T&S UK - Public Transport,Creative Arts & Digital Humanities,Redfern Travel Ltd,98175764,64.2,T&S UK - Public Transport
BEIS,UKRI - AHRC,01/05/2018,T&S UK - Public Transport,Creative Arts & Digital Humanities,Redfern Travel Ltd,98175764,128.15,T&S UK - Public Transport
BEIS,UKRI - AHRC,01/05/2018,T&S UK - Public Transport,Creative Arts & Digital Humanities,Redfern Travel Ltd,98175764,190,T&S UK - Public Transport
BEIS,UKRI - AHRC,01/05/2018,T&S UK - Public Transport,Creative Arts & Digital Humanities,Redfern Travel Ltd,98175764,69.2,T&S UK - Public Transport
BEIS,UKRI - AHRC,01/05/2018,T&S UK - Public Transport,Creative Arts & Digital Humanities,Redfern Travel Ltd,98175764,1,T&S UK - Public Transport
BEIS,UKRI - AHRC,01/05/2018,T&S UK - Public Transport,Creative Arts & Digital Humanities,Redfern Travel Ltd,98175764,174,T&S UK - Public Transport
BEIS,UKRI - AHRC,01/05/2018,T&S UK - Public Transport,Creative Arts & Digital Humanities,Redfern Travel Ltd,98175764,84.4,T&S UK - Public Transport
BEIS,UKRI - AHRC,01/05/2018,T&S UK - Public Transport,Finance,Redfern Travel Ltd,98175764,69.2,T&S UK - Public Transport
BEIS,UKRI - AHRC,01/05/2018,T&S UK - Public Transport,Finance,Redfern Travel Ltd,98175764,23,T&S UK - Public Transport
BEIS,UKRI - AHRC,01/05/2018,T&S UK - Public Transport,Finance,Redfern Travel Ltd,98175764,23,T&S UK - Public Transport
BEIS,UKRI - AHRC,01/05/2018,T&S UK - Public Transport,Finance,Redfern Travel Ltd,98175764,23,T&S UK - Public Transport
BEIS,UKRI - AHRC,01/05/2018,T&S UK - Public Transport,Finance,Redfern Travel Ltd,98175764,111,T&S UK - Public Transport
BEIS,UKRI - AHRC,01/05/2018,T&S UK - Public Transport,GCRF - Programme Delivery,Redfern Travel Ltd,98175764,67.8,T&S UK - Public Transport
BEIS,UKRI - AHRC,01/05/2018,T&S UK - Public Transport,GCRF - Programme Delivery,Redfern Travel Ltd,98175764,217.4,T&S UK - Public Transport
BEIS,UKRI - AHRC,01/05/2018,T&S UK - Public Transport,GCRF - Programme Delivery,Redfern Travel Ltd,98175764,102,T&S UK - Public Transport
BEIS,UKRI - AHRC,01/05/2018,T&S UK - Public Transport,GCRF - Programme Delivery,Redfern Travel Ltd,98175764,217.4,T&S UK - Public Transport
BEIS,UKRI - AHRC,01/05/2018,T&S UK - Public Transport,HR,Redfern Travel Ltd,98175764,23,T&S UK - Public Transport
BEIS,UKRI - AHRC,01/05/2018,T&S UK - Public Transport,HR,Redfern Travel Ltd,98175764,23,T&S UK - Public Transport
BEIS,UKRI - AHRC,01/05/2018,T&S UK - Public Transport,HR,Redfern Travel Ltd,98175764,23,T&S UK - Public Transport
BEIS,UKRI - AHRC,01/05/2018,T&S UK - Public Transport,HR,Redfern Travel Ltd,98175764,23,T&S UK - Public Transport
BEIS,UKRI - AHRC,01/05/2018,T&S UK - Public Transport,HR,Redfern Travel Ltd,98175764,23,T&S UK - Public Transport
BEIS,UKRI - AHRC,01/05/2018,T&S UK - Public Transport,HR,Redfern Travel Ltd,98175764,23,T&S UK - Public Transport
BEIS,UKRI - AHRC,01/05/2018,T&S UK - Public Transport,HR,Redfern Travel Ltd,98175764,23,T&S UK - Public Transport
BEIS,UKRI - AHRC,01/05/2018,T&S UK - Public Transport,HR,Redfern Travel Ltd,98175764,23,T&S UK - Public Transport
BEIS,UKRI - AHRC,01/05/2018,T&S UK - Public Transport,HR,Redfern Travel Ltd,98175764,23,T&S UK - Public Transport
BEIS,UKRI - AHRC,01/05/2018,T&S UK - Public Transport,HR,Redfern Travel Ltd,98175764,23,T&S UK - Public Transport
BEIS,UKRI - AHRC,01/05/2018,T&S UK - Public Transport,HR,Redfern Travel Ltd,98175764,23,T&S UK - Public Transport
BEIS,UKRI - AHRC,01/05/2018,T&S UK - Public Transport,HR,Redfern Travel Ltd,98175764,23,T&S UK - Public Transport
BEIS,UKRI - AHRC,01/05/2018,T&S UK - Public Transport,HR,Redfern Travel Ltd,98175764,23,T&S UK - Public Transport
BEIS,UKRI - AHRC,01/05/2018,T&S UK - Public Transport,HR,Redfern Travel Ltd,98175764,23,T&S UK - Public Transport
BEIS,UKRI - AHRC,01/05/2018,T&S UK - Public Transport,HR,Redfern Travel Ltd,98175764,128.7,T&S UK - Public Transport
BEIS,UKRI - AHRC,01/05/2018,T&S UK - Public Transport,HR,Redfern Travel Ltd,98175764,23,T&S UK - Public Transport
BEIS,UKRI - AHRC,01/05/2018,T&S UK - Public Transport,HR,Redfern Travel Ltd,98175764,23,T&S UK - Public Transport
BEIS,UKRI - AHRC,01/05/2018,T&S UK - Public Transport,HR,Redfern Travel Ltd,98175764,23,T&S UK - Public Transport
BEIS,UKRI - AHRC,01/05/2018,T&S UK - Public Transport,HR,Redfern Travel Ltd,98175764,23,T&S UK - Public Transport
BEIS,UKRI - AHRC,01/05/2018,T&S UK - Public Transport,HR,Redfern Travel Ltd,98175764,23,T&S UK - Public Transport
BEIS,UKRI - AHRC,01/05/2018,T&S UK - Public Transport,HR,Redfern Travel Ltd,98175764,23,T&S UK - Public Transport
BEIS,UKRI - AHRC,01/05/2018,T&S UK - Public Transport,HR,Redfern Travel Ltd,98175764,23,T&S UK - Public Transport
BEIS,UKRI - AHRC,01/05/2018,T&S UK - Public Transport,HR,Redfern Travel Ltd,98175764,77.3,T&S UK - Public Transport
BEIS,UKRI - AHRC,01/05/2018,T&S UK - Public Transport,HR,Redfern Travel Ltd,98175764,46.8,T&S UK - Public Transport
BEIS,UKRI - AHRC,01/05/2018,T&S UK - Public Transport,HR,Redfern Travel Ltd,98175764,23,T&S UK - Public Transport
BEIS,UKRI - AHRC,01/05/2018,T&S UK - Public Transport,HR,Redfern Travel Ltd,98175764,23,T&S UK - Public Transport
BEIS,UKRI - AHRC,01/05/2018,T&S UK - Public Transport,HR,Redfern Travel Ltd,98175764,23,T&S UK - Public Transport
BEIS,UKRI - AHRC,01/05/2018,T&S UK - Public Transport,HR,Redfern Travel Ltd,98175764,23,T&S UK - Public Transport
BEIS,UKRI - AHRC,01/05/2018,T&S UK - Public Transport,HR,Redfern Travel Ltd,98175764,23,T&S UK - Public Transport
BEIS,UKRI - AHRC,01/05/2018,T&S UK - Public Transport,HR,Redfern Travel Ltd,98175764,23,T&S UK - Public Transport
BEIS,UKRI - AHRC,01/05/2018,T&S UK - Public Transport,HR,Redfern Travel Ltd,98175764,23,T&S UK - Public Transport
BEIS,UKRI - AHRC,01/05/2018,T&S UK - Public Transport,HR,Redfern Travel Ltd,98175764,23,T&S UK - Public Transport
BEIS,UKRI - AHRC,01/05/2018,T&S UK - Public Transport,HR,Redfern Travel Ltd,98175764,23,T&S UK - Public Transport
BEIS,UKRI - AHRC,01/05/2018,T&S UK - Public Transport,HR,Redfern Travel Ltd,98175764,23,T&S UK - Public Transport
BEIS,UKRI - AHRC,01/05/2018,T&S UK - Public Transport,HR,Redfern Travel Ltd,98175764,23,T&S UK - Public Transport
BEIS,UKRI - AHRC,01/05/2018,T&S UK - Public Transport,HR,Redfern Travel Ltd,98175764,23,T&S UK - Public Transport
BEIS,UKRI - AHRC,01/05/2018,T&S UK - Public Transport,HR,Redfern Travel Ltd,98175764,23,T&S UK - Public Transport
BEIS,UKRI - AHRC,01/05/2018,T&S UK - Public Transport,HR,Redfern Travel Ltd,98175764,160,T&S UK - Public Transport
BEIS,UKRI - AHRC,01/05/2018,T&S UK - Public Transport,"Histories,Culture & Heritage",Redfern Travel Ltd,98175764,139.6,T&S UK - Public Transport
BEIS,UKRI - AHRC,01/05/2018,T&S UK - Public Transport,"Histories,Culture & Heritage",Redfern Travel Ltd,98175764,100.7,T&S UK - Public Transport
BEIS,UKRI - AHRC,01/05/2018,T&S UK - Public Transport,"Histories,Culture & Heritage",Redfern Travel Ltd,98175764,139.6,T&S UK - Public Transport
BEIS,UKRI - AHRC,01/05/2018,T&S UK - Public Transport,"Histories,Culture & Heritage",Redfern Travel Ltd,98175764,52.7,T&S UK - Public Transport
BEIS,UKRI - AHRC,01/05/2018,T&S UK - Public Transport,IS,Redfern Travel Ltd,98175764,90,T&S UK - Public Transport
BEIS,UKRI - AHRC,01/05/2018,T&S UK - Public Transport,IS,Redfern Travel Ltd,98175764,100.7,T&S UK - Public Transport
BEIS,UKRI - AHRC,01/05/2018,T&S UK - Public Transport,IS,Redfern Travel Ltd,98175764,146.3,T&S UK - Public Transport
BEIS,UKRI - AHRC,01/05/2018,T&S UK - Public Transport,IS,Redfern Travel Ltd,98175764,146.3,T&S UK - Public Transport
BEIS,UKRI - AHRC,01/05/2018,T&S UK - Public Transport,IS,Redfern Travel Ltd,98175764,146.3,T&S UK - Public Transport
BEIS,UKRI - AHRC,01/05/2018,T&S UK - Public Transport,IS,Redfern Travel Ltd,98175764,146.3,T&S UK - Public Transport
BEIS,UKRI - AHRC,01/05/2018,T&S UK - Public Transport,IS,Redfern Travel Ltd,98175764,146.3,T&S UK - Public Transport
BEIS,UKRI - AHRC,01/05/2018,T&S UK - Public Transport,Industrial Strategy Challenge Fund (ISCF) - Creative Clusters,Redfern Travel Ltd,98175764,31.1,T&S UK - Public Transport
BEIS,UKRI - AHRC,01/05/2018,T&S UK - Public Transport,Industrial Strategy Challenge Fund (ISCF) - Creative Clusters,Redfern Travel Ltd,98175764,11.6,T&S UK - Public Transport
BEIS,UKRI - AHRC,01/05/2018,T&S UK - Public Transport,Industrial Strategy Challenge Fund (ISCF) - Creative Clusters,Redfern Travel Ltd,98175764,48.6,T&S UK - Public Transport
BEIS,UKRI - AHRC,01/05/2018,T&S UK - Public Transport,Industrial Strategy Challenge Fund (ISCF) - Creative Clusters,Redfern Travel Ltd,98175764,27.9,T&S UK - Public Transport
BEIS,UKRI - AHRC,01/05/2018,T&S UK - Public Transport,"Languages,Literature & International Engagement",Redfern Travel Ltd,98175764,-71.9,T&S UK - Public Transport
BEIS,UKRI - AHRC,01/05/2018,T&S UK - Public Transport,"Languages,Literature & International Engagement",Redfern Travel Ltd,98175764,65.5,T&S UK - Public Transport
BEIS,UKRI - AHRC,01/05/2018,T&S UK - Public Transport,"Languages,Literature & International Engagement",Redfern Travel Ltd,98175764,105.8,T&S UK - Public Transport
BEIS,UKRI - AHRC,01/05/2018,T&S UK - Public Transport,"Languages,Literature & International Engagement",Redfern Travel Ltd,98175764,190,T&S UK - Public Transport
BEIS,UKRI - AHRC,01/05/2018,T&S UK - Public Transport,"Languages,Literature & International Engagement",Redfern Travel Ltd,98175764,111,T&S UK - Public Transport
BEIS,UKRI - AHRC,01/05/2018,T&S UK - Public Transport,"Languages,Literature & International Engagement",Redfern Travel Ltd,98175764,139.6,T&S UK - Public Transport
BEIS,UKRI - AHRC,01/05/2018,T&S UK - Public Transport,"Languages,Literature & International Engagement",Redfern Travel Ltd,98175764,111,T&S UK - Public Transport
BEIS,UKRI - AHRC,01/05/2018,T&S UK - Public Transport,"Languages,Literature & International Engagement",Redfern Travel Ltd,98175764,111,T&S UK - Public Transport
BEIS,UKRI - AHRC,01/05/2018,T&S UK - Public Transport,"Languages,Literature & International Engagement",Redfern Travel Ltd,98175764,111,T&S UK - Public Transport
BEIS,UKRI - AHRC,01/05/2018,T&S UK - Public Transport,New Programme Development,Redfern Travel Ltd,98175764,56.65,T&S UK - Public Transport
BEIS,UKRI - AHRC,01/05/2018,T&S UK - Public Transport,Newton Programme Delivery,Redfern Travel Ltd,98175764,170.6,T&S UK - Public Transport
BEIS,UKRI - AHRC,01/05/2018,T&S UK - Public Transport,PSU JRS,Redfern Travel Ltd,98175764,67.8,T&S UK - Public Transport
BEIS,UKRI - AHRC,01/05/2018,T&S UK - Public Transport,PSU JRS,Redfern Travel Ltd,98175764,45.3,T&S UK - Public Transport
BEIS,UKRI - AHRC,01/05/2018,T&S UK - Public Transport,PSU JRS,Redfern Travel Ltd,98175764,45.3,T&S UK - Public Transport
BEIS,UKRI - AHRC,01/05/2018,T&S UK - Public Transport,PSU JRS,Redfern Travel Ltd,98175764,46.3,T&S UK - Public Transport
BEIS,UKRI - AHRC,01/05/2018,T&S UK - Public Transport,PSU JRS,Redfern Travel Ltd,98175764,46.3,T&S UK - Public Transport
BEIS,UKRI - AHRC,01/05/2018,T&S UK - Public Transport,PSU Project Office,Redfern Travel Ltd,98175764,1,T&S UK - Public Transport
BEIS,UKRI - AHRC,01/05/2018,T&S UK - Public Transport,PSU Project Office,Redfern Travel Ltd,98175764,67.8,T&S UK - Public Transport
BEIS,UKRI - AHRC,01/05/2018,T&S UK - Public Transport,PSU Project Office,Redfern Travel Ltd,98175764,77.3,T&S UK - Public Transport
BEIS,UKRI - AHRC,01/05/2018,T&S UK - Public Transport,PSU Project Office,Redfern Travel Ltd,98175764,46.8,T&S UK - Public Transport
BEIS,UKRI - AHRC,01/05/2018,T&S UK - Public Transport,PSU Project Office,Redfern Travel Ltd,98175764,77.3,T&S UK - Public Transport
BEIS,UKRI - AHRC,01/05/2018,T&S UK - Public Transport,PSU Project Office,Redfern Travel Ltd,98175764,46.8,T&S UK - Public Transport
BEIS,UKRI - AHRC,01/05/2018,T&S UK - Public Transport,PSU Project Office,Redfern Travel Ltd,98175764,133.6,T&S UK - Public Transport
BEIS,UKRI - AHRC,01/05/2018,T&S UK - Public Transport,PSU Project Office,Redfern Travel Ltd,98175764,38,T&S UK - Public Transport
BEIS,UKRI - AHRC,01/05/2018,T&S UK - Public Transport,PSU Project Office,Redfern Travel Ltd,98175764,38,T&S UK - Public Transport
BEIS,UKRI - AHRC,01/05/2018,T&S UK - Public Transport,PSU Project Office,Redfern Travel Ltd,98175764,139.6,T&S UK - Public Transport
BEIS,UKRI - AHRC,01/05/2018,T&S UK - Public Transport,PSU Project Office,Redfern Travel Ltd,98175764,105,T&S UK - Public Transport
BEIS,UKRI - AHRC,01/05/2018,T&S UK - Public Transport,SMT,Redfern Travel Ltd,98175764,94.7,T&S UK - Public Transport
BEIS,UKRI - AHRC,01/05/2018,T&S UK - Public Transport,SMT,Redfern Travel Ltd,98175764,153.4,T&S UK - Public Transport
BEIS,UKRI - AHRC,01/05/2018,T&S UK - Public Transport,SMT,Redfern Travel Ltd,98175764,5,T&S UK - Public Transport
BEIS,UKRI - AHRC,01/05/2018,T&S UK - Public Transport,SMT,Redfern Travel Ltd,98175764,-84.7,T&S UK - Public Transport
BEIS,UKRI - AHRC,01/05/2018,T&S UK - Public Transport,SMT,Redfern Travel Ltd,98175764,1,T&S UK - Public Transport
BEIS,UKRI - AHRC,01/05/2018,T&S UK - Public Transport,SMT,Redfern Travel Ltd,98175764,19.9,T&S UK - Public Transport
BEIS,UKRI - AHRC,01/05/2018,T&S UK - Public Transport,SMT,Redfern Travel Ltd,98175764,1,T&S UK - Public Transport
BEIS,UKRI - AHRC,01/05/2018,T&S UK - Public Transport,SMT,Redfern Travel Ltd,98175764,128.8,T&S UK - Public Transport
BEIS,UKRI - AHRC,01/05/2018,T&S UK - Public Transport,SMT,Redfern Travel Ltd,98175764,172,T&S UK - Public Transport
BEIS,UKRI - AHRC,01/05/2018,T&S UK - Public Transport,SMT,Redfern Travel Ltd,98175764,1,T&S UK - Public Transport
BEIS,UKRI - AHRC,01/05/2018,T&S UK - Public Transport,SMT,Redfern Travel Ltd,98175764,74.4,T&S UK - Public Transport
BEIS,UKRI - AHRC,01/05/2018,T&S UK - Public Transport,SMT,Redfern Travel Ltd,98175764,133.6,T&S UK - Public Transport
BEIS,UKRI - AHRC,01/05/2018,T&S UK - Public Transport,SMT,Redfern Travel Ltd,98175764,94.7,T&S UK - Public Transport
BEIS,UKRI - AHRC,01/05/2018,T&S UK - Public Transport,SMT,Redfern Travel Ltd,98175764,27.9,T&S UK - Public Transport
BEIS,UKRI - AHRC,01/05/2018,T&S UK - Public Transport,SMT,Redfern Travel Ltd,98175764,94.7,T&S UK - Public Transport
BEIS,UKRI - AHRC,01/05/2018,T&S UK - Public Transport,SMT,Redfern Travel Ltd,98175764,178,T&S UK - Public Transport
BEIS,UKRI - AHRC,01/05/2018,T&S UK - Public Transport,SMT,Redfern Travel Ltd,98175764,5,T&S UK - Public Transport
BEIS,UKRI - AHRC,01/05/2018,T&S UK - Public Transport,SMT,Redfern Travel Ltd,98175764,-84.7,T&S UK - Public Transport
BEIS,UKRI - AHRC,01/05/2018,T&S UK - Public Transport,SMT,Redfern Travel Ltd,98175764,94.7,T&S UK - Public Transport
BEIS,UKRI - AHRC,01/05/2018,T&S UK - Public Transport,SMT,Redfern Travel Ltd,98175764,189.4,T&S UK - Public Transport
BEIS,UKRI - AHRC,01/05/2018,T&S UK - Public Transport,SMT,Redfern Travel Ltd,98175764,94.7,T&S UK - Public Transport
BEIS,UKRI - AHRC,01/05/2018,T&S UK - Public Transport,SMT,Redfern Travel Ltd,98175764,52,T&S UK - Public Transport
BEIS,UKRI - AHRC,01/05/2018,T&S UK - Public Transport,SMT,Redfern Travel Ltd,98175764,27.9,T&S UK - Public Transport
BEIS,UKRI - AHRC,01/05/2018,T&S UK - Public Transport,SMT,Redfern Travel Ltd,98175764,74.4,T&S UK - Public Transport
BEIS,UKRI - AHRC,01/05/2018,T&S UK - Public Transport,SMT,Redfern Travel Ltd,98175764,94.7,T&S UK - Public Transport
BEIS,UKRI - AHRC,01/05/2018,T&S UK - Public Transport,SMT,Redfern Travel Ltd,98175764,65.1,T&S UK - Public Transport
BEIS,UKRI - AHRC,01/05/2018,T&S UK - Public Transport,SMT,Redfern Travel Ltd,98175764,27.9,T&S UK - Public Transport
BEIS,UKRI - AHRC,01/05/2018,T&S UK - Public Transport,SMT,Redfern Travel Ltd,98175764,65.1,T&S UK - Public Transport
BEIS,UKRI - AHRC,01/05/2018,T&S UK - Public Transport,SMT,Redfern Travel Ltd,98175764,94.7,T&S UK - Public Transport
BEIS,UKRI - AHRC,01/05/2018,T&S UK - Public Transport,SMT,Redfern Travel Ltd,98175764,94.7,T&S UK - Public Transport
BEIS,UKRI - AHRC,01/05/2018,T&S UK - Public Transport,SMT,Redfern Travel Ltd,98175764,117.1,T&S UK - Public Transport
BEIS,UKRI - AHRC,01/05/2018,T&S UK - Public Transport,SMT,Redfern Travel Ltd,98175764,94.7,T&S UK - Public Transport
BEIS,UKRI - AHRC,01/05/2018,T&S UK - Public Transport,SMT,Redfern Travel Ltd,98175764,94.7,T&S UK - Public Transport
BEIS,UKRI - AHRC,01/05/2018,T&S UK - Public Transport,SMT,Redfern Travel Ltd,98175764,105,T&S UK - Public Transport
BEIS,UKRI - AHRC,01/05/2018,T&S UK - Public Transport,SMT,Redfern Travel Ltd,98175764,172,T&S UK - Public Transport
BEIS,UKRI - AHRC,01/05/2018,T&S UK - Public Transport,"Strategic Planning, Evidence & Inpact (SPEI)",Redfern Travel Ltd,98175764,100.7,T&S UK - Public Transport
BEIS,UKRI - AHRC,02/05/2018,Agency Staff,IS,Capita Business Services Ltd,98176451,2550.24,Agency Staff
BEIS,UKRI - AHRC,02/05/2018,Contract Staff,IS,Capita Business Services Ltd,98176453,2559.22,Contract Staff
BEIS,UKRI - AHRC,02/05/2018,Meetings & Catering,Creative Arts & Digital Humanities,Baxter Storey Ltd,98176454,106.92,Meetings & Catering
BEIS,UKRI - AHRC,02/05/2018,Meetings & Catering,SMT,Baxter Storey Ltd,98176454,49.8,Meetings & Catering
BEIS,UKRI - AHRC,03/05/2018,Agency Staff,PSU Project Office,Capita Business Services Ltd,98148123,2520,Agency Staff
BEIS,UKRI - AHRC,03/05/2018,Agency Staff,PSU Project Office,Capita Business Services Ltd,98148123,-60.41,Agency Staff
BEIS,UKRI - AHRC,03/05/2018,Agency Staff,PSU Project Office,Capita Business Services Ltd,98148123,-302.04,Agency Staff
BEIS,UKRI - AHRC,03/05/2018,Agency Staff,PSU Project Office,Capita Business Services Ltd,98162781,840,Agency Staff
BEIS,UKRI - AHRC,03/05/2018,Agency Staff,PSU Project Office,Capita Business Services Ltd,98162781,-20.14,Agency Staff
BEIS,UKRI - AHRC,03/05/2018,Agency Staff,PSU Project Office,Capita Business Services Ltd,98162781,-100.68,Agency Staff
BEIS,UKRI - AHRC,03/05/2018,Agency Staff,HR,Capita Business Services Ltd,98176458,5678.71,Agency Staff
BEIS,UKRI - AHRC,03/05/2018,Cleaning & Sterilisation,Secretariat,Arco Limited,98173129,11.51,Cleaning & Sterilisation
BEIS,UKRI - AHRC,03/05/2018,Contract Staff,PSU Project Office,Hays Specialist Recruitment Ltd,98173300,3027.78,Contract Staff
BEIS,UKRI - AHRC,03/05/2018,Data Storage & Recovery,Corporate Services,Iron Mountain (UK) PLC,98176987,155.14,Data Storage & Recovery
BEIS,UKRI - AHRC,03/05/2018,Internal Audit,Corporate Services,HM Treasury Group,98176949,19791,Internal Audit
BEIS,UKRI - AHRC,03/05/2018,Recruitment Costs,Corporate Services,Agenda Resource Management Ltd,98177879,155.91,Recruitment Costs
BEIS,UKRI - AHRC,04/05/2018,Contract Staff,Finance,Hays Specialist Recruitment Ltd,98166642,1252.99,Contract Staff
BEIS,UKRI - AHRC,04/05/2018,Contract Staff,Finance,Hays Specialist Recruitment Ltd,98169417,1566.24,Contract Staff
BEIS,UKRI - AHRC,04/05/2018,Contract Staff,Finance,Hays Specialist Recruitment Ltd,98169419,1816.5,Contract Staff
BEIS,UKRI - AHRC,04/05/2018,Contract Staff,Finance,Hays Specialist Recruitment Ltd,98171865,1816.5,Contract Staff
BEIS,UKRI - AHRC,04/05/2018,Contract Staff,Finance,Hays Specialist Recruitment Ltd,98175140,1566.24,Contract Staff
BEIS,UKRI - AHRC,04/05/2018,Contract Staff,Finance,Hays Specialist Recruitment Ltd,98177887,1816.5,Contract Staff
BEIS,UKRI - AHRC,04/05/2018,Printing & Stationery,Secretariat,Banner Group Ltd,98171199,16.94,Printing & Stationery
BEIS,UKRI - AHRC,04/05/2018,Printing & Stationery,Secretariat,Banner Group Ltd,98171199,25.2,Printing & Stationery
BEIS,UKRI - AHRC,04/05/2018,Printing & Stationery,Secretariat,Banner Group Ltd,98171199,13.09,Printing & Stationery
BEIS,UKRI - AHRC,04/05/2018,Printing & Stationery,Secretariat,Banner Group Ltd,98171199,51.48,Printing & Stationery
BEIS,UKRI - AHRC,04/05/2018,Printing & Stationery,Secretariat,Banner Group Ltd,98171199,25.21,Printing & Stationery
BEIS,UKRI - AHRC,04/05/2018,Recruitment Costs,Finance,Hays Specialist Recruitment Ltd,98165782,1453.2,Recruitment Costs
BEIS,UKRI - AHRC,04/05/2018,Recruitment Costs,Finance,Hays Specialist Recruitment Ltd,98169413,1816.5,Recruitment Costs
BEIS,UKRI - AHRC,04/05/2018,Recruitment Costs,Finance,Hays Specialist Recruitment Ltd,98171863,1816.5,Recruitment Costs
BEIS,UKRI - AHRC,04/05/2018,Recruitment Costs,Finance,Hays Specialist Recruitment Ltd,98177882,1816.5,Recruitment Costs
BEIS,UKRI - AHRC,04/05/2018,T&S Overseas - Public Transport,International,Unspecified,98178838,5.78,T&S Overseas - Public Transport
BEIS,UKRI - AHRC,04/05/2018,T&S Overseas - Subsistence,International,Unspecified,98178838,15.4,T&S Overseas - Subsistence
BEIS,UKRI - AHRC,04/05/2018,T&S UK - Other Charges,Communications,Unspecified,98178833,20.34,T&S UK - Other Charges
BEIS,UKRI - AHRC,04/05/2018,T&S UK - Other Charges,Communications,Unspecified,98178834,84,T&S UK - Other Charges
BEIS,UKRI - AHRC,04/05/2018,T&S UK - Public Transport,Communications,Unspecified,98178833,18,T&S UK - Public Transport
BEIS,UKRI - AHRC,04/05/2018,T&S UK - Public Transport,International,Unspecified,98178835,10.4,T&S UK - Public Transport
BEIS,UKRI - AHRC,04/05/2018,T&S UK - Public Transport,"Languages,Literature & International Engagement",Unspecified,98178836,11,T&S UK - Public Transport
BEIS,UKRI - AHRC,04/05/2018,T&S UK - Public Transport,"Languages,Literature & International Engagement",Unspecified,98178837,10,T&S UK - Public Transport
BEIS,UKRI - AHRC,04/05/2018,T&S UK - Public Transport,International,Unspecified,98178839,10.85,T&S UK - Public Transport
BEIS,UKRI - AHRC,04/05/2018,T&S UK - Public Transport,International,Unspecified,98178839,15.9,T&S UK - Public Transport
BEIS,UKRI - AHRC,04/05/2018,T&S UK - Subsistence,"Languages,Literature & International Engagement",Unspecified,98178832,2.75,T&S UK - Subsistence
BEIS,UKRI - AHRC,04/05/2018,T&S UK - Subsistence,"Languages,Literature & International Engagement",Unspecified,98178832,109.01,T&S UK - Subsistence
BEIS,UKRI - AHRC,04/05/2018,T&S UK - Subsistence,Communications,Unspecified,98178833,21.09,T&S UK - Subsistence
BEIS,UKRI - AHRC,04/05/2018,T&S UK - Subsistence,Communications,Unspecified,98178833,30.32,T&S UK - Subsistence
BEIS,UKRI - AHRC,04/05/2018,T&S UK - Subsistence,International,Unspecified,98178835,2.65,T&S UK - Subsistence
BEIS,UKRI - AHRC,04/05/2018,T&S UK - Subsistence,"Languages,Literature & International Engagement",Unspecified,98178836,2.65,T&S UK - Subsistence
BEIS,UKRI - AHRC,04/05/2018,T&S UK - Subsistence,"Languages,Literature & International Engagement",Unspecified,98178837,2.49,T&S UK - Subsistence
BEIS,UKRI - AHRC,04/05/2018,T&S UK - Subsistence,"Languages,Literature & International Engagement",Unspecified,98178837,2.35,T&S UK - Subsistence
BEIS,UKRI - AHRC,04/05/2018,T&S UK - Subsistence,International,Unspecified,98178839,8.35,T&S UK - Subsistence
BEIS,UKRI - AHRC,04/05/2018,T&S UK - Subsistence,International,Unspecified,98178839,5,T&S UK - Subsistence
BEIS,UKRI - AHRC,04/05/2018,T&S UK - Subsistence,International,Unspecified,98178839,1.8,T&S UK - Subsistence
BEIS,UKRI - AHRC,08/05/2018,Agency Staff,Finance,Hays Specialist Recruitment Ltd,98179625,2672.76,Agency Staff
BEIS,UKRI - AHRC,08/05/2018,Contract Staff,Finance,Hays Specialist Recruitment Ltd,98181348,1566.24,Contract Staff
BEIS,UKRI - AHRC,08/05/2018,Recruitment Costs,HR,Agenda Resource Management Ltd,98179097,155.91,Recruitment Costs
BEIS,UKRI - AHRC,08/05/2018,Staff Training,Corporate Services,ACAS,98179052,624,Staff Training
BEIS,UKRI - AHRC,08/05/2018,Staff Training,Corporate Services,JSB Training & Development,98180156,1188,Staff Training
BEIS,UKRI - AHRC,09/05/2018,Contract Staff,IS,Capita Business Services Ltd,98176476,2559.22,Contract Staff
BEIS,UKRI - AHRC,09/05/2018,Contract Staff,IS,JC Web Services Ltd,98177314,9600,Contract Staff
BEIS,UKRI - AHRC,09/05/2018,Contract Staff,IS,Automated Intelligence Ltd,98181364,6682.5,Contract Staff
BEIS,UKRI - AHRC,09/05/2018,Corporate Events,New Programme Development,Calder Conference Ltd,98182426,4812.5,Corporate Events
BEIS,UKRI - AHRC,09/05/2018,Fees (Including College Members),SMT,Non Employee Expenses Supplier,98181568,1350,Fees (Including College Members)
BEIS,UKRI - AHRC,09/05/2018,Legal & Professional Services,Corporate Services,Reward Connected,98181156,300,Legal & Professional Services
BEIS,UKRI - AHRC,09/05/2018,Mobile Phone Costs,Corporate Services,West UC Ltd,98182418,596.75,Mobile Phone Costs
BEIS,UKRI - AHRC,09/05/2018,Non-staff travel and subsistance,Communications,Non Employee Expenses Supplier,98181559,283.34,Non-staff travel and subsistance
BEIS,UKRI - AHRC,09/05/2018,Non-staff travel and subsistance,"Histories,Culture & Heritage",Non Employee Expenses Supplier,98181560,18.59,Non-staff travel and subsistance
BEIS,UKRI - AHRC,09/05/2018,Non-staff travel and subsistance,"Histories,Culture & Heritage",Non Employee Expenses Supplier,98181561,37.5,Non-staff travel and subsistance
BEIS,UKRI - AHRC,09/05/2018,Non-staff travel and subsistance,"Histories,Culture & Heritage",Non Employee Expenses Supplier,98181562,34.9,Non-staff travel and subsistance
BEIS,UKRI - AHRC,09/05/2018,Non-staff travel and subsistance,"Histories,Culture & Heritage",Non Employee Expenses Supplier,98181563,191.4,Non-staff travel and subsistance
BEIS,UKRI - AHRC,09/05/2018,Non-staff travel and subsistance,"Histories,Culture & Heritage",Non Employee Expenses Supplier,98181564,108,Non-staff travel and subsistance
BEIS,UKRI - AHRC,09/05/2018,Non-staff travel and subsistance,"Histories,Culture & Heritage",Non Employee Expenses Supplier,98181565,93.74,Non-staff travel and subsistance
BEIS,UKRI - AHRC,09/05/2018,Non-staff travel and subsistance,"Histories,Culture & Heritage",Non Employee Expenses Supplier,98181566,222.4,Non-staff travel and subsistance
BEIS,UKRI - AHRC,09/05/2018,Non-staff travel and subsistance,SMT,Non Employee Expenses Supplier,98181567,156.09,Non-staff travel and subsistance
BEIS,UKRI - AHRC,09/05/2018,T&S UK - Public Transport,Skills,Unspecified,98182787,3.5,T&S UK - Public Transport
BEIS,UKRI - AHRC,09/05/2018,T&S UK - Subsistence,Skills,Unspecified,98182787,8.9,T&S UK - Subsistence
BEIS,UKRI - AHRC,10/05/2018,T&S UK - Public Transport,SMT,Unspecified,98183305,36,T&S UK - Public Transport
BEIS,UKRI - AHRC,11/05/2018,Agency Staff,IS,Capita Business Services Ltd,98183483,4590.43,Agency Staff
BEIS,UKRI - AHRC,11/05/2018,Contract Staff,IS,Capita Business Services Ltd,98183485,2559.22,Contract Staff
BEIS,UKRI - AHRC,11/05/2018,Legal & Professional Services,PSU Project Office,Automated Intelligence Ltd,98181367,247.5,Legal & Professional Services
BEIS,UKRI - AHRC,11/05/2018,Other Income,Finance,Unspecified,98183020,1040.92,Other Income
BEIS,UKRI - AHRC,14/05/2018,Agency Staff,Finance,Hays Specialist Recruitment Ltd,98185008,2672.76,Agency Staff
BEIS,UKRI - AHRC,14/05/2018,Apprenticeship Levy,Corporate Services,HM Revenue & Customs,98185346,2139,Apprenticeship Levy
BEIS,UKRI - AHRC,14/05/2018,Contract Staff,Finance,Hays Specialist Recruitment Ltd,98185039,1252.99,Contract Staff
BEIS,UKRI - AHRC,14/05/2018,Contract Staff,Finance,Hays Specialist Recruitment Ltd,98185042,1816.5,Contract Staff
BEIS,UKRI - AHRC,14/05/2018,Purchase of non capital equipment,HR,Abbey Business Equipment Ltd,98184945,201.6,Purchase of non capital equipment
BEIS,UKRI - AHRC,14/05/2018,Student Loans,Balance Sheet,HM Revenue & Customs,98185345,3483,Student Loans
BEIS,UKRI - AHRC,15/05/2018,Computing Consumables,IS,Academia Ltd,98182102,43.66,Computing Consumables
BEIS,UKRI - AHRC,15/05/2018,Computing Consumables,IS,Academia Ltd,98182102,45.46,Computing Consumables
BEIS,UKRI - AHRC,15/05/2018,Computing Consumables,IS,Academia Ltd,98182102,45.47,Computing Consumables
BEIS,UKRI - AHRC,15/05/2018,Contract Staff,PSU Project Office,Capita Business Services Ltd,98176470,8766.07,Contract Staff
BEIS,UKRI - AHRC,15/05/2018,Non-staff travel and subsistance,Industrial Strategy Challenge Fund (ISCF) - Creative Clusters,Non Employee Expenses Supplier,98185457,439.73,Non-staff travel and subsistance
BEIS,UKRI - AHRC,15/05/2018,Non-staff travel and subsistance,PSU JRS,Non Employee Expenses Supplier,98185458,67.8,Non-staff travel and subsistance
BEIS,UKRI - AHRC,15/05/2018,Recruitment Costs,Finance,UK Shared Business Services Ltd,98174097,54,Recruitment Costs
BEIS,UKRI - AHRC,15/05/2018,Recruitment Costs,HR,UK Shared Business Services Ltd,98174106,54,Recruitment Costs
BEIS,UKRI - AHRC,15/05/2018,Recruitment Costs,HR,Agenda Resource Management Ltd,98186328,151,Recruitment Costs
BEIS,UKRI - AHRC,15/05/2018,Recruitment Costs,Corporate Services,Agenda Resource Management Ltd,98186330,155.91,Recruitment Costs
BEIS,UKRI - AHRC,15/05/2018,Staff Training,HR,BPP Professional Education Ltd,98088778,477.2,Staff Training
BEIS,UKRI - AHRC,15/05/2018,Union Deductions,Balance Sheet,PCS Union,98185352,196.14,Union Deductions
BEIS,UKRI - AHRC,15/05/2018,Voluntary Deductions,Balance Sheet,Civil Service Benevolent Fund,98185349,7.33,Voluntary Deductions
BEIS,UKRI - AHRC,15/05/2018,Voluntary Deductions,Balance Sheet,Chargive,98185350,7,Voluntary Deductions
BEIS,UKRI - AHRC,16/05/2018,Conferences & Seminars,Industrial Strategy Challenge Fund (ISCF) - Creative Clusters,Calder Conference Ltd,98185574,3935.26,Conferences & Seminars
BEIS,UKRI - AHRC,16/05/2018,Conferences & Seminars,SMT,Swindon Borough Council,98187168,2241.66,Conferences & Seminars
BEIS,UKRI - AHRC,16/05/2018,Contract Staff,IS,Capita Business Services Ltd,98185756,2559.22,Contract Staff
BEIS,UKRI - AHRC,16/05/2018,Health & Safety (inc. Medicals & Opticians),Corporate Services,AM Health & Safety Ltd,98187140,45,Health & Safety (inc. Medicals & Opticians)
BEIS,UKRI - AHRC,16/05/2018,Recruitment Costs,Business Process & Analysis,Onefix Recruitment Ltd,98185610,166.5,Recruitment Costs
BEIS,UKRI - AHRC,16/05/2018,Recruitment Costs,Corporate Services,Agenda Resource Management Ltd,98187329,155.91,Recruitment Costs
BEIS,UKRI - AHRC,16/05/2018,Recruitment Costs,HR,Agenda Resource Management Ltd,98187331,155.91,Recruitment Costs
BEIS,UKRI - AHRC,17/05/2018,Advertising & Promotion,Communications,Firebird Films Ltd,98185411,2940,Advertising & Promotion
BEIS,UKRI - AHRC,17/05/2018,Agency Staff,HR,Capita Business Services Ltd,98183486,3494.59,Agency Staff
BEIS,UKRI - AHRC,17/05/2018,Legal & Professional Services,Corporate Services,Biotechnology and Biological Sciences Research Council (BBSRC),98143211,1192.32,Legal & Professional Services
BEIS,UKRI - AHRC,17/05/2018,Legal & Professional Services,Corporate Services,Biotechnology and Biological Sciences Research Council (BBSRC),98143211,766.01,Legal & Professional Services
BEIS,UKRI - AHRC,17/05/2018,Legal & Professional Services,Corporate Services,Medical Research Council,98174188,1028,Legal & Professional Services
BEIS,UKRI - AHRC,17/05/2018,Nursery Deductions,Balance Sheet,EDENRED (UK GROUP) LTD,98187610,4239.22,Nursery Deductions
BEIS,UKRI - AHRC,17/05/2018,Other Programme Costs,Brussels,Engineering & Physical Sciences Research Council,98174084,105560.61,Other Programme Costs
BEIS,UKRI - AHRC,17/05/2018,Other Staff Benefits,Corporate Services,EDENRED (UK GROUP) LTD,98187608,9.16,Other Staff Benefits
BEIS,UKRI - AHRC,17/05/2018,Recharges JRS,Corporate Services,Engineering & Physical Sciences Research Council,98177081,30691.24,Recharges JRS
BEIS,UKRI - AHRC,17/05/2018,Research Grant Expenditure,Global Challenges Research Fund (GCRF),Medical Research Council,98137865,8265,Research Grant Expenditure
BEIS,UKRI - AHRC,17/05/2018,Research Grant Expenditure,Oxford Radio Carbon Dating Service,Natural Environment Research Council,98141680,41000,Research Grant Expenditure
BEIS,UKRI - AHRC,17/05/2018,Research Grant Expenditure,Global Uncertainties Programme,Economic & Social Research Council,98151444,4968,Research Grant Expenditure
BEIS,UKRI - AHRC,18/05/2018,Agency Staff,IS,Capita Business Services Ltd,98185757,2550.24,Agency Staff
BEIS,UKRI - AHRC,18/05/2018,Computing Consumables,IS,Academia Ltd,98189477,43.66,Computing Consumables
BEIS,UKRI - AHRC,18/05/2018,Health & Safety (inc. Medicals & Opticians),Finance,Unspecified,98188681,19.5,Health & Safety (inc. Medicals & Opticians)
BEIS,UKRI - AHRC,21/05/2018,Non-staff travel and subsistance,Corporate Services,Redfern Travel Ltd,98189793,0.5,Non-staff travel and subsistance
BEIS,UKRI - AHRC,21/05/2018,Non-staff travel and subsistance,Corporate Services,Redfern Travel Ltd,98189793,73,Non-staff travel and subsistance
BEIS,UKRI - AHRC,21/05/2018,Non-staff travel and subsistance,Corporate Services,Redfern Travel Ltd,98189793,0.1,Non-staff travel and subsistance
BEIS,UKRI - AHRC,21/05/2018,Non-staff travel and subsistance,Creative Arts & Digital Humanities,Redfern Travel Ltd,98189793,0.5,Non-staff travel and subsistance
BEIS,UKRI - AHRC,21/05/2018,Non-staff travel and subsistance,Creative Arts & Digital Humanities,Redfern Travel Ltd,98189793,0.5,Non-staff travel and subsistance
BEIS,UKRI - AHRC,21/05/2018,Non-staff travel and subsistance,Creative Arts & Digital Humanities,Redfern Travel Ltd,98189793,130.5,Non-staff travel and subsistance
BEIS,UKRI - AHRC,21/05/2018,Non-staff travel and subsistance,Creative Arts & Digital Humanities,Redfern Travel Ltd,98189793,0.5,Non-staff travel and subsistance
BEIS,UKRI - AHRC,21/05/2018,Non-staff travel and subsistance,Creative Arts & Digital Humanities,Redfern Travel Ltd,98189793,125.1,Non-staff travel and subsistance
BEIS,UKRI - AHRC,21/05/2018,Non-staff travel and subsistance,Creative Arts & Digital Humanities,Redfern Travel Ltd,98189793,0.5,Non-staff travel and subsistance
BEIS,UKRI - AHRC,21/05/2018,Non-staff travel and subsistance,Creative Arts & Digital Humanities,Redfern Travel Ltd,98189793,125.1,Non-staff travel and subsistance
BEIS,UKRI - AHRC,21/05/2018,Non-staff travel and subsistance,Creative Arts & Digital Humanities,Redfern Travel Ltd,98189793,0.5,Non-staff travel and subsistance
BEIS,UKRI - AHRC,21/05/2018,Non-staff travel and subsistance,Creative Arts & Digital Humanities,Redfern Travel Ltd,98189793,137.7,Non-staff travel and subsistance
BEIS,UKRI - AHRC,21/05/2018,Non-staff travel and subsistance,Creative Arts & Digital Humanities,Redfern Travel Ltd,98189793,0.5,Non-staff travel and subsistance
BEIS,UKRI - AHRC,21/05/2018,Non-staff travel and subsistance,Creative Arts & Digital Humanities,Redfern Travel Ltd,98189793,137.7,Non-staff travel and subsistance
BEIS,UKRI - AHRC,21/05/2018,Non-staff travel and subsistance,Creative Arts & Digital Humanities,Redfern Travel Ltd,98189793,0.5,Non-staff travel and subsistance
BEIS,UKRI - AHRC,21/05/2018,Non-staff travel and subsistance,Creative Arts & Digital Humanities,Redfern Travel Ltd,98189793,137.7,Non-staff travel and subsistance
BEIS,UKRI - AHRC,21/05/2018,Non-staff travel and subsistance,Creative Arts & Digital Humanities,Redfern Travel Ltd,98189793,0.5,Non-staff travel and subsistance
BEIS,UKRI - AHRC,21/05/2018,Non-staff travel and subsistance,Creative Arts & Digital Humanities,Redfern Travel Ltd,98189793,137.7,Non-staff travel and subsistance
BEIS,UKRI - AHRC,21/05/2018,Non-staff travel and subsistance,Creative Arts & Digital Humanities,Redfern Travel Ltd,98189793,0.5,Non-staff travel and subsistance
BEIS,UKRI - AHRC,21/05/2018,Non-staff travel and subsistance,Creative Arts & Digital Humanities,Redfern Travel Ltd,98189793,125.1,Non-staff travel and subsistance
BEIS,UKRI - AHRC,21/05/2018,Non-staff travel and subsistance,Creative Arts & Digital Humanities,Redfern Travel Ltd,98189793,0.5,Non-staff travel and subsistance
BEIS,UKRI - AHRC,21/05/2018,Non-staff travel and subsistance,Creative Arts & Digital Humanities,Redfern Travel Ltd,98189793,125.1,Non-staff travel and subsistance
BEIS,UKRI - AHRC,21/05/2018,Non-staff travel and subsistance,Creative Arts & Digital Humanities,Redfern Travel Ltd,98189793,1,Non-staff travel and subsistance
BEIS,UKRI - AHRC,21/05/2018,Non-staff travel and subsistance,"Histories,Culture & Heritage",Redfern Travel Ltd,98189793,0.5,Non-staff travel and subsistance
BEIS,UKRI - AHRC,21/05/2018,Non-staff travel and subsistance,"Histories,Culture & Heritage",Redfern Travel Ltd,98189793,88.5,Non-staff travel and subsistance
BEIS,UKRI - AHRC,21/05/2018,Non-staff travel and subsistance,"Histories,Culture & Heritage",Redfern Travel Ltd,98189793,0.1,Non-staff travel and subsistance
BEIS,UKRI - AHRC,21/05/2018,Non-staff travel and subsistance,Industrial Strategy Challenge Fund (ISCF) - Creative Clusters,Redfern Travel Ltd,98189793,0.5,Non-staff travel and subsistance
BEIS,UKRI - AHRC,21/05/2018,Non-staff travel and subsistance,Industrial Strategy Challenge Fund (ISCF) - Creative Clusters,Redfern Travel Ltd,98189793,155,Non-staff travel and subsistance
BEIS,UKRI - AHRC,21/05/2018,Non-staff travel and subsistance,Industrial Strategy Challenge Fund (ISCF) - Creative Clusters,Redfern Travel Ltd,98189793,0.1,Non-staff travel and subsistance
BEIS,UKRI - AHRC,21/05/2018,Non-staff travel and subsistance,"Languages,Literature & International Engagement",Redfern Travel Ltd,98189793,0.5,Non-staff travel and subsistance
BEIS,UKRI - AHRC,21/05/2018,Non-staff travel and subsistance,"Languages,Literature & International Engagement",Redfern Travel Ltd,98189793,139.5,Non-staff travel and subsistance
BEIS,UKRI - AHRC,21/05/2018,Non-staff travel and subsistance,"Languages,Literature & International Engagement",Redfern Travel Ltd,98189793,0.5,Non-staff travel and subsistance
BEIS,UKRI - AHRC,21/05/2018,Non-staff travel and subsistance,"Languages,Literature & International Engagement",Redfern Travel Ltd,98189793,139.5,Non-staff travel and subsistance
BEIS,UKRI - AHRC,21/05/2018,Non-staff travel and subsistance,"Languages,Literature & International Engagement",Redfern Travel Ltd,98189793,0.5,Non-staff travel and subsistance
BEIS,UKRI - AHRC,21/05/2018,Non-staff travel and subsistance,"Languages,Literature & International Engagement",Redfern Travel Ltd,98189793,139.5,Non-staff travel and subsistance
BEIS,UKRI - AHRC,21/05/2018,Non-staff travel and subsistance,"Languages,Literature & International Engagement",Redfern Travel Ltd,98189793,0.5,Non-staff travel and subsistance
BEIS,UKRI - AHRC,21/05/2018,Non-staff travel and subsistance,"Languages,Literature & International Engagement",Redfern Travel Ltd,98189793,130.5,Non-staff travel and subsistance
BEIS,UKRI - AHRC,21/05/2018,Non-staff travel and subsistance,"Languages,Literature & International Engagement",Redfern Travel Ltd,98189793,0.5,Non-staff travel and subsistance
BEIS,UKRI - AHRC,21/05/2018,Non-staff travel and subsistance,"Languages,Literature & International Engagement",Redfern Travel Ltd,98189793,73,Non-staff travel and subsistance
BEIS,UKRI - AHRC,21/05/2018,Non-staff travel and subsistance,"Languages,Literature & International Engagement",Redfern Travel Ltd,98189793,0.5,Non-staff travel and subsistance
BEIS,UKRI - AHRC,21/05/2018,Non-staff travel and subsistance,"Languages,Literature & International Engagement",Redfern Travel Ltd,98189793,73,Non-staff travel and subsistance
BEIS,UKRI - AHRC,21/05/2018,Non-staff travel and subsistance,"Languages,Literature & International Engagement",Redfern Travel Ltd,98189793,0.5,Non-staff travel and subsistance
BEIS,UKRI - AHRC,21/05/2018,Non-staff travel and subsistance,"Languages,Literature & International Engagement",Redfern Travel Ltd,98189793,139.5,Non-staff travel and subsistance
BEIS,UKRI - AHRC,21/05/2018,Non-staff travel and subsistance,"Languages,Literature & International Engagement",Redfern Travel Ltd,98189793,0.5,Non-staff travel and subsistance
BEIS,UKRI - AHRC,21/05/2018,Non-staff travel and subsistance,"Languages,Literature & International Engagement",Redfern Travel Ltd,98189793,130.5,Non-staff travel and subsistance
BEIS,UKRI - AHRC,21/05/2018,Non-staff travel and subsistance,"Languages,Literature & International Engagement",Redfern Travel Ltd,98189793,0.8,Non-staff travel and subsistance
BEIS,UKRI - AHRC,21/05/2018,Non-staff travel and subsistance,New Programme Development,Redfern Travel Ltd,98189793,0.5,Non-staff travel and subsistance
BEIS,UKRI - AHRC,21/05/2018,Non-staff travel and subsistance,New Programme Development,Redfern Travel Ltd,98189793,135,Non-staff travel and subsistance
BEIS,UKRI - AHRC,21/05/2018,Non-staff travel and subsistance,New Programme Development,Redfern Travel Ltd,98189793,0.5,Non-staff travel and subsistance
BEIS,UKRI - AHRC,21/05/2018,Non-staff travel and subsistance,New Programme Development,Redfern Travel Ltd,98189793,135,Non-staff travel and subsistance
BEIS,UKRI - AHRC,21/05/2018,Non-staff travel and subsistance,New Programme Development,Redfern Travel Ltd,98189793,0.5,Non-staff travel and subsistance
BEIS,UKRI - AHRC,21/05/2018,Non-staff travel and subsistance,New Programme Development,Redfern Travel Ltd,98189793,135,Non-staff travel and subsistance
BEIS,UKRI - AHRC,21/05/2018,Non-staff travel and subsistance,New Programme Development,Redfern Travel Ltd,98189793,0.5,Non-staff travel and subsistance
BEIS,UKRI - AHRC,21/05/2018,Non-staff travel and subsistance,New Programme Development,Redfern Travel Ltd,98189793,135,Non-staff travel and subsistance
BEIS,UKRI - AHRC,21/05/2018,Non-staff travel and subsistance,New Programme Development,Redfern Travel Ltd,98189793,0.5,Non-staff travel and subsistance
BEIS,UKRI - AHRC,21/05/2018,Non-staff travel and subsistance,New Programme Development,Redfern Travel Ltd,98189793,135,Non-staff travel and subsistance
BEIS,UKRI - AHRC,21/05/2018,Non-staff travel and subsistance,New Programme Development,Redfern Travel Ltd,98189793,0.5,Non-staff travel and subsistance
BEIS,UKRI - AHRC,21/05/2018,Non-staff travel and subsistance,New Programme Development,Redfern Travel Ltd,98189793,110,Non-staff travel and subsistance
BEIS,UKRI - AHRC,21/05/2018,Non-staff travel and subsistance,New Programme Development,Redfern Travel Ltd,98189793,0.6,Non-staff travel and subsistance
BEIS,UKRI - AHRC,21/05/2018,Staff Training,Corporate Services,Corinium Human Resource Management Ltd,98188780,750.43,Staff Training
BEIS,UKRI - AHRC,21/05/2018,T&S Overseas - Accommodation,"Histories,Culture & Heritage",Redfern Travel Ltd,98189793,0.5,T&S Overseas - Accommodation
BEIS,UKRI - AHRC,21/05/2018,T&S Overseas - Accommodation,"Histories,Culture & Heritage",Redfern Travel Ltd,98189793,170.69,T&S Overseas - Accommodation
BEIS,UKRI - AHRC,21/05/2018,T&S Overseas - Accommodation,"Histories,Culture & Heritage",Redfern Travel Ltd,98189793,0.1,T&S Overseas - Accommodation
BEIS,UKRI - AHRC,21/05/2018,T&S Overseas - Accommodation,"Languages,Literature & International Engagement",Redfern Travel Ltd,98189793,0.5,T&S Overseas - Accommodation
BEIS,UKRI - AHRC,21/05/2018,T&S Overseas - Accommodation,"Languages,Literature & International Engagement",Redfern Travel Ltd,98189793,0.1,T&S Overseas - Accommodation
BEIS,UKRI - AHRC,21/05/2018,T&S Overseas - Flights,Creative Arts & Digital Humanities,Redfern Travel Ltd,98189793,69.46,T&S Overseas - Flights
BEIS,UKRI - AHRC,21/05/2018,T&S Overseas - Flights,HERA JRP Project,Redfern Travel Ltd,98189793,2.16,T&S Overseas - Flights
BEIS,UKRI - AHRC,21/05/2018,T&S Overseas - Flights,HERA JRP Project,Redfern Travel Ltd,98189793,82.72,T&S Overseas - Flights
BEIS,UKRI - AHRC,21/05/2018,T&S Overseas - Flights,Newton Programme Delivery,Redfern Travel Ltd,98189793,490.81,T&S Overseas - Flights
BEIS,UKRI - AHRC,21/05/2018,T&S Overseas - Other Charges,International,Redfern Travel Ltd,98189793,2.16,T&S Overseas - Other Charges
BEIS,UKRI - AHRC,21/05/2018,T&S Overseas - Other Charges,International,Redfern Travel Ltd,98189793,109,T&S Overseas - Other Charges
BEIS,UKRI - AHRC,21/05/2018,T&S Overseas - Other Charges,"Languages,Literature & International Engagement",Redfern Travel Ltd,98189793,2.16,T&S Overseas - Other Charges
BEIS,UKRI - AHRC,21/05/2018,T&S Overseas - Other Charges,"Languages,Literature & International Engagement",Redfern Travel Ltd,98189793,55,T&S Overseas - Other Charges
BEIS,UKRI - AHRC,21/05/2018,T&S UK - Accommodation,Corporate Services,Redfern Travel Ltd,98189793,0.5,T&S UK - Accommodation
BEIS,UKRI - AHRC,21/05/2018,T&S UK - Accommodation,Corporate Services,Redfern Travel Ltd,98189793,89,T&S UK - Accommodation
BEIS,UKRI - AHRC,21/05/2018,T&S UK - Accommodation,Corporate Services,Redfern Travel Ltd,98189793,0.1,T&S UK - Accommodation
BEIS,UKRI - AHRC,21/05/2018,T&S UK - Accommodation,Creative Arts & Digital Humanities,Redfern Travel Ltd,98189793,0.5,T&S UK - Accommodation
BEIS,UKRI - AHRC,21/05/2018,T&S UK - Accommodation,Creative Arts & Digital Humanities,Redfern Travel Ltd,98189793,65,T&S UK - Accommodation
BEIS,UKRI - AHRC,21/05/2018,T&S UK - Accommodation,Creative Arts & Digital Humanities,Redfern Travel Ltd,98189793,0.5,T&S UK - Accommodation
BEIS,UKRI - AHRC,21/05/2018,T&S UK - Accommodation,Creative Arts & Digital Humanities,Redfern Travel Ltd,98189793,67,T&S UK - Accommodation
BEIS,UKRI - AHRC,21/05/2018,T&S UK - Accommodation,Creative Arts & Digital Humanities,Redfern Travel Ltd,98189793,0.2,T&S UK - Accommodation
BEIS,UKRI - AHRC,21/05/2018,T&S UK - Accommodation,GCRF - Programme Delivery,Redfern Travel Ltd,98189793,0.5,T&S UK - Accommodation
BEIS,UKRI - AHRC,21/05/2018,T&S UK - Accommodation,GCRF - Programme Delivery,Redfern Travel Ltd,98189793,67.99,T&S UK - Accommodation
BEIS,UKRI - AHRC,21/05/2018,T&S UK - Accommodation,GCRF - Programme Delivery,Redfern Travel Ltd,98189793,0.1,T&S UK - Accommodation
BEIS,UKRI - AHRC,21/05/2018,T&S UK - Accommodation,IS,Redfern Travel Ltd,98189793,0.5,T&S UK - Accommodation
BEIS,UKRI - AHRC,21/05/2018,T&S UK - Accommodation,IS,Redfern Travel Ltd,98189793,91,T&S UK - Accommodation
BEIS,UKRI - AHRC,21/05/2018,T&S UK - Accommodation,IS,Redfern Travel Ltd,98189793,0.1,T&S UK - Accommodation
BEIS,UKRI - AHRC,21/05/2018,T&S UK - Accommodation,Industrial Strategy Challenge Fund (ISCF) - Creative Clusters,Redfern Travel Ltd,98189793,0.5,T&S UK - Accommodation
BEIS,UKRI - AHRC,21/05/2018,T&S UK - Accommodation,Industrial Strategy Challenge Fund (ISCF) - Creative Clusters,Redfern Travel Ltd,98189793,155,T&S UK - Accommodation
BEIS,UKRI - AHRC,21/05/2018,T&S UK - Accommodation,Industrial Strategy Challenge Fund (ISCF) - Creative Clusters,Redfern Travel Ltd,98189793,0.1,T&S UK - Accommodation
BEIS,UKRI - AHRC,21/05/2018,T&S UK - Accommodation,"Languages,Literature & International Engagement",Redfern Travel Ltd,98189793,0.5,T&S UK - Accommodation
BEIS,UKRI - AHRC,21/05/2018,T&S UK - Accommodation,"Languages,Literature & International Engagement",Redfern Travel Ltd,98189793,75,T&S UK - Accommodation
BEIS,UKRI - AHRC,21/05/2018,T&S UK - Accommodation,"Languages,Literature & International Engagement",Redfern Travel Ltd,98189793,0.5,T&S UK - Accommodation
BEIS,UKRI - AHRC,21/05/2018,T&S UK - Accommodation,"Languages,Literature & International Engagement",Redfern Travel Ltd,98189793,75,T&S UK - Accommodation
BEIS,UKRI - AHRC,21/05/2018,T&S UK - Accommodation,"Languages,Literature & International Engagement",Redfern Travel Ltd,98189793,0.5,T&S UK - Accommodation
BEIS,UKRI - AHRC,21/05/2018,T&S UK - Accommodation,"Languages,Literature & International Engagement",Redfern Travel Ltd,98189793,89,T&S UK - Accommodation
BEIS,UKRI - AHRC,21/05/2018,T&S UK - Accommodation,"Languages,Literature & International Engagement",Redfern Travel Ltd,98189793,0.5,T&S UK - Accommodation
BEIS,UKRI - AHRC,21/05/2018,T&S UK - Accommodation,"Languages,Literature & International Engagement",Redfern Travel Ltd,98189793,1.44,T&S UK - Accommodation
BEIS,UKRI - AHRC,21/05/2018,T&S UK - Accommodation,"Languages,Literature & International Engagement",Redfern Travel Ltd,98189793,73,T&S UK - Accommodation
BEIS,UKRI - AHRC,21/05/2018,T&S UK - Accommodation,"Languages,Literature & International Engagement",Redfern Travel Ltd,98189793,0.69,T&S UK - Accommodation
BEIS,UKRI - AHRC,21/05/2018,T&S UK - Accommodation,New Programme Development,Redfern Travel Ltd,98189793,0.5,T&S UK - Accommodation
BEIS,UKRI - AHRC,21/05/2018,T&S UK - Accommodation,New Programme Development,Redfern Travel Ltd,98189793,150.3,T&S UK - Accommodation
BEIS,UKRI - AHRC,21/05/2018,T&S UK - Accommodation,New Programme Development,Redfern Travel Ltd,98189793,0.1,T&S UK - Accommodation
BEIS,UKRI - AHRC,21/05/2018,T&S UK - Accommodation,PSU Project Office,Redfern Travel Ltd,98189793,0.5,T&S UK - Accommodation
BEIS,UKRI - AHRC,21/05/2018,T&S UK - Accommodation,PSU Project Office,Redfern Travel Ltd,98189793,87,T&S UK - Accommodation
BEIS,UKRI - AHRC,21/05/2018,T&S UK - Accommodation,PSU Project Office,Redfern Travel Ltd,98189793,0.1,T&S UK - Accommodation
BEIS,UKRI - AHRC,21/05/2018,T&S UK - Accommodation,SMT,Redfern Travel Ltd,98189793,0.5,T&S UK - Accommodation
BEIS,UKRI - AHRC,21/05/2018,T&S UK - Accommodation,SMT,Redfern Travel Ltd,98189793,73,T&S UK - Accommodation
BEIS,UKRI - AHRC,21/05/2018,T&S UK - Accommodation,SMT,Redfern Travel Ltd,98189793,0.5,T&S UK - Accommodation
BEIS,UKRI - AHRC,21/05/2018,T&S UK - Accommodation,SMT,Redfern Travel Ltd,98189793,0.5,T&S UK - Accommodation
BEIS,UKRI - AHRC,21/05/2018,T&S UK - Accommodation,SMT,Redfern Travel Ltd,98189793,871.2,T&S UK - Accommodation
BEIS,UKRI - AHRC,21/05/2018,T&S UK - Accommodation,SMT,Redfern Travel Ltd,98189793,0.5,T&S UK - Accommodation
BEIS,UKRI - AHRC,21/05/2018,T&S UK - Accommodation,SMT,Redfern Travel Ltd,98189793,156,T&S UK - Accommodation
BEIS,UKRI - AHRC,21/05/2018,T&S UK - Accommodation,SMT,Redfern Travel Ltd,98189793,0.5,T&S UK - Accommodation
BEIS,UKRI - AHRC,21/05/2018,T&S UK - Accommodation,SMT,Redfern Travel Ltd,98189793,144,T&S UK - Accommodation
BEIS,UKRI - AHRC,21/05/2018,T&S UK - Accommodation,SMT,Redfern Travel Ltd,98189793,0.5,T&S UK - Accommodation
BEIS,UKRI - AHRC,21/05/2018,T&S UK - Accommodation,SMT,Redfern Travel Ltd,98189793,112,T&S UK - Accommodation
BEIS,UKRI - AHRC,21/05/2018,T&S UK - Accommodation,SMT,Redfern Travel Ltd,98189793,0.5,T&S UK - Accommodation
BEIS,UKRI - AHRC,21/05/2018,T&S UK - Accommodation,SMT,Redfern Travel Ltd,98189793,70,T&S UK - Accommodation
BEIS,UKRI - AHRC,21/05/2018,T&S UK - Accommodation,SMT,Redfern Travel Ltd,98189793,0.5,T&S UK - Accommodation
BEIS,UKRI - AHRC,21/05/2018,T&S UK - Accommodation,SMT,Redfern Travel Ltd,98189793,144,T&S UK - Accommodation
BEIS,UKRI - AHRC,21/05/2018,T&S UK - Accommodation,SMT,Redfern Travel Ltd,98189793,0.8,T&S UK - Accommodation
BEIS,UKRI - AHRC,21/05/2018,T&S UK - Accommodation,Secretariat,Redfern Travel Ltd,98189793,0.5,T&S UK - Accommodation
BEIS,UKRI - AHRC,21/05/2018,T&S UK - Accommodation,Secretariat,Redfern Travel Ltd,98189793,150,T&S UK - Accommodation
BEIS,UKRI - AHRC,21/05/2018,T&S UK - Accommodation,Secretariat,Redfern Travel Ltd,98189793,0.1,T&S UK - Accommodation
BEIS,UKRI - AHRC,21/05/2018,T&S UK - Flights,Creative Arts & Digital Humanities,Redfern Travel Ltd,98189793,116.15,T&S UK - Flights
BEIS,UKRI - AHRC,21/05/2018,T&S UK - Other Charges,PSU Project Office,Redfern Travel Ltd,98189793,1,T&S UK - Other Charges
BEIS,UKRI - AHRC,21/05/2018,T&S UK - Other Charges,PSU Project Office,Redfern Travel Ltd,98189793,23,T&S UK - Other Charges
BEIS,UKRI - AHRC,21/05/2018,T&S UK - Public Transport,Business Process & Analysis,Redfern Travel Ltd,98189793,139.6,T&S UK - Public Transport
BEIS,UKRI - AHRC,21/05/2018,T&S UK - Public Transport,Communications,Redfern Travel Ltd,98189793,139.6,T&S UK - Public Transport
BEIS,UKRI - AHRC,21/05/2018,T&S UK - Public Transport,Communications,Redfern Travel Ltd,98189793,-198.5,T&S UK - Public Transport
BEIS,UKRI - AHRC,21/05/2018,T&S UK - Public Transport,Communications,Redfern Travel Ltd,98189793,-80.8,T&S UK - Public Transport
BEIS,UKRI - AHRC,21/05/2018,T&S UK - Public Transport,Communications,Redfern Travel Ltd,98189793,147,T&S UK - Public Transport
BEIS,UKRI - AHRC,21/05/2018,T&S UK - Public Transport,Communications,Redfern Travel Ltd,98189793,159.2,T&S UK - Public Transport
BEIS,UKRI - AHRC,21/05/2018,T&S UK - Public Transport,Communications,Redfern Travel Ltd,98189793,131.6,T&S UK - Public Transport
BEIS,UKRI - AHRC,21/05/2018,T&S UK - Public Transport,Communications,Redfern Travel Ltd,98189793,139.6,T&S UK - Public Transport
BEIS,UKRI - AHRC,21/05/2018,T&S UK - Public Transport,Communications,Redfern Travel Ltd,98189793,1,T&S UK - Public Transport
BEIS,UKRI - AHRC,21/05/2018,T&S UK - Public Transport,Communications,Redfern Travel Ltd,98189793,147,T&S UK - Public Transport
BEIS,UKRI - AHRC,21/05/2018,T&S UK - Public Transport,Creative Arts & Digital Humanities,Redfern Travel Ltd,98189793,111,T&S UK - Public Transport
BEIS,UKRI - AHRC,21/05/2018,T&S UK - Public Transport,Creative Arts & Digital Humanities,Redfern Travel Ltd,98189793,30.9,T&S UK - Public Transport
BEIS,UKRI - AHRC,21/05/2018,T&S UK - Public Transport,Creative Arts & Digital Humanities,Redfern Travel Ltd,98189793,37.3,T&S UK - Public Transport
BEIS,UKRI - AHRC,21/05/2018,T&S UK - Public Transport,Creative Arts & Digital Humanities,Redfern Travel Ltd,98189793,84.4,T&S UK - Public Transport
BEIS,UKRI - AHRC,21/05/2018,T&S UK - Public Transport,Creative Arts & Digital Humanities,Redfern Travel Ltd,98189793,160.3,T&S UK - Public Transport
BEIS,UKRI - AHRC,21/05/2018,T&S UK - Public Transport,Creative Arts & Digital Humanities,Redfern Travel Ltd,98189793,-82,T&S UK - Public Transport
BEIS,UKRI - AHRC,21/05/2018,T&S UK - Public Transport,Creative Arts & Digital Humanities,Redfern Travel Ltd,98189793,27,T&S UK - Public Transport
BEIS,UKRI - AHRC,21/05/2018,T&S UK - Public Transport,Creative Arts & Digital Humanities,Redfern Travel Ltd,98189793,151.7,T&S UK - Public Transport
BEIS,UKRI - AHRC,21/05/2018,T&S UK - Public Transport,Creative Arts & Digital Humanities,Redfern Travel Ltd,98189793,146,T&S UK - Public Transport
BEIS,UKRI - AHRC,21/05/2018,T&S UK - Public Transport,Creative Arts & Digital Humanities,Redfern Travel Ltd,98189793,157.4,T&S UK - Public Transport
BEIS,UKRI - AHRC,21/05/2018,T&S UK - Public Transport,Creative Arts & Digital Humanities,Redfern Travel Ltd,98189793,118.4,T&S UK - Public Transport
BEIS,UKRI - AHRC,21/05/2018,T&S UK - Public Transport,Finance,Redfern Travel Ltd,98189793,67.8,T&S UK - Public Transport
BEIS,UKRI - AHRC,21/05/2018,T&S UK - Public Transport,Finance,Redfern Travel Ltd,98189793,23,T&S UK - Public Transport
BEIS,UKRI - AHRC,21/05/2018,T&S UK - Public Transport,Finance,Redfern Travel Ltd,98189793,23,T&S UK - Public Transport
BEIS,UKRI - AHRC,21/05/2018,T&S UK - Public Transport,Finance,Redfern Travel Ltd,98189793,23,T&S UK - Public Transport
BEIS,UKRI - AHRC,21/05/2018,T&S UK - Public Transport,Finance,Redfern Travel Ltd,98189793,100.7,T&S UK - Public Transport
BEIS,UKRI - AHRC,21/05/2018,T&S UK - Public Transport,GCRF - Programme Delivery,Redfern Travel Ltd,98189793,-96,T&S UK - Public Transport
BEIS,UKRI - AHRC,21/05/2018,T&S UK - Public Transport,GCRF - Programme Delivery,Redfern Travel Ltd,98189793,31.1,T&S UK - Public Transport
BEIS,UKRI - AHRC,21/05/2018,T&S UK - Public Transport,GCRF - Programme Delivery,Redfern Travel Ltd,98189793,11.6,T&S UK - Public Transport
BEIS,UKRI - AHRC,21/05/2018,T&S UK - Public Transport,HR,Redfern Travel Ltd,98189793,23,T&S UK - Public Transport
BEIS,UKRI - AHRC,21/05/2018,T&S UK - Public Transport,HR,Redfern Travel Ltd,98189793,23,T&S UK - Public Transport
BEIS,UKRI - AHRC,21/05/2018,T&S UK - Public Transport,HR,Redfern Travel Ltd,98189793,-18,T&S UK - Public Transport
BEIS,UKRI - AHRC,21/05/2018,T&S UK - Public Transport,HR,Redfern Travel Ltd,98189793,23,T&S UK - Public Transport
BEIS,UKRI - AHRC,21/05/2018,T&S UK - Public Transport,HR,Redfern Travel Ltd,98189793,139.6,T&S UK - Public Transport
BEIS,UKRI - AHRC,21/05/2018,T&S UK - Public Transport,HR,Redfern Travel Ltd,98189793,23,T&S UK - Public Transport
BEIS,UKRI - AHRC,21/05/2018,T&S UK - Public Transport,HR,Redfern Travel Ltd,98189793,160,T&S UK - Public Transport
BEIS,UKRI - AHRC,21/05/2018,T&S UK - Public Transport,HR,Redfern Travel Ltd,98189793,23,T&S UK - Public Transport
BEIS,UKRI - AHRC,21/05/2018,T&S UK - Public Transport,HR,Redfern Travel Ltd,98189793,23,T&S UK - Public Transport
BEIS,UKRI - AHRC,21/05/2018,T&S UK - Public Transport,HR,Redfern Travel Ltd,98189793,84.8,T&S UK - Public Transport
BEIS,UKRI - AHRC,21/05/2018,T&S UK - Public Transport,HR,Redfern Travel Ltd,98189793,23,T&S UK - Public Transport
BEIS,UKRI - AHRC,21/05/2018,T&S UK - Public Transport,HR,Redfern Travel Ltd,98189793,23,T&S UK - Public Transport
BEIS,UKRI - AHRC,21/05/2018,T&S UK - Public Transport,HR,Redfern Travel Ltd,98189793,23,T&S UK - Public Transport
BEIS,UKRI - AHRC,21/05/2018,T&S UK - Public Transport,"Histories,Culture & Heritage",Redfern Travel Ltd,98189793,129.8,T&S UK - Public Transport
BEIS,UKRI - AHRC,21/05/2018,T&S UK - Public Transport,"Histories,Culture & Heritage",Redfern Travel Ltd,98189793,139.6,T&S UK - Public Transport
BEIS,UKRI - AHRC,21/05/2018,T&S UK - Public Transport,"Histories,Culture & Heritage",Redfern Travel Ltd,98189793,111.9,T&S UK - Public Transport
BEIS,UKRI - AHRC,21/05/2018,T&S UK - Public Transport,"Histories,Culture & Heritage",Redfern Travel Ltd,98189793,111.9,T&S UK - Public Transport
BEIS,UKRI - AHRC,21/05/2018,T&S UK - Public Transport,"Histories,Culture & Heritage",Redfern Travel Ltd,98189793,111.9,T&S UK - Public Transport
BEIS,UKRI - AHRC,21/05/2018,T&S UK - Public Transport,IS,Redfern Travel Ltd,98189793,-59.5,T&S UK - Public Transport
BEIS,UKRI - AHRC,21/05/2018,T&S UK - Public Transport,IS,Redfern Travel Ltd,98189793,140.3,T&S UK - Public Transport
BEIS,UKRI - AHRC,21/05/2018,T&S UK - Public Transport,IS,Redfern Travel Ltd,98189793,46,T&S UK - Public Transport
BEIS,UKRI - AHRC,21/05/2018,T&S UK - Public Transport,Industrial Strategy Challenge Fund (ISCF) - Creative Clusters,Redfern Travel Ltd,98189793,15,T&S UK - Public Transport
BEIS,UKRI - AHRC,21/05/2018,T&S UK - Public Transport,Industrial Strategy Challenge Fund (ISCF) - Creative Clusters,Redfern Travel Ltd,98189793,-55.3,T&S UK - Public Transport
BEIS,UKRI - AHRC,21/05/2018,T&S UK - Public Transport,Industrial Strategy Challenge Fund (ISCF) - Creative Clusters,Redfern Travel Ltd,98189793,-412.8,T&S UK - Public Transport
BEIS,UKRI - AHRC,21/05/2018,T&S UK - Public Transport,Industrial Strategy Challenge Fund (ISCF) - Creative Clusters,Redfern Travel Ltd,98189793,-65.6,T&S UK - Public Transport
BEIS,UKRI - AHRC,21/05/2018,T&S UK - Public Transport,Industrial Strategy Challenge Fund (ISCF) - Creative Clusters,Redfern Travel Ltd,98189793,69.2,T&S UK - Public Transport
BEIS,UKRI - AHRC,21/05/2018,T&S UK - Public Transport,International,Redfern Travel Ltd,98189793,30.9,T&S UK - Public Transport
BEIS,UKRI - AHRC,21/05/2018,T&S UK - Public Transport,International,Redfern Travel Ltd,98189793,108.7,T&S UK - Public Transport
BEIS,UKRI - AHRC,21/05/2018,T&S UK - Public Transport,International,Redfern Travel Ltd,98189793,100.7,T&S UK - Public Transport
BEIS,UKRI - AHRC,21/05/2018,T&S UK - Public Transport,International,Redfern Travel Ltd,98189793,31.1,T&S UK - Public Transport
BEIS,UKRI - AHRC,21/05/2018,T&S UK - Public Transport,International,Redfern Travel Ltd,98189793,11.6,T&S UK - Public Transport
BEIS,UKRI - AHRC,21/05/2018,T&S UK - Public Transport,International,Redfern Travel Ltd,98189793,30.9,T&S UK - Public Transport
BEIS,UKRI - AHRC,21/05/2018,T&S UK - Public Transport,International,Redfern Travel Ltd,98189793,108.7,T&S UK - Public Transport
BEIS,UKRI - AHRC,21/05/2018,T&S UK - Public Transport,"Languages,Literature & International Engagement",Redfern Travel Ltd,98189793,139.6,T&S UK - Public Transport
BEIS,UKRI - AHRC,21/05/2018,T&S UK - Public Transport,"Languages,Literature & International Engagement",Redfern Travel Ltd,98189793,139.6,T&S UK - Public Transport
BEIS,UKRI - AHRC,21/05/2018,T&S UK - Public Transport,"Languages,Literature & International Engagement",Redfern Travel Ltd,98189793,66.8,T&S UK - Public Transport
BEIS,UKRI - AHRC,21/05/2018,T&S UK - Public Transport,"Languages,Literature & International Engagement",Redfern Travel Ltd,98189793,30.9,T&S UK - Public Transport
BEIS,UKRI - AHRC,21/05/2018,T&S UK - Public Transport,"Languages,Literature & International Engagement",Redfern Travel Ltd,98189793,1,T&S UK - Public Transport
BEIS,UKRI - AHRC,21/05/2018,T&S UK - Public Transport,"Languages,Literature & International Engagement",Redfern Travel Ltd,98189793,588.3,T&S UK - Public Transport
BEIS,UKRI - AHRC,21/05/2018,T&S UK - Public Transport,"Languages,Literature & International Engagement",Redfern Travel Ltd,98189793,-101,T&S UK - Public Transport
BEIS,UKRI - AHRC,21/05/2018,T&S UK - Public Transport,"Languages,Literature & International Engagement",Redfern Travel Ltd,98189793,67.8,T&S UK - Public Transport
BEIS,UKRI - AHRC,21/05/2018,T&S UK - Public Transport,New Programme Development,Redfern Travel Ltd,98189793,139.6,T&S UK - Public Transport
BEIS,UKRI - AHRC,21/05/2018,T&S UK - Public Transport,Newton Programme Delivery,Redfern Travel Ltd,98189793,-125.7,T&S UK - Public Transport
BEIS,UKRI - AHRC,21/05/2018,T&S UK - Public Transport,Newton Programme Delivery,Redfern Travel Ltd,98189793,139.6,T&S UK - Public Transport
BEIS,UKRI - AHRC,21/05/2018,T&S UK - Public Transport,Newton Programme Delivery,Redfern Travel Ltd,98189793,105.8,T&S UK - Public Transport
BEIS,UKRI - AHRC,21/05/2018,T&S UK - Public Transport,PSU Project Office,Redfern Travel Ltd,98189793,140.3,T&S UK - Public Transport
BEIS,UKRI - AHRC,21/05/2018,T&S UK - Public Transport,PSU Project Office,Redfern Travel Ltd,98189793,31.4,T&S UK - Public Transport
BEIS,UKRI - AHRC,21/05/2018,T&S UK - Public Transport,PSU Project Office,Redfern Travel Ltd,98189793,133.6,T&S UK - Public Transport
BEIS,UKRI - AHRC,21/05/2018,T&S UK - Public Transport,PSU Project Office,Redfern Travel Ltd,98189793,63,T&S UK - Public Transport
BEIS,UKRI - AHRC,21/05/2018,T&S UK - Public Transport,PSU Project Office,Redfern Travel Ltd,98189793,66,T&S UK - Public Transport
BEIS,UKRI - AHRC,21/05/2018,T&S UK - Public Transport,PSU Project Office,Redfern Travel Ltd,98189793,97.7,T&S UK - Public Transport
BEIS,UKRI - AHRC,21/05/2018,T&S UK - Public Transport,PSU Project Office,Redfern Travel Ltd,98189793,1,T&S UK - Public Transport
BEIS,UKRI - AHRC,21/05/2018,T&S UK - Public Transport,PSU Project Office,Redfern Travel Ltd,98189793,100.7,T&S UK - Public Transport
BEIS,UKRI - AHRC,21/05/2018,T&S UK - Public Transport,PSU Project Office,Redfern Travel Ltd,98189793,160,T&S UK - Public Transport
BEIS,UKRI - AHRC,21/05/2018,T&S UK - Public Transport,PSU Project Office,Redfern Travel Ltd,98189793,111,T&S UK - Public Transport
BEIS,UKRI - AHRC,21/05/2018,T&S UK - Public Transport,PSU Project Office,Redfern Travel Ltd,98189793,9.8,T&S UK - Public Transport
BEIS,UKRI - AHRC,21/05/2018,T&S UK - Public Transport,PSU Project Office,Redfern Travel Ltd,98189793,63.2,T&S UK - Public Transport
BEIS,UKRI - AHRC,21/05/2018,T&S UK - Public Transport,PSU Project Office,Redfern Travel Ltd,98189793,12.1,T&S UK - Public Transport
BEIS,UKRI - AHRC,21/05/2018,T&S UK - Public Transport,PSU Project Office,Redfern Travel Ltd,98189793,184.7,T&S UK - Public Transport
BEIS,UKRI - AHRC,21/05/2018,T&S UK - Public Transport,SMT,Redfern Travel Ltd,98189793,133.6,T&S UK - Public Transport
BEIS,UKRI - AHRC,21/05/2018,T&S UK - Public Transport,SMT,Redfern Travel Ltd,98189793,1,T&S UK - Public Transport
BEIS,UKRI - AHRC,21/05/2018,T&S UK - Public Transport,SMT,Redfern Travel Ltd,98189793,39.8,T&S UK - Public Transport
BEIS,UKRI - AHRC,21/05/2018,T&S UK - Public Transport,SMT,Redfern Travel Ltd,98189793,172,T&S UK - Public Transport
BEIS,UKRI - AHRC,21/05/2018,T&S UK - Public Transport,SMT,Redfern Travel Ltd,98189793,1,T&S UK - Public Transport
BEIS,UKRI - AHRC,21/05/2018,T&S UK - Public Transport,SMT,Redfern Travel Ltd,98189793,38.2,T&S UK - Public Transport
BEIS,UKRI - AHRC,21/05/2018,T&S UK - Public Transport,SMT,Redfern Travel Ltd,98189793,25.4,T&S UK - Public Transport
BEIS,UKRI - AHRC,21/05/2018,T&S UK - Public Transport,SMT,Redfern Travel Ltd,98189793,1,T&S UK - Public Transport
BEIS,UKRI - AHRC,21/05/2018,T&S UK - Public Transport,SMT,Redfern Travel Ltd,98189793,74.4,T&S UK - Public Transport
BEIS,UKRI - AHRC,21/05/2018,T&S UK - Public Transport,SMT,Redfern Travel Ltd,98189793,1,T&S UK - Public Transport
BEIS,UKRI - AHRC,21/05/2018,T&S UK - Public Transport,SMT,Redfern Travel Ltd,98189793,39.8,T&S UK - Public Transport
BEIS,UKRI - AHRC,21/05/2018,T&S UK - Public Transport,SMT,Redfern Travel Ltd,98189793,172,T&S UK - Public Transport
BEIS,UKRI - AHRC,21/05/2018,T&S UK - Public Transport,SMT,Redfern Travel Ltd,98189793,13,T&S UK - Public Transport
BEIS,UKRI - AHRC,21/05/2018,T&S UK - Public Transport,SMT,Redfern Travel Ltd,98189793,94.7,T&S UK - Public Transport
BEIS,UKRI - AHRC,21/05/2018,T&S UK - Public Transport,SMT,Redfern Travel Ltd,98189793,105.7,T&S UK - Public Transport
BEIS,UKRI - AHRC,21/05/2018,T&S UK - Public Transport,SMT,Redfern Travel Ltd,98189793,94.7,T&S UK - Public Transport
BEIS,UKRI - AHRC,21/05/2018,T&S UK - Public Transport,SMT,Redfern Travel Ltd,98189793,79,T&S UK - Public Transport
BEIS,UKRI - AHRC,21/05/2018,T&S UK - Public Transport,SMT,Redfern Travel Ltd,98189793,-22.9,T&S UK - Public Transport
BEIS,UKRI - AHRC,21/05/2018,T&S UK - Public Transport,SMT,Redfern Travel Ltd,98189793,19,T&S UK - Public Transport
BEIS,UKRI - AHRC,21/05/2018,T&S UK - Public Transport,SMT,Redfern Travel Ltd,98189793,94.7,T&S UK - Public Transport
BEIS,UKRI - AHRC,21/05/2018,T&S UK - Public Transport,SMT,Redfern Travel Ltd,98189793,211.4,T&S UK - Public Transport
BEIS,UKRI - AHRC,21/05/2018,T&S UK - Public Transport,SMT,Redfern Travel Ltd,98189793,94.7,T&S UK - Public Transport
BEIS,UKRI - AHRC,21/05/2018,T&S UK - Public Transport,SMT,Redfern Travel Ltd,98189793,33.9,T&S UK - Public Transport
BEIS,UKRI - AHRC,21/05/2018,T&S UK - Public Transport,SMT,Redfern Travel Ltd,98189793,1,T&S UK - Public Transport
BEIS,UKRI - AHRC,21/05/2018,T&S UK - Public Transport,SMT,Redfern Travel Ltd,98189793,20.8,T&S UK - Public Transport
BEIS,UKRI - AHRC,21/05/2018,T&S UK - Public Transport,SMT,Redfern Travel Ltd,98189793,94.7,T&S UK - Public Transport
BEIS,UKRI - AHRC,21/05/2018,T&S UK - Public Transport,SMT,Redfern Travel Ltd,98189793,94.7,T&S UK - Public Transport
BEIS,UKRI - AHRC,21/05/2018,T&S UK - Public Transport,SMT,Redfern Travel Ltd,98189793,105,T&S UK - Public Transport
BEIS,UKRI - AHRC,21/05/2018,T&S UK - Public Transport,SMT,Redfern Travel Ltd,98189793,45.2,T&S UK - Public Transport
BEIS,UKRI - AHRC,21/05/2018,T&S UK - Public Transport,SMT,Redfern Travel Ltd,98189793,133.6,T&S UK - Public Transport
BEIS,UKRI - AHRC,21/05/2018,T&S UK - Public Transport,SMT,Redfern Travel Ltd,98189793,63.2,T&S UK - Public Transport
BEIS,UKRI - AHRC,21/05/2018,T&S UK - Public Transport,SMT,Redfern Travel Ltd,98189793,24.8,T&S UK - Public Transport
BEIS,UKRI - AHRC,21/05/2018,T&S UK - Public Transport,SMT,Redfern Travel Ltd,98189793,102,T&S UK - Public Transport
BEIS,UKRI - AHRC,21/05/2018,T&S UK - Public Transport,SMT,Redfern Travel Ltd,98189793,94.7,T&S UK - Public Transport
BEIS,UKRI - AHRC,21/05/2018,T&S UK - Public Transport,SMT,Redfern Travel Ltd,98189793,82.4,T&S UK - Public Transport
BEIS,UKRI - AHRC,21/05/2018,T&S UK - Public Transport,SMT,Redfern Travel Ltd,98189793,12.3,T&S UK - Public Transport
BEIS,UKRI - AHRC,21/05/2018,T&S UK - Public Transport,SMT,Redfern Travel Ltd,98189793,1,T&S UK - Public Transport
BEIS,UKRI - AHRC,21/05/2018,T&S UK - Public Transport,SMT,Redfern Travel Ltd,98189793,17.1,T&S UK - Public Transport
BEIS,UKRI - AHRC,21/05/2018,T&S UK - Public Transport,SMT,Redfern Travel Ltd,98189793,105,T&S UK - Public Transport
BEIS,UKRI - AHRC,21/05/2018,T&S UK - Public Transport,SMT,Redfern Travel Ltd,98189793,19.9,T&S UK - Public Transport
BEIS,UKRI - AHRC,21/05/2018,T&S UK - Public Transport,SMT,Redfern Travel Ltd,98189793,23.9,T&S UK - Public Transport
BEIS,UKRI - AHRC,21/05/2018,T&S UK - Public Transport,SMT,Redfern Travel Ltd,98189793,13.4,T&S UK - Public Transport
BEIS,UKRI - AHRC,21/05/2018,T&S UK - Public Transport,SMT,Redfern Travel Ltd,98189793,2,T&S UK - Public Transport
BEIS,UKRI - AHRC,21/05/2018,T&S UK - Public Transport,SMT,Redfern Travel Ltd,98189793,13.4,T&S UK - Public Transport
BEIS,UKRI - AHRC,21/05/2018,T&S UK - Public Transport,SMT,Redfern Travel Ltd,98189793,57.5,T&S UK - Public Transport
BEIS,UKRI - AHRC,21/05/2018,T&S UK - Public Transport,Skills,Redfern Travel Ltd,98189793,46.8,T&S UK - Public Transport
BEIS,UKRI - AHRC,21/05/2018,T&S UK - Public Transport,Skills,Redfern Travel Ltd,98189793,46.3,T&S UK - Public Transport
BEIS,UKRI - AHRC,21/05/2018,T&S UK - Public Transport,Skills,Redfern Travel Ltd,98189793,8.8,T&S UK - Public Transport
BEIS,UKRI - AHRC,21/05/2018,T&S UK - Public Transport,Skills,Redfern Travel Ltd,98189793,34.5,T&S UK - Public Transport
BEIS,UKRI - AHRC,21/05/2018,T&S UK - Public Transport,"Strategic Planning, Evidence & Inpact (SPEI)",Redfern Travel Ltd,98189793,52.6,T&S UK - Public Transport
BEIS,UKRI - AHRC,21/05/2018,T&S UK - Public Transport,"Strategic Planning, Evidence & Inpact (SPEI)",Redfern Travel Ltd,98189793,139.6,T&S UK - Public Transport
BEIS,UKRI - AHRC,22/05/2018,Agency Staff,Finance,Hays Specialist Recruitment Ltd,98190434,2138.21,Agency Staff
BEIS,UKRI - AHRC,22/05/2018,Conferences & Seminars,"Histories,Culture & Heritage",Calder Conference Ltd,98190317,960,Conferences & Seminars
BEIS,UKRI - AHRC,22/05/2018,Printing & Stationery,PSU Project Office,Banner Group Ltd,98183415,1.14,Printing & Stationery
BEIS,UKRI - AHRC,22/05/2018,Printing & Stationery,PSU Project Office,Banner Group Ltd,98183416,4.32,Printing & Stationery
BEIS,UKRI - AHRC,22/05/2018,Printing & Stationery,PSU Project Office,Banner Group Ltd,98183416,4.32,Printing & Stationery
BEIS,UKRI - AHRC,22/05/2018,Printing & Stationery,PSU Project Office,Banner Group Ltd,98183416,4.32,Printing & Stationery
BEIS,UKRI - AHRC,22/05/2018,Printing & Stationery,PSU Project Office,Banner Group Ltd,98183416,3.65,Printing & Stationery
BEIS,UKRI - AHRC,22/05/2018,Printing & Stationery,PSU Project Office,Banner Group Ltd,98183416,4.7,Printing & Stationery
BEIS,UKRI - AHRC,22/05/2018,Printing & Stationery,PSU Project Office,Banner Group Ltd,98183416,10.94,Printing & Stationery
BEIS,UKRI - AHRC,22/05/2018,Printing & Stationery,PSU Project Office,Banner Group Ltd,98183416,3.79,Printing & Stationery
BEIS,UKRI - AHRC,22/05/2018,Printing & Stationery,PSU Project Office,VWR International Ltd,98185002,19.13,Printing & Stationery
BEIS,UKRI - AHRC,22/05/2018,Printing & Stationery,PSU Project Office,Banner Group Ltd,98188500,13.75,Printing & Stationery
BEIS,UKRI - AHRC,23/05/2018,Advertising & Promotion,Communications,Firebird Films Ltd,98190846,2508,Advertising & Promotion
BEIS,UKRI - AHRC,23/05/2018,Catering Contracts,HR,Officedrop Ltd,98190886,144,Catering Contracts
BEIS,UKRI - AHRC,23/05/2018,Health & Safety (inc. Medicals & Opticians),Corporate Services,Swindon Occupational Medical Services Ltd,98190924,1800,Health & Safety (inc. Medicals & Opticians)
BEIS,UKRI - AHRC,23/05/2018,Printing & Stationery,PSU Project Office,VWR International Ltd,98190885,19.13,Printing & Stationery
BEIS,UKRI - AHRC,23/05/2018,Printing & Stationery,PSU Project Office,VWR International Ltd,98190885,19.13,Printing & Stationery
BEIS,UKRI - AHRC,23/05/2018,Printing & Stationery,PSU Project Office,VWR International Ltd,98190890,19.13,Printing & Stationery
BEIS,UKRI - AHRC,24/05/2018,Advertising & Promotion,Communications,Sophie Toumazis T/A TPR Media Consultants,98178344,2310,Advertising & Promotion
BEIS,UKRI - AHRC,24/05/2018,Catering Contracts,HR,Officedrop Ltd,98190884,192,Catering Contracts
BEIS,UKRI - AHRC,24/05/2018,Contract Staff,PSU Project Office,Hays Specialist Recruitment Ltd,98181344,3027.78,Contract Staff
BEIS,UKRI - AHRC,24/05/2018,Contract Staff,PSU Project Office,Hays Specialist Recruitment Ltd,98189833,3027.78,Contract Staff
BEIS,UKRI - AHRC,24/05/2018,Contract Staff,PSU Project Office,Hays Specialist Recruitment Ltd,98192201,2422.22,Contract Staff
BEIS,UKRI - AHRC,24/05/2018,Health & Safety (inc. Medicals & Opticians),Corporate Services,Banner Group Ltd,98192080,37.92,Health & Safety (inc. Medicals & Opticians)
BEIS,UKRI - AHRC,24/05/2018,Hospitality,Creative Arts & Digital Humanities,Watershed Trading Ltd,98183010,171.36,Hospitality
BEIS,UKRI - AHRC,24/05/2018,T&S UK - Parking Tolls Congestion Charges,"Histories,Culture & Heritage",Unspecified,98193549,16.8,T&S UK - Parking Tolls Congestion Charges
BEIS,UKRI - AHRC,24/05/2018,T&S UK - Subsistence,Communications,Unspecified,98193546,9.85,T&S UK - Subsistence
BEIS,UKRI - AHRC,24/05/2018,T&S UK - Subsistence,Communications,Unspecified,98193546,5.3,T&S UK - Subsistence
BEIS,UKRI - AHRC,24/05/2018,T&S UK - Subsistence,Communications,Unspecified,98193547,9.85,T&S UK - Subsistence
BEIS,UKRI - AHRC,24/05/2018,T&S UK - Subsistence,Communications,Unspecified,98193547,12.7,T&S UK - Subsistence
BEIS,UKRI - AHRC,24/05/2018,T&S UK - Subsistence,Communications,Unspecified,98193547,5,T&S UK - Subsistence
BEIS,UKRI - AHRC,24/05/2018,T&S UK - Subsistence,Creative Arts & Digital Humanities,Unspecified,98193548,15.7,T&S UK - Subsistence
BEIS,UKRI - AHRC,24/05/2018,T&S UK - Subsistence,Creative Arts & Digital Humanities,Unspecified,98193548,6.35,T&S UK - Subsistence
BEIS,UKRI - AHRC,24/05/2018,Voluntary Deductions,Balance Sheet,Swindon Office Sports and Social Club,98185351,94,Voluntary Deductions
BEIS,UKRI - AHRC,25/05/2018,Agency Staff,Finance,Hays Specialist Recruitment Ltd,98192206,2405.48,Agency Staff
BEIS,UKRI - AHRC,25/05/2018,Agency Staff,Finance,Hays Specialist Recruitment Ltd,98192206,267.28,Agency Staff
BEIS,UKRI - AHRC,25/05/2018,Agency Staff,IS,Capita Business Services Ltd,98192654,1020.1,Agency Staff
BEIS,UKRI - AHRC,25/05/2018,Conferences & Seminars,Industrial Strategy Challenge Fund (ISCF) - Creative Clusters,Calder Conference Ltd,98193912,223,Conferences & Seminars
BEIS,UKRI - AHRC,25/05/2018,Conferences & Seminars,Creative Arts & Digital Humanities,Calder Conference Ltd,98193913,1,Conferences & Seminars
BEIS,UKRI - AHRC,25/05/2018,Conferences & Seminars,PSU Project Office,Unspecified,98194019,340.69,Conferences & Seminars
BEIS,UKRI - AHRC,25/05/2018,T&S UK - Other Charges,PSU Project Office,Unspecified,98194019,9.37,T&S UK - Other Charges
BEIS,UKRI - AHRC,25/05/2018,T&S UK - Public Transport,Creative Arts & Digital Humanities,Unspecified,98194018,11,T&S UK - Public Transport
BEIS,UKRI - AHRC,25/05/2018,T&S UK - Public Transport,Creative Arts & Digital Humanities,Unspecified,98194018,12.3,T&S UK - Public Transport
BEIS,UKRI - AHRC,25/05/2018,T&S UK - Subsistence,Creative Arts & Digital Humanities,Unspecified,98194017,4.45,T&S UK - Subsistence
BEIS,UKRI - AHRC,25/05/2018,T&S UK - Subsistence,Creative Arts & Digital Humanities,Unspecified,98194017,9.9,T&S UK - Subsistence
BEIS,UKRI - AHRC,25/05/2018,T&S UK - Subsistence,Creative Arts & Digital Humanities,Unspecified,98194018,17.44,T&S UK - Subsistence
BEIS,UKRI - AHRC,30/05/2018,Conferences & Seminars,Industrial Strategy Challenge Fund (ISCF) - Creative Clusters,Calder Conference Ltd,98193003,1171.74,Conferences & Seminars
BEIS,UKRI - AHRC,30/05/2018,Meetings & Catering,"Languages,Literature & International Engagement",Baxter Storey Ltd,98195599,240.24,Meetings & Catering
BEIS,UKRI - AHRC,30/05/2018,Meetings & Catering,SMT,Baxter Storey Ltd,98195599,122.7,Meetings & Catering
BEIS,UKRI - AHRC,30/05/2018,Recruitment Costs,Corporate Services,Onefix Recruitment Ltd,98195450,316.5,Recruitment Costs
BEIS,UKRI - AHRC,30/05/2018,Recruitment Costs,Corporate Services,Onefix Recruitment Ltd,98195451,316.5,Recruitment Costs
BEIS,UKRI - AHRC,30/05/2018,Recruitment Costs,HR,Onefix Recruitment Ltd,98195452,111,Recruitment Costs
BEIS,UKRI - AHRC,30/05/2018,Recruitment Costs,Finance,Onefix Recruitment Ltd,98195454,111,Recruitment Costs
BEIS,UKRI - AHRC,30/05/2018,T&S UK - Other Charges,"Languages,Literature & International Engagement",Unspecified,98195815,5,T&S UK - Other Charges
BEIS,UKRI - AHRC,30/05/2018,T&S UK - Public Transport,"Languages,Literature & International Engagement",Unspecified,98195815,24.9,T&S UK - Public Transport
BEIS,UKRI - AHRC,30/05/2018,T&S UK - Public Transport,"Languages,Literature & International Engagement",Unspecified,98195815,2.4,T&S UK - Public Transport
BEIS,UKRI - AHRC,30/05/2018,T&S UK - Subsistence,"Languages,Literature & International Engagement",Unspecified,98195815,7.59,T&S UK - Subsistence
BEIS,UKRI - AHRC,30/05/2018,T&S UK - Subsistence,"Languages,Literature & International Engagement",Unspecified,98195815,29.51,T&S UK - Subsistence
BEIS,UKRI - AHRC,30/05/2018,T&S UK - Subsistence,"Languages,Literature & International Engagement",Unspecified,98195815,12.34,T&S UK - Subsistence
BEIS,UKRI - AHRC,31/05/2018,Contract Staff,PSU JRS,Capita Business Services Ltd,98192657,1747.3,Contract Staff
BEIS,UKRI - AHRC,31/05/2018,Marketing & PR,Communications,Matthew Ford,98195664,3400,Marketing & PR
BEIS,UKRI - AHRC,31/05/2018,Provisions ( Food etc),HR,Banner Group Ltd,98194249,3.74,Provisions ( Food etc)
BEIS,UKRI - AHRC,31/05/2018,Provisions ( Food etc),HR,Banner Group Ltd,98194249,20.59,Provisions ( Food etc)
BEIS,UKRI - AHRC,31/05/2018,Provisions ( Food etc),HR,Banner Group Ltd,98195349,3.74,Provisions ( Food etc)
BEIS,UKRI - AHRC,31/05/2018,Purchase of non capital equipment,HR,Banner Group Ltd,98194249,23.3,Purchase of non capital equipment
BEIS,UKRI - AHRC,31/05/2018,Purchase of non capital equipment,HR,Banner Group Ltd,98195349,11.65,Purchase of non capital equipment
BEIS,UKRI - AHRC,31/05/2018,Research Grant Expenditure,HERA Joint Research Programme,Irish Research Council,98191362,640778.7,Research Grant Expenditure
BEIS,UKRI - AHRC,31/05/2018,Staff Training,Business Process & Analysis,Inside Edge Media Training Ltd,98139235,796.43,Staff Training
BEIS,UKRI - AHRC,31/05/2018,Staff Training,Communications,Inside Edge Media Training Ltd,98139235,1800,Staff Training
BEIS,UKRI - BBSRC,01/05/2018,Books Professional Journals & Guides,FG - Accounts & Business Planning,Croner-i Ltd,98175760,100,Books Professional Journals & Guides
BEIS,UKRI - BBSRC,01/05/2018,Legal & Professional Services,FG - Estates,MORTON FRASER LLP,98175571,900,Legal & Professional Services
BEIS,UKRI - BBSRC,01/05/2018,Non-staff travel and subsistance,Science Group - Delivery Function,Non Employee Expenses Supplier,98175666,86.2,Non staff Travel and Subsistence
BEIS,UKRI - BBSRC,01/05/2018,Non-staff travel and subsistance,Science Group - Delivery Function,Non Employee Expenses Supplier,98175667,27,Non staff Travel and Subsistence
BEIS,UKRI - BBSRC,01/05/2018,Non-staff travel and subsistance,Innovation and Skills Group CDSU,Non Employee Expenses Supplier,98175669,103.77,Non staff Travel and Subsistence
BEIS,UKRI - BBSRC,01/05/2018,Non-staff travel and subsistance,Innovation and Skills Group CDSU,Non Employee Expenses Supplier,98175670,97.2,Non staff Travel and Subsistence
BEIS,UKRI - BBSRC,01/05/2018,Non-staff travel and subsistance,CIMG - External Relations,Non Employee Expenses Supplier,98175671,70.5,Non staff Travel and Subsistence
BEIS,UKRI - BBSRC,01/05/2018,Other Programme Costs,Innovation and Skills Group,Non Employee Expenses Supplier,98175668,69.3,Other Programme Costs
BEIS,UKRI - BBSRC,01/05/2018,Postage & Courier Services,JBOS - Post Room,Neopost Ltd,98174082,30000,Postage & Courier Services
BEIS,UKRI - BBSRC,01/05/2018,Security Services,JBOS - Maintenance,Id Management Systems,98175533,9.54,Security Services
BEIS,UKRI - BBSRC,01/05/2018,Security Services,JBOS - Maintenance,Id Management Systems,98175533,351.36,Security Services
BEIS,UKRI - BBSRC,01/05/2018,T&S Overseas - Public Transport,CE - IRU,Unspecified,98175836,68.33,T&S Overseas - Public Transport
BEIS,UKRI - BBSRC,01/05/2018,T&S Overseas - Subsistence,CE - IRU,Unspecified,98175836,15,T&S Overseas - Subsistence
BEIS,UKRI - BBSRC,01/05/2018,T&S Overseas - Subsistence,CE - IRU,Unspecified,98175836,3.04,T&S Overseas - Subsistence
BEIS,UKRI - BBSRC,01/05/2018,T&S UK - Other Charges,Science Group,Unspecified,98175839,5.9,T&S UK - Other Charges
BEIS,UKRI - BBSRC,01/05/2018,T&S UK - Public Transport,Science Group,Unspecified,98175834,10,T&S UK - Public Transport
BEIS,UKRI - BBSRC,01/05/2018,T&S UK - Public Transport,CE - IRU,Unspecified,98175835,34.7,T&S UK - Public Transport
BEIS,UKRI - BBSRC,01/05/2018,T&S UK - Public Transport,Innovation and Skills Group,Unspecified,98175840,11.2,T&S UK - Public Transport
BEIS,UKRI - BBSRC,01/05/2018,T&S UK - Subsistence,Innovation and Skills Group,Unspecified,98175833,8.99,T&S UK - Subsistence
BEIS,UKRI - BBSRC,01/05/2018,T&S UK - Subsistence,Innovation and Skills Group,Unspecified,98175833,10.75,T&S UK - Subsistence
BEIS,UKRI - BBSRC,01/05/2018,T&S UK - Subsistence,Innovation and Skills Group,Unspecified,98175833,5,T&S UK - Subsistence
BEIS,UKRI - BBSRC,01/05/2018,T&S UK - Subsistence,CE - IRU,Unspecified,98175835,5,T&S UK - Subsistence
BEIS,UKRI - BBSRC,01/05/2018,T&S UK - Subsistence,CE - IRU,Unspecified,98175835,2.4,T&S UK - Subsistence
BEIS,UKRI - BBSRC,01/05/2018,T&S UK - Subsistence,Science Group,Unspecified,98175839,45.3,T&S UK - Subsistence
BEIS,UKRI - BBSRC,01/05/2018,T&S UK - Subsistence,Innovation and Skills Group,Unspecified,98175840,5,T&S UK - Subsistence
BEIS,UKRI - BBSRC,02/05/2018,Agency Staff,PDG - UKCDS,Capita Business Services Ltd,98166848,320.25,Agency Staff
BEIS,UKRI - BBSRC,02/05/2018,Agency Staff,PDG - UKCDS,Capita Business Services Ltd,98166848,103.54,Agency Staff
BEIS,UKRI - BBSRC,02/05/2018,Books Professional Journals & Guides,CE - CPS,New Scientist Ltd,98176675,298,Books Professional Journals & Guides
BEIS,UKRI - BBSRC,02/05/2018,Computer Software,CE - CPS,Indiana University,98175740,5371.19,Computer Software
BEIS,UKRI - BBSRC,02/05/2018,Computer Software,CE - CPS,Indiana University,98177331,5371.19,Computer Software
BEIS,UKRI - BBSRC,02/05/2018,Council & Committee Honoraria,Innovation and Skills Group CDSU,Biosenze Consulting Ltd,98177315,436.8,Non staff Travel and Subsistence
BEIS,UKRI - BBSRC,02/05/2018,Freight Charges,CIMG - Director,Id Management Systems,98177186,7.95,Freight Charges
BEIS,UKRI - BBSRC,02/05/2018,Freight Charges,CIMG - Director,Id Management Systems,98177186,1.59,Freight Charges
BEIS,UKRI - BBSRC,02/05/2018,Health & Safety (inc. Medicals & Opticians),JBOS Health and Safety,Posturite Ltd,98177317,201.59,Health & Safety (inc. Medicals & Opticians)
BEIS,UKRI - BBSRC,02/05/2018,Non-staff travel and subsistance,European Initiatives,Non Employee Expenses Supplier,98175651,219,Non staff Travel and Subsistence
BEIS,UKRI - BBSRC,02/05/2018,Non-staff travel and subsistance,European Initiatives,Non Employee Expenses Supplier,98175652,384.13,Non staff Travel and Subsistence
BEIS,UKRI - BBSRC,02/05/2018,Non-staff travel and subsistance,Science Group,Non Employee Expenses Supplier,98175653,795.47,Non staff Travel and Subsistence
BEIS,UKRI - BBSRC,02/05/2018,Non-staff travel and subsistance,Science Group,Non Employee Expenses Supplier,98175676,1132.57,Non staff Travel and Subsistence
BEIS,UKRI - BBSRC,02/05/2018,Other Programme Costs,CE - IRU,Professor Richard Flavell,98177156,7306.7,Other Programme Costs
BEIS,UKRI - BBSRC,02/05/2018,Printing & Stationery,CIMG - Director,Id Management Systems,98177186,38.4,Printing & Stationery
BEIS,UKRI - BBSRC,02/05/2018,Research Institutes - Capital Grants: Major Works,Pirbright,The Pirbright Institute,98177540,246725.28,Research Institutes - Capital Grants: Major Works
BEIS,UKRI - BBSRC,02/05/2018,T&S Overseas - Other Charges,CE - IRU,Unspecified,98177527,6.7,T&S Overseas - Other Charges
BEIS,UKRI - BBSRC,02/05/2018,T&S Overseas - Public Transport,CE - IRU,Unspecified,98177527,100,T&S Overseas - Public Transport
BEIS,UKRI - BBSRC,02/05/2018,T&S Overseas - Public Transport,CE - IRU,Unspecified,98177527,5.53,T&S Overseas - Public Transport
BEIS,UKRI - BBSRC,02/05/2018,T&S Overseas - Subsistence,CE - IRU,Unspecified,98177527,30,T&S Overseas - Subsistence
BEIS,UKRI - BBSRC,02/05/2018,T&S Overseas - Subsistence,CE - IRU,Unspecified,98177527,12.34,T&S Overseas - Subsistence
BEIS,UKRI - BBSRC,02/05/2018,T&S Overseas - Subsistence,CE - IRU,Unspecified,98177527,2.95,T&S Overseas - Subsistence
BEIS,UKRI - BBSRC,02/05/2018,T&S UK - Mileage,CIMG - Programme Office,Unspecified,98177538,35.55,T&S UK - Mileage
BEIS,UKRI - BBSRC,02/05/2018,T&S UK - Public Transport,CE - IRU,Unspecified,98177528,8,T&S UK - Public Transport
BEIS,UKRI - BBSRC,02/05/2018,T&S UK - Public Transport,FG - Director,Unspecified,98177532,14,T&S UK - Public Transport
BEIS,UKRI - BBSRC,02/05/2018,T&S UK - Public Transport,FG - Director,Unspecified,98177532,4.9,T&S UK - Public Transport
BEIS,UKRI - BBSRC,02/05/2018,T&S UK - Public Transport,European Initiatives,Unspecified,98177533,7,T&S UK - Public Transport
BEIS,UKRI - BBSRC,02/05/2018,T&S UK - Subsistence,CE - IRU,Unspecified,98177528,9.64,T&S UK - Subsistence
BEIS,UKRI - BBSRC,02/05/2018,T&S UK - Subsistence,CIMG - External Relations,Unspecified,98177530,11.99,T&S UK - Subsistence
BEIS,UKRI - BBSRC,02/05/2018,T&S UK - Subsistence,CIMG - External Relations,Unspecified,98177530,5.9,T&S UK - Subsistence
BEIS,UKRI - BBSRC,02/05/2018,T&S UK - Subsistence,FG - Director,Unspecified,98177532,25,T&S UK - Subsistence
BEIS,UKRI - BBSRC,02/05/2018,T&S UK - Subsistence,FG - Director,Unspecified,98177532,5.09,T&S UK - Subsistence
BEIS,UKRI - BBSRC,02/05/2018,T&S UK - Subsistence,European Initiatives,Unspecified,98177533,6.3,T&S UK - Subsistence
BEIS,UKRI - BBSRC,02/05/2018,T&S UK - Subsistence,European Initiatives,Unspecified,98177533,5,T&S UK - Subsistence
BEIS,UKRI - BBSRC,02/05/2018,T&S UK - Subsistence,Science Group,Unspecified,98177536,9.7,T&S UK - Subsistence
BEIS,UKRI - BBSRC,02/05/2018,T&S UK - Vehicle Hire,Science Group,Unspecified,98177529,27.1,T&S UK - Vehicle Hire
BEIS,UKRI - BBSRC,02/05/2018,T&S UK - Vehicle Hire,FG - Estates,Unspecified,98177537,19.85,T&S UK - Vehicle Hire
BEIS,UKRI - BBSRC,03/05/2018,Conferences & Seminars,PDG - Director,Calder Conference Ltd,98176958,190,Conferences & Seminars
BEIS,UKRI - BBSRC,03/05/2018,Health & Safety (inc. Medicals & Opticians),JBOS Health and Safety,Posturite Ltd,98177777,81.55,Health & Safety (inc. Medicals & Opticians)
BEIS,UKRI - BBSRC,03/05/2018,Health & Safety (inc. Medicals & Opticians),PDG - Director,Posturite Ltd,98177785,503.98,Health & Safety (inc. Medicals & Opticians)
BEIS,UKRI - BBSRC,03/05/2018,Health & Safety (inc. Medicals & Opticians),PDG - Director,Posturite Ltd,98177785,-16.8,Health & Safety (inc. Medicals & Opticians)
BEIS,UKRI - BBSRC,03/05/2018,Health & Safety (inc. Medicals & Opticians),PDG - Director,Posturite Ltd,98177785,-84,Health & Safety (inc. Medicals & Opticians)
BEIS,UKRI - BBSRC,03/05/2018,Recruitment Costs,PDG - Director,Agenda Resource Management Ltd,98177878,155.91,Recruitment Costs
BEIS,UKRI - BBSRC,03/05/2018,Research Institutes - Capital Grants: Major Works,Pirbright,The Pirbright Institute,98176818,61897.2,Research Institutes - Capital Grants: Major Works
BEIS,UKRI - BBSRC,03/05/2018,Storage & Archiving Costs,CIMG - Information Management,Iron Mountain (UK) PLC,98176991,551.93,Storage & Archiving Costs
BEIS,UKRI - BBSRC,03/05/2018,T&S UK - Other Charges,CIMG - Programme Office,Unspecified,98178149,21.88,T&S UK - Other Charges
BEIS,UKRI - BBSRC,03/05/2018,T&S UK - Other Charges,FG - RCUK Assurance,Unspecified,98178152,5.9,T&S UK - Other Charges
BEIS,UKRI - BBSRC,03/05/2018,T&S UK - Other Charges,PDG - Director,Unspecified,98178154,10,T&S UK - Other Charges
BEIS,UKRI - BBSRC,03/05/2018,T&S UK - Parking Tolls Congestion Charges,CIMG - Programme Office,Unspecified,98178149,5.6,T&S UK - Parking Tolls Congestion Charges
BEIS,UKRI - BBSRC,03/05/2018,T&S UK - Parking Tolls Congestion Charges,Innovation and Skills Group,Unspecified,98178153,12,T&S UK - Parking Tolls Congestion Charges
BEIS,UKRI - BBSRC,03/05/2018,T&S UK - Public Transport,FG - RCUK Assurance,Unspecified,98178152,17,T&S UK - Public Transport
BEIS,UKRI - BBSRC,03/05/2018,T&S UK - Public Transport,Innovation and Skills Group,Unspecified,98178153,62,T&S UK - Public Transport
BEIS,UKRI - BBSRC,03/05/2018,T&S UK - Public Transport,FG - Director,Unspecified,98178158,12,T&S UK - Public Transport
BEIS,UKRI - BBSRC,03/05/2018,T&S UK - Subsistence,CIMG - Programme Office,Unspecified,98178149,25,T&S UK - Subsistence
BEIS,UKRI - BBSRC,03/05/2018,T&S UK - Subsistence,CIMG - Programme Office,Unspecified,98178149,7.03,T&S UK - Subsistence
BEIS,UKRI - BBSRC,03/05/2018,T&S UK - Subsistence,CIMG - Programme Office,Unspecified,98178149,5,T&S UK - Subsistence
BEIS,UKRI - BBSRC,03/05/2018,T&S UK - Subsistence,FG - RCUK Assurance,Unspecified,98178152,59.68,T&S UK - Subsistence
BEIS,UKRI - BBSRC,03/05/2018,T&S UK - Subsistence,FG - RCUK Assurance,Unspecified,98178152,10,T&S UK - Subsistence
BEIS,UKRI - BBSRC,03/05/2018,T&S UK - Subsistence,Innovation and Skills Group,Unspecified,98178153,57.51,T&S UK - Subsistence
BEIS,UKRI - BBSRC,03/05/2018,T&S UK - Subsistence,Innovation and Skills Group,Unspecified,98178153,18.43,T&S UK - Subsistence
BEIS,UKRI - BBSRC,03/05/2018,T&S UK - Subsistence,Innovation and Skills Group,Unspecified,98178153,15,T&S UK - Subsistence
BEIS,UKRI - BBSRC,03/05/2018,T&S UK - Subsistence,Innovation and Skills Group,Unspecified,98178153,14.58,T&S UK - Subsistence
BEIS,UKRI - BBSRC,03/05/2018,T&S UK - Subsistence,FG - Director,Unspecified,98178158,6.1,T&S UK - Subsistence
BEIS,UKRI - BBSRC,03/05/2018,T&S UK - Subsistence,FG - Director,Unspecified,98178158,7.85,T&S UK - Subsistence
BEIS,UKRI - BBSRC,03/05/2018,T&S UK - Subsistence,FG - Director,Unspecified,98178158,10,T&S UK - Subsistence
BEIS,UKRI - BBSRC,03/05/2018,T&S UK - Vehicle Hire,CE - CPS,Enterprise Rent-A-Car UK Ltd,98176558,8.74,T&S UK - Vehicle Hire
BEIS,UKRI - BBSRC,03/05/2018,T&S UK - Vehicle Hire,CE - CPS,Enterprise Rent-A-Car UK Ltd,98176558,43.72,T&S UK - Vehicle Hire
BEIS,UKRI - BBSRC,03/05/2018,T&S UK - Vehicle Hire,CIMG - Programme Office,Enterprise Rent-A-Car UK Ltd,98176558,14.4,T&S UK - Vehicle Hire
BEIS,UKRI - BBSRC,03/05/2018,T&S UK - Vehicle Hire,CIMG - Programme Office,Enterprise Rent-A-Car UK Ltd,98176558,72,T&S UK - Vehicle Hire
BEIS,UKRI - BBSRC,03/05/2018,T&S UK - Vehicle Hire,FG - Director,Enterprise Rent-A-Car UK Ltd,98176558,46.12,T&S UK - Vehicle Hire
BEIS,UKRI - BBSRC,03/05/2018,T&S UK - Vehicle Hire,FG - Director,Enterprise Rent-A-Car UK Ltd,98176558,230.62,T&S UK - Vehicle Hire
BEIS,UKRI - BBSRC,03/05/2018,T&S UK - Vehicle Hire,FG - Estates,Enterprise Rent-A-Car UK Ltd,98176558,12.96,T&S UK - Vehicle Hire
BEIS,UKRI - BBSRC,03/05/2018,T&S UK - Vehicle Hire,FG - Estates,Enterprise Rent-A-Car UK Ltd,98176558,52.92,T&S UK - Vehicle Hire
BEIS,UKRI - BBSRC,03/05/2018,T&S UK - Vehicle Hire,FG - Estates,Enterprise Rent-A-Car UK Ltd,98176558,15.26,T&S UK - Vehicle Hire
BEIS,UKRI - BBSRC,03/05/2018,T&S UK - Vehicle Hire,FG - Estates,Enterprise Rent-A-Car UK Ltd,98176558,64.76,T&S UK - Vehicle Hire
BEIS,UKRI - BBSRC,03/05/2018,T&S UK - Vehicle Hire,FG - Estates,Enterprise Rent-A-Car UK Ltd,98176558,264.57,T&S UK - Vehicle Hire
BEIS,UKRI - BBSRC,03/05/2018,T&S UK - Vehicle Hire,FG - Estates,Enterprise Rent-A-Car UK Ltd,98176558,76.32,T&S UK - Vehicle Hire
BEIS,UKRI - BBSRC,03/05/2018,T&S UK - Vehicle Hire,Innovation and Skills Group,Enterprise Rent-A-Car UK Ltd,98176558,13.07,T&S UK - Vehicle Hire
BEIS,UKRI - BBSRC,03/05/2018,T&S UK - Vehicle Hire,Innovation and Skills Group,Enterprise Rent-A-Car UK Ltd,98176558,65.33,T&S UK - Vehicle Hire
BEIS,UKRI - BBSRC,03/05/2018,T&S UK - Vehicle Hire,JBOS - Administration,Enterprise Rent-A-Car UK Ltd,98176558,14.56,T&S UK - Vehicle Hire
BEIS,UKRI - BBSRC,03/05/2018,T&S UK - Vehicle Hire,JBOS - Administration,Enterprise Rent-A-Car UK Ltd,98176558,72.8,T&S UK - Vehicle Hire
BEIS,UKRI - BBSRC,03/05/2018,T&S UK - Vehicle Hire,Science Group,Enterprise Rent-A-Car UK Ltd,98176558,59.26,T&S UK - Vehicle Hire
BEIS,UKRI - BBSRC,03/05/2018,T&S UK - Vehicle Hire,Science Group,Enterprise Rent-A-Car UK Ltd,98176558,11.85,T&S UK - Vehicle Hire
BEIS,UKRI - BBSRC,03/05/2018,T&S UK - Vehicle Hire,CIMG - Programme Office,Unspecified,98178149,50,T&S UK - Vehicle Hire
BEIS,UKRI - BBSRC,03/05/2018,T&S UK - Vehicle Hire,Innovation and Skills Group,Unspecified,98178153,24.19,T&S UK - Vehicle Hire
BEIS,UKRI - BBSRC,03/05/2018,T&S UK - Vehicle Hire,CE - CPS,Unspecified,98178156,26.45,T&S UK - Vehicle Hire
BEIS,UKRI - BBSRC,04/05/2018,Computer Software Licences,CIMG - Information Systems,Rocket Software UK Limited,98178516,3676.92,Computer Software Licences
BEIS,UKRI - BBSRC,04/05/2018,General Building Maintenance,JBOS - Maintenance,NEWJAX DRAINAGE AND PROPERTY MAINTENANCE LTD,98178621,180,General Building Maintenance
BEIS,UKRI - BBSRC,04/05/2018,General Building Maintenance,JBOS - Maintenance,NEWJAX DRAINAGE AND PROPERTY MAINTENANCE LTD,98179349,1416,General Building Maintenance
BEIS,UKRI - BBSRC,04/05/2018,Grounds Maintenance,JBOS - Maintenance,Premier Farnell UK Ltd T/A Farnell Onecall,98176345,13.76,Mechanical & Electrical Maintenance
BEIS,UKRI - BBSRC,04/05/2018,Health & Safety (inc. Medicals & Opticians),PDG - Director,Swindon Occupational Medical Services Ltd,98179257,300,Health & Safety (inc. Medicals & Opticians)
BEIS,UKRI - BBSRC,04/05/2018,Other services,JBOS - Maintenance,Seven Capital (Swindon North) Ltd,98177046,40800,Non-Capital Building Construction 
BEIS,UKRI - BBSRC,04/05/2018,T&S UK - Public Transport,PDG - Director,Unspecified,98178840,18,T&S UK - Public Transport
BEIS,UKRI - BBSRC,04/05/2018,T&S UK - Vehicle Hire,JBOS Health and Safety,Cross Street Cars,98178569,52.8,T&S UK - Vehicle Hire
BEIS,UKRI - BBSRC,04/05/2018,UK - Professional Memberships & Subscriptions,Innovation and Skills Group,Bureau Van Dijk Electronic Publishing Ltd,98173804,5472,UK - Professional Memberships & Subscriptions
BEIS,UKRI - BBSRC,08/05/2018,Legal & Professional Services,FG - Estates,Veale Wasbrough Vizards,98086810,-156.36,Legal & Professional Services
BEIS,UKRI - BBSRC,08/05/2018,Legal & Professional Services,FG - Estates,Veale Wasbrough Vizards,98147140,53.58,Legal & Professional Services
BEIS,UKRI - BBSRC,08/05/2018,Legal & Professional Services,FG - Estates,Veale Wasbrough Vizards,98178591,480,Legal & Professional Services
BEIS,UKRI - BBSRC,08/05/2018,Non-staff travel and subsistance,Science Group - Delivery Function,Non Employee Expenses Supplier,98178870,79.42,Non staff Travel and Subsistence
BEIS,UKRI - BBSRC,08/05/2018,Non-staff travel and subsistance,Science Group - Delivery Function,Non Employee Expenses Supplier,98178871,217.38,Non staff Travel and Subsistence
BEIS,UKRI - BBSRC,08/05/2018,Non-staff travel and subsistance,Science Group - Delivery Function,Non Employee Expenses Supplier,98178872,126,Non staff Travel and Subsistence
BEIS,UKRI - BBSRC,08/05/2018,Non-staff travel and subsistance,Science Group - Delivery Function,Non Employee Expenses Supplier,98178873,121.8,Non staff Travel and Subsistence
BEIS,UKRI - BBSRC,08/05/2018,Non-staff travel and subsistance,Science Group - Delivery Function,Non Employee Expenses Supplier,98178874,19.7,Non staff Travel and Subsistence
BEIS,UKRI - BBSRC,08/05/2018,Non-staff travel and subsistance,Science Group - Delivery Function,Non Employee Expenses Supplier,98178875,191.35,Non staff Travel and Subsistence
BEIS,UKRI - BBSRC,08/05/2018,Non-staff travel and subsistance,Science Group - Delivery Function,Non Employee Expenses Supplier,98178876,39.3,Non staff Travel and Subsistence
BEIS,UKRI - BBSRC,08/05/2018,Non-staff travel and subsistance,Science Group - Delivery Function,Non Employee Expenses Supplier,98178877,11.6,Non staff Travel and Subsistence
BEIS,UKRI - BBSRC,08/05/2018,Non-staff travel and subsistance,Science Group - Delivery Function,Non Employee Expenses Supplier,98178878,338,Non staff Travel and Subsistence
BEIS,UKRI - BBSRC,08/05/2018,Non-staff travel and subsistance,Science Group - Delivery Function,Non Employee Expenses Supplier,98178879,173.15,Non staff Travel and Subsistence
BEIS,UKRI - BBSRC,08/05/2018,Non-staff travel and subsistance,Science Group - Delivery Function,Non Employee Expenses Supplier,98178880,135.65,Non staff Travel and Subsistence
BEIS,UKRI - BBSRC,08/05/2018,Non-staff travel and subsistance,Science Group - Delivery Function,Non Employee Expenses Supplier,98178881,41.2,Non staff Travel and Subsistence
BEIS,UKRI - BBSRC,08/05/2018,Non-staff travel and subsistance,Science Group - Delivery Function,Non Employee Expenses Supplier,98178882,236.3,Non staff Travel and Subsistence
BEIS,UKRI - BBSRC,08/05/2018,Non-staff travel and subsistance,Science Group - Delivery Function,Non Employee Expenses Supplier,98178883,231,Non staff Travel and Subsistence
BEIS,UKRI - BBSRC,08/05/2018,Non-staff travel and subsistance,Science Group - Delivery Function,Non Employee Expenses Supplier,98178884,238.1,Non staff Travel and Subsistence
BEIS,UKRI - BBSRC,08/05/2018,Non-staff travel and subsistance,Science Group - Delivery Function,Non Employee Expenses Supplier,98178885,112,Non staff Travel and Subsistence
BEIS,UKRI - BBSRC,08/05/2018,Non-staff travel and subsistance,Science Group - Delivery Function,Non Employee Expenses Supplier,98179359,464.84,Non staff Travel and Subsistence
BEIS,UKRI - BBSRC,08/05/2018,Non-staff travel and subsistance,Science Group - Delivery Function,Non Employee Expenses Supplier,98179360,224.49,Non staff Travel and Subsistence
BEIS,UKRI - BBSRC,08/05/2018,Non-staff travel and subsistance,Science Group - Delivery Function,Non Employee Expenses Supplier,98179361,292.05,Non staff Travel and Subsistence
BEIS,UKRI - BBSRC,08/05/2018,Non-staff travel and subsistance,Science Group - Delivery Function,Non Employee Expenses Supplier,98179362,145,Non staff Travel and Subsistence
BEIS,UKRI - BBSRC,08/05/2018,Non-staff travel and subsistance,Science Group - Delivery Function,Non Employee Expenses Supplier,98179363,129.19,Non staff Travel and Subsistence
BEIS,UKRI - BBSRC,08/05/2018,Non-staff travel and subsistance,Science Group - Delivery Function,Non Employee Expenses Supplier,98179364,151,Non staff Travel and Subsistence
BEIS,UKRI - BBSRC,08/05/2018,Other Programme Costs,Science Group,NCRI - National Cancer Research Institute,98181325,31614,Other Programme Costs
BEIS,UKRI - BBSRC,08/05/2018,Printing & Stationery,JBOS - Administration,Banner Group Ltd,98179485,12.67,Printing & Stationery
BEIS,UKRI - BBSRC,08/05/2018,Storage & Archiving Costs,PDG - JSS,Iron Mountain (UK) PLC,98178998,452.32,Storage & Archiving Costs
BEIS,UKRI - BBSRC,08/05/2018,Subsidiaries Expenditure,Babraham Institute,The Pirbright Institute,98179088,150000,Subsidiaries Expenditure
BEIS,UKRI - BBSRC,08/05/2018,T&S UK - Public Transport,RISD - UKRO,Unspecified,98180308,17.6,T&S UK - Public Transport
BEIS,UKRI - BBSRC,08/05/2018,T&S UK - Public Transport,CE - CPS,Unspecified,98180310,267.6,T&S UK - Public Transport
BEIS,UKRI - BBSRC,08/05/2018,T&S UK - Subsistence,RISD - UKRO,Unspecified,98180308,10,T&S UK - Subsistence
BEIS,UKRI - BBSRC,08/05/2018,T&S UK - Subsistence,RISD - UKRO,Unspecified,98180308,5,T&S UK - Subsistence
BEIS,UKRI - BBSRC,08/05/2018,T&S UK - Subsistence,RISD - UKRO,Unspecified,98180308,8.7,T&S UK - Subsistence
BEIS,UKRI - BBSRC,08/05/2018,T&S UK - Subsistence,CE - CPS,Unspecified,98180310,4.55,T&S UK - Subsistence
BEIS,UKRI - BBSRC,08/05/2018,T&S UK - Subsistence,CE - CPS,Unspecified,98180310,1.8,T&S UK - Subsistence
BEIS,UKRI - BBSRC,08/05/2018,VAT Input Tax Control (for UK VAT),Balance Sheet,Iron Mountain (UK) PLC,98178998,90.46,VAT Input Tax Control (for UK VAT)
BEIS,UKRI - BBSRC,09/05/2018,Books Professional Journals & Guides,CE - CPS,The Economist Newspaper Ltd,98181503,145,Books Professional Journals & Guides
BEIS,UKRI - BBSRC,09/05/2018,Conferences & Seminars,PDG - Director,Calder Conference Ltd,98182293,754,Staff Training
BEIS,UKRI - BBSRC,09/05/2018,Health & Safety (inc. Medicals & Opticians),PDG - Director,AM Health & Safety Ltd,98172214,99,Health & Safety (inc. Medicals & Opticians)
BEIS,UKRI - BBSRC,09/05/2018,Health & Safety (inc. Medicals & Opticians),JBOS Health and Safety,Abbey Business Equipment Ltd,98172808,538.8,Health & Safety (inc. Medicals & Opticians)
BEIS,UKRI - BBSRC,09/05/2018,Health & Safety (inc. Medicals & Opticians),JBOS Health and Safety,AM Health & Safety Ltd,98177312,135,Health & Safety (inc. Medicals & Opticians)
BEIS,UKRI - BBSRC,09/05/2018,Health & Safety (inc. Medicals & Opticians),Science Group,Unspecified,98182788,25,Health & Safety (inc. Medicals & Opticians)
BEIS,UKRI - BBSRC,09/05/2018,International Awards - Non Capital,CE - IRU,University of St Andrews,98158697,9000,International Awards - Non Capital
BEIS,UKRI - BBSRC,09/05/2018,International Awards - Non Capital,CE - IRU,University of St Andrews,98158738,39162.48,International Awards - Non Capital
BEIS,UKRI - BBSRC,09/05/2018,International Awards - Non Capital,CE - IRU,University of St Andrews,98158745,24738.99,International Awards - Non Capital
BEIS,UKRI - BBSRC,09/05/2018,International Awards - Non Capital,CE - IRU,University of St Andrews,98177092,-5002.48,International Awards - Non Capital
BEIS,UKRI - BBSRC,09/05/2018,International Awards - Non Capital,CE - IRU,University of St Andrews,98177094,-1152.6,International Awards - Non Capital
BEIS,UKRI - BBSRC,09/05/2018,Legal & Professional Services,FG - Estates,Powis Hughes Ltd,98182370,119.54,Legal & Professional Services
BEIS,UKRI - BBSRC,09/05/2018,Legal & Professional Services,FG - Estates,Powis Hughes Ltd,98182374,132.3,Legal & Professional Services
BEIS,UKRI - BBSRC,09/05/2018,Realised Gains,RISD - UKRO,UK Research Office,98182457,53711.91,Realised Gains
BEIS,UKRI - BBSRC,09/05/2018,Recruitment Costs,PDG - Director,Agenda Resource Management Ltd,98179581,155.91,Recruitment Costs
BEIS,UKRI - BBSRC,09/05/2018,Research Consumables,CE - CPS,Wageningen University,98176828,13208.64,Other Programme Costs
BEIS,UKRI - BBSRC,09/05/2018,Research Consumables,CE - CPS,INRA - Institut National De La Recherche Agronomique,98179381,6604.32,Research Grant Expenditure
BEIS,UKRI - BBSRC,09/05/2018,Research Institutes - Capital Grants: Major Works,Estates - Projects,Norwich Research Partners LLP,98182357,33452.77,Research Institutes - Capital Grants: Major Works
BEIS,UKRI - BBSRC,09/05/2018,Research Institutes - Competitive Strategic Grant,JIC,John Innes Centre,98177984,41667,Research Institutes - Competitive Strategic Grant
BEIS,UKRI - BBSRC,09/05/2018,Security Services,PDG - Director,Capita Secure Information Solutions Ltd T/A Capita Workforce Management,98182209,49855.24,Security Services
BEIS,UKRI - BBSRC,09/05/2018,Staff Training,PDG - Director,Transition15 Ltd,98171459,3600,Staff Training
BEIS,UKRI - BBSRC,09/05/2018,Staff Training,JBOS Health and Safety,St John Ambulance Wiltshire,98176124,324,Staff Training
BEIS,UKRI - BBSRC,09/05/2018,Staff Training,JBOS Health and Safety,St John Ambulance Wiltshire,98177637,232.2,Staff Training
BEIS,UKRI - BBSRC,09/05/2018,Staff Training,PDG - Director,Roffey Park Institute Ltd,98177795,1011,Staff Training
BEIS,UKRI - BBSRC,09/05/2018,Subsidiaries Expenditure,Innovation and Skills Group,University of Reading,98054172,75000,Subsidiaries Expenditure
BEIS,UKRI - BBSRC,09/05/2018,Subsidiaries Expenditure,Innovation and Skills Group,University of Reading,98139504,75000,Subsidiaries Expenditure
BEIS,UKRI - BBSRC,09/05/2018,Subsidiaries Expenditure,Innovation and Skills Group,University of Reading,98179348,-75000,Subsidiaries Expenditure
BEIS,UKRI - BBSRC,09/05/2018,Subsidiaries Expenditure,Innovation and Skills Group,University of Reading,98179351,64537.7,Subsidiaries Expenditure
BEIS,UKRI - BBSRC,10/05/2018,Books Professional Journals & Guides,CIMG - Director,PDP Companies Ltd,98183032,85,Books Professional Journals & Guides
BEIS,UKRI - BBSRC,10/05/2018,Health & Safety (inc. Medicals & Opticians),PDG - Director,BMI Healthcare Limited,98182078,117.5,Health & Safety (inc. Medicals & Opticians)
BEIS,UKRI - BBSRC,10/05/2018,Legal & Professional Services,FG - Estates,Powis Hughes Ltd,98182368,199.25,Legal & Professional Services
BEIS,UKRI - BBSRC,10/05/2018,Legal & Professional Services,FG - Estates,Powis Hughes Ltd,98182376,1394.69,Legal & Professional Services
BEIS,UKRI - BBSRC,10/05/2018,Non-Capital Building Construction,JBOS - Maintenance,Abbey Business Equipment Ltd,98155727,3864,Research Grant Expenditure
BEIS,UKRI - BBSRC,10/05/2018,Non-Capital Building Construction,JBOS - Maintenance,Interior Design And Developments,98182866,4620,Non-Capital Building Construction 
BEIS,UKRI - BBSRC,10/05/2018,Other Programme Costs,Science Group,Calder Conference Ltd,98139311,6199.99,Other Programme Costs
BEIS,UKRI - BBSRC,10/05/2018,Other Programme Costs,Innovation and Skills Group CDSU,Calder Conference Ltd,98151443,432,Other Programme Costs
BEIS,UKRI - BBSRC,10/05/2018,Other Programme Costs,Science Group,Calder Conference Ltd,98161990,6936.68,Other Programme Costs
BEIS,UKRI - BBSRC,10/05/2018,Other Programme Costs,Innovation and Skills Group,Calder Conference Ltd,98168108,13893,Other Programme Costs
BEIS,UKRI - BBSRC,10/05/2018,Other Staff Benefits,PDG - Director,BMI Healthcare Limited,98182074,782.5,Health & Safety (inc. Medicals & Opticians)
BEIS,UKRI - BBSRC,10/05/2018,Postage & Courier Services,JBOS - Post Room,Neopost Ltd,98162830,158.44,Postage & Courier Services
BEIS,UKRI - BBSRC,10/05/2018,Subsidiaries Expenditure,JIC,John Innes Centre,98154114,129588.86,Subsidiaries Expenditure
BEIS,UKRI - BBSRC,10/05/2018,Subsidiaries Expenditure,JIC,John Innes Centre,98181150,-11731.08,Subsidiaries Expenditure
BEIS,UKRI - BBSRC,10/05/2018,T&S UK - Mileage,Science Group,Unspecified,98183282,22.5,T&S UK - Mileage
BEIS,UKRI - BBSRC,10/05/2018,T&S UK - Other Charges,Innovation and Skills Group,Unspecified,98183284,4.8,T&S UK - Other Charges
BEIS,UKRI - BBSRC,10/05/2018,T&S UK - Public Transport,Science Group,Unspecified,98183282,33,T&S UK - Public Transport
BEIS,UKRI - BBSRC,10/05/2018,T&S UK - Public Transport,Innovation and Skills Group,Unspecified,98183284,68,T&S UK - Public Transport
BEIS,UKRI - BBSRC,10/05/2018,T&S UK - Public Transport,Science Group,Unspecified,98183286,6,T&S UK - Public Transport
BEIS,UKRI - BBSRC,10/05/2018,T&S UK - Subsistence,FG - RCUK Assurance,Unspecified,98183281,5.1,T&S UK - Subsistence
BEIS,UKRI - BBSRC,10/05/2018,T&S UK - Subsistence,FG - RCUK Assurance,Unspecified,98183281,5,T&S UK - Subsistence
BEIS,UKRI - BBSRC,10/05/2018,T&S UK - Subsistence,FG - RCUK Assurance,Unspecified,98183281,4.35,T&S UK - Subsistence
BEIS,UKRI - BBSRC,10/05/2018,T&S UK - Subsistence,Science Group,Unspecified,98183282,10.41,T&S UK - Subsistence
BEIS,UKRI - BBSRC,10/05/2018,T&S UK - Subsistence,Science Group,Unspecified,98183282,12.18,T&S UK - Subsistence
BEIS,UKRI - BBSRC,10/05/2018,T&S UK - Subsistence,Science Group,Unspecified,98183282,20,T&S UK - Subsistence
BEIS,UKRI - BBSRC,10/05/2018,T&S UK - Subsistence,Science Group,Unspecified,98183282,4.61,T&S UK - Subsistence
BEIS,UKRI - BBSRC,10/05/2018,T&S UK - Subsistence,Innovation and Skills Group,Unspecified,98183283,5.09,T&S UK - Subsistence
BEIS,UKRI - BBSRC,10/05/2018,T&S UK - Subsistence,Innovation and Skills Group,Unspecified,98183284,5,T&S UK - Subsistence
BEIS,UKRI - BBSRC,10/05/2018,T&S UK - Subsistence,RISD - UKRO,Unspecified,98183289,5,T&S UK - Subsistence
BEIS,UKRI - BBSRC,10/05/2018,T&S UK - Subsistence,RISD - UKRO,Unspecified,98183289,9.89,T&S UK - Subsistence
BEIS,UKRI - BBSRC,11/05/2018,Health & Safety (inc. Medicals & Opticians),JBOS Health and Safety,Posturite Ltd,98184216,23.95,Health & Safety (inc. Medicals & Opticians)
BEIS,UKRI - BBSRC,11/05/2018,Health & Safety (inc. Medicals & Opticians),Science Group - Delivery Function,Unspecified,98184760,25,Health & Safety (inc. Medicals & Opticians)
BEIS,UKRI - BBSRC,11/05/2018,Legal & Professional Services,FG - Estates,Womble Bond Dickinson LLP,98184150,387.6,Legal & Professional Services
BEIS,UKRI - BBSRC,11/05/2018,Printing & Stationery,JBOS - Administration,Banner Group Ltd,98181279,5.09,Printing & Stationery
BEIS,UKRI - BBSRC,11/05/2018,Recruitment Costs,PDG - Director,Onefix Recruitment Ltd,98182834,2562,Recruitment Costs
BEIS,UKRI - BBSRC,11/05/2018,Recruitment Costs,PDG - Director,Onefix Recruitment Ltd,98182839,2562,Recruitment Costs
BEIS,UKRI - BBSRC,11/05/2018,Recruitment Costs,PDG - Director,Warwick University Services Ltd,98183038,526.8,Recruitment Costs
BEIS,UKRI - BBSRC,11/05/2018,Recruitment Costs,PDG - Director,Warwick University Services Ltd,98183040,286.8,Recruitment Costs
BEIS,UKRI - BBSRC,11/05/2018,Staff Training,PDG - Director,Roffey Park Institute Ltd,98183467,2760,Staff Training
BEIS,UKRI - BBSRC,11/05/2018,T&S UK - Public Transport,Science Group,Unspecified,98184758,11.2,T&S UK - Public Transport
BEIS,UKRI - BBSRC,11/05/2018,T&S UK - Public Transport,Science Group,Unspecified,98184758,67.75,T&S UK - Public Transport
BEIS,UKRI - BBSRC,11/05/2018,T&S UK - Public Transport,Science Group,Unspecified,98184759,9.6,T&S UK - Public Transport
BEIS,UKRI - BBSRC,11/05/2018,T&S UK - Public Transport,RISD - UKRO,Unspecified,98184762,34.74,T&S UK - Public Transport
BEIS,UKRI - BBSRC,11/05/2018,T&S UK - Public Transport,RISD - UKRO,Unspecified,98184765,13,T&S UK - Public Transport
BEIS,UKRI - BBSRC,11/05/2018,T&S UK - Subsistence,Science Group,Unspecified,98184758,311.08,T&S UK - Subsistence
BEIS,UKRI - BBSRC,11/05/2018,T&S UK - Subsistence,Science Group,Unspecified,98184758,25,T&S UK - Subsistence
BEIS,UKRI - BBSRC,11/05/2018,T&S UK - Subsistence,RISD - UKRO,Unspecified,98184762,34.4,T&S UK - Subsistence
BEIS,UKRI - BBSRC,11/05/2018,T&S UK - Subsistence,RISD - UKRO,Unspecified,98184762,5,T&S UK - Subsistence
BEIS,UKRI - BBSRC,11/05/2018,T&S UK - Subsistence,RISD - UKRO,Unspecified,98184762,6.65,T&S UK - Subsistence
BEIS,UKRI - BBSRC,11/05/2018,T&S UK - Subsistence,Science Group,Unspecified,98184763,4.99,T&S UK - Subsistence
BEIS,UKRI - BBSRC,11/05/2018,T&S UK - Subsistence,Science Group,Unspecified,98184763,15,T&S UK - Subsistence
BEIS,UKRI - BBSRC,11/05/2018,T&S UK - Subsistence,Science Group,Unspecified,98184763,4.9,T&S UK - Subsistence
BEIS,UKRI - BBSRC,11/05/2018,T&S UK - Subsistence,RISD - UKRO,Unspecified,98184765,6.75,T&S UK - Subsistence
BEIS,UKRI - BBSRC,11/05/2018,T&S UK - Subsistence,RISD - UKRO,Unspecified,98184765,8.2,T&S UK - Subsistence
BEIS,UKRI - BBSRC,11/05/2018,T&S UK - Subsistence,RISD - UKRO,Unspecified,98184765,5,T&S UK - Subsistence
BEIS,UKRI - BBSRC,11/05/2018,T&S UK - Vehicle Hire,CIMG - External Relations,Enterprise Rent-A-Car UK Ltd,98181948,7.33,T&S UK - Vehicle Hire
BEIS,UKRI - BBSRC,11/05/2018,T&S UK - Vehicle Hire,CIMG - External Relations,Enterprise Rent-A-Car UK Ltd,98181948,36.66,T&S UK - Vehicle Hire
BEIS,UKRI - BBSRC,11/05/2018,T&S UK - Vehicle Hire,FG - Estates,Enterprise Rent-A-Car UK Ltd,98181948,38.48,T&S UK - Vehicle Hire
BEIS,UKRI - BBSRC,11/05/2018,T&S UK - Vehicle Hire,FG - Estates,Enterprise Rent-A-Car UK Ltd,98181948,30.15,T&S UK - Vehicle Hire
BEIS,UKRI - BBSRC,11/05/2018,T&S UK - Vehicle Hire,FG - Estates,Enterprise Rent-A-Car UK Ltd,98181948,162.24,T&S UK - Vehicle Hire
BEIS,UKRI - BBSRC,11/05/2018,T&S UK - Vehicle Hire,Innovation and Skills Group,Enterprise Rent-A-Car UK Ltd,98181948,8.29,T&S UK - Vehicle Hire
BEIS,UKRI - BBSRC,11/05/2018,T&S UK - Vehicle Hire,Innovation and Skills Group,Enterprise Rent-A-Car UK Ltd,98181948,41.46,T&S UK - Vehicle Hire
BEIS,UKRI - BBSRC,14/05/2018,General Building Maintenance,JBOS - Maintenance,Abbey Business Equipment Ltd,98184944,480.6,Purchase of non capital equipment
BEIS,UKRI - BBSRC,14/05/2018,GPC Clearing - BBSRC,Balance Sheet,Unspecified,98185174,111.96,GPC Clearing - BBSRC
BEIS,UKRI - BBSRC,14/05/2018,Legal & Professional Services,FG - Estates,Perfect Circle JV Ltd,98174025,39452.87,Legal & Professional Services
BEIS,UKRI - BBSRC,14/05/2018,Legal & Professional Services,FG - Estates,Perfect Circle JV Ltd,98184205,-39452.87,Legal & Professional Services
BEIS,UKRI - BBSRC,14/05/2018,Prepayments - AP USE ONLY,Balance Sheet,Reed Business Information Ltd,98183973,133,Prepayments - AP USE ONLY
BEIS,UKRI - BBSRC,14/05/2018,T&S UK - Accommodation,FG - Director,Unspecified,98185174,-224.91,T&S UK - Accommodation
BEIS,UKRI - BBSRC,14/05/2018,T&S UK - Mileage,FG - Director,Unspecified,98185175,849.5,T&S UK - Mileage
BEIS,UKRI - BBSRC,14/05/2018,T&S UK - Parking Tolls Congestion Charges,CE - Chief Executive,Unspecified,98185172,7.5,T&S UK - Parking Tolls Congestion Charges
BEIS,UKRI - BBSRC,14/05/2018,T&S UK - Parking Tolls Congestion Charges,FG - Director,Unspecified,98185174,12,T&S UK - Parking Tolls Congestion Charges
BEIS,UKRI - BBSRC,14/05/2018,T&S UK - Public Transport,CE - Chief Executive,Unspecified,98185172,28,T&S UK - Public Transport
BEIS,UKRI - BBSRC,14/05/2018,T&S UK - Public Transport,CE - Chief Executive,Unspecified,98185172,60,T&S UK - Public Transport
BEIS,UKRI - BBSRC,14/05/2018,T&S UK - Public Transport,FG - Director,Unspecified,98185174,33.5,T&S UK - Public Transport
BEIS,UKRI - BBSRC,14/05/2018,T&S UK - Public Transport,CE - IRU,Unspecified,98185176,9.5,T&S UK - Public Transport
BEIS,UKRI - BBSRC,14/05/2018,T&S UK - Subsistence,CE - Chief Executive,Unspecified,98185172,5.95,T&S UK - Subsistence
BEIS,UKRI - BBSRC,14/05/2018,T&S UK - Subsistence,CE - Chief Executive,Unspecified,98185172,27.13,T&S UK - Subsistence
BEIS,UKRI - BBSRC,14/05/2018,T&S UK - Subsistence,FG - Director,Unspecified,98185174,25,T&S UK - Subsistence
BEIS,UKRI - BBSRC,14/05/2018,T&S UK - Subsistence,FG - Director,Unspecified,98185174,100.95,T&S UK - Subsistence
BEIS,UKRI - BBSRC,14/05/2018,T&S UK - Subsistence,FG - Director,Unspecified,98185174,40,T&S UK - Subsistence
BEIS,UKRI - BBSRC,14/05/2018,T&S UK - Subsistence,FG - Director,Unspecified,98185175,5,T&S UK - Subsistence
BEIS,UKRI - BBSRC,14/05/2018,T&S UK - Subsistence,FG - RCUK Assurance,Unspecified,98185177,3.85,T&S UK - Subsistence
BEIS,UKRI - BBSRC,14/05/2018,T&S UK - Subsistence,FG - RCUK Assurance,Unspecified,98185177,5,T&S UK - Subsistence
BEIS,UKRI - BBSRC,14/05/2018,T&S UK - Subsistence,FG - RCUK Assurance,Unspecified,98185177,1.95,T&S UK - Subsistence
BEIS,UKRI - BBSRC,15/05/2018,Cleaning Services,JBOS - Cleaning,Mitie Technical Facilities Management Ltd,98152809,565.8,Cleaning Services
BEIS,UKRI - BBSRC,15/05/2018,Cleaning Services,JBOS - Cleaning,Mitie Technical Facilities Management Ltd,98174203,5638.73,Cleaning Services
BEIS,UKRI - BBSRC,15/05/2018,Conferences & Seminars,CIMG - External Relations,Bioindustry Association (BIA),98147100,9000,Conferences & Seminars
BEIS,UKRI - BBSRC,15/05/2018,Conferences & Seminars,PDG - Director,Calder Conference Ltd,98186567,420,Staff Training
BEIS,UKRI - BBSRC,15/05/2018,IT Cloud Services,CIMG - Information Systems,Softcat plc,98186515,65.45,IT Cloud Services
BEIS,UKRI - BBSRC,15/05/2018,Legal & Professional Services,FG - Estates,Perfect Circle JV Ltd,98184206,38845.09,Legal & Professional Services
BEIS,UKRI - BBSRC,15/05/2018,Non-staff travel and subsistance,CE - CPS,Non Employee Expenses Supplier,98186437,173.1,Non staff Travel and Subsistence
BEIS,UKRI - BBSRC,15/05/2018,Non-staff travel and subsistance,CE - CPS,Non Employee Expenses Supplier,98186438,18.9,Non staff Travel and Subsistence
BEIS,UKRI - BBSRC,15/05/2018,Non-staff travel and subsistance,CE - CPS,Non Employee Expenses Supplier,98186439,62.5,Non staff Travel and Subsistence
BEIS,UKRI - BBSRC,15/05/2018,Non-staff travel and subsistance,CE - CPS,Non Employee Expenses Supplier,98186440,52.49,Non staff Travel and Subsistence
BEIS,UKRI - BBSRC,15/05/2018,Non-staff travel and subsistance,CE - IRU,Non Employee Expenses Supplier,98186441,33,Non staff Travel and Subsistence
BEIS,UKRI - BBSRC,15/05/2018,Non-staff travel and subsistance,Science Group - Delivery Function,Non Employee Expenses Supplier,98186442,176.5,Non staff Travel and Subsistence
BEIS,UKRI - BBSRC,15/05/2018,Non-staff travel and subsistance,Science Group - Delivery Function,Non Employee Expenses Supplier,98186443,362.49,Non staff Travel and Subsistence
BEIS,UKRI - BBSRC,15/05/2018,Non-staff travel and subsistance,CIMG - External Relations,Non Employee Expenses Supplier,98186444,8.69,Non staff Travel and Subsistence
BEIS,UKRI - BBSRC,15/05/2018,Non-staff travel and subsistance,RISD - UKRO,Non Employee Expenses Supplier,98186445,120.7,Non staff Travel and Subsistence
BEIS,UKRI - BBSRC,15/05/2018,Non-staff travel and subsistance,Innovation and Skills Group CDSU,Non Employee Expenses Supplier,98186446,434.6,Non staff Travel and Subsistence
BEIS,UKRI - BBSRC,15/05/2018,Non-staff travel and subsistance,Innovation and Skills Group CDSU,Non Employee Expenses Supplier,98186447,471.92,Non staff Travel and Subsistence
BEIS,UKRI - BBSRC,15/05/2018,Non-staff travel and subsistance,Innovation and Skills Group CDSU,Non Employee Expenses Supplier,98186448,124.6,Non staff Travel and Subsistence
BEIS,UKRI - BBSRC,15/05/2018,Non-staff travel and subsistance,Innovation and Skills Group CDSU,Non Employee Expenses Supplier,98186449,163.2,Non staff Travel and Subsistence
BEIS,UKRI - BBSRC,15/05/2018,Non-staff travel and subsistance,Innovation and Skills Group CDSU,Non Employee Expenses Supplier,98186450,99,Non staff Travel and Subsistence
BEIS,UKRI - BBSRC,15/05/2018,Non-staff travel and subsistance,Innovation and Skills Group CDSU,Non Employee Expenses Supplier,98186451,26.9,Non staff Travel and Subsistence
BEIS,UKRI - BBSRC,15/05/2018,Research Grant Expenditure,Rothamsted Research,Rothamsted Research Ltd,98185413,0.3,Research Grant Expenditure
BEIS,UKRI - BBSRC,15/05/2018,Research Grant Expenditure,Rothamsted Research,Rothamsted Research Ltd,98185413,49249.7,Research Grant Expenditure
BEIS,UKRI - BBSRC,15/05/2018,Research Institutes - Capital Grants: Major Works,IFR,Quadram Institute Biosocience,98177990,121516,Research Institutes - Capital Grants: Major Works
BEIS,UKRI - BBSRC,15/05/2018,Research Institutes - Competitive Strategic Grant,Babraham Institute,Babraham Institute,98177919,352459.91,Research Institutes - Competitive Strategic Grant
BEIS,UKRI - BBSRC,15/05/2018,Research Institutes - Competitive Strategic Grant,Babraham Institute,Babraham Institute,98177919,48750.01,Research Institutes - Competitive Strategic Grant
BEIS,UKRI - BBSRC,15/05/2018,Research Institutes - Competitive Strategic Grant,Babraham Institute,Babraham Institute,98177919,395666.75,Research Institutes - Competitive Strategic Grant
BEIS,UKRI - BBSRC,15/05/2018,Research Institutes - Competitive Strategic Grant,Babraham Institute,Babraham Institute,98177919,5833.33,Research Institutes - Competitive Strategic Grant
BEIS,UKRI - BBSRC,15/05/2018,Research Institutes - Competitive Strategic Grant,JIC,John Innes Centre,98177985,20583.33,Research Institutes - Competitive Strategic Grant
BEIS,UKRI - BBSRC,15/05/2018,Research Institutes - Competitive Strategic Grant,JIC,John Innes Centre,98177985,483416.52,Research Institutes - Competitive Strategic Grant
BEIS,UKRI - BBSRC,15/05/2018,Research Institutes - Competitive Strategic Grant,JIC,John Innes Centre,98177985,65333.31,Research Institutes - Competitive Strategic Grant
BEIS,UKRI - BBSRC,15/05/2018,Research Institutes - Competitive Strategic Grant,JIC,John Innes Centre,98177985,530666.51,Research Institutes - Competitive Strategic Grant
BEIS,UKRI - BBSRC,15/05/2018,Research Institutes - Competitive Strategic Grant,JIC,John Innes Centre,98177985,7083.33,Research Institutes - Competitive Strategic Grant
BEIS,UKRI - BBSRC,15/05/2018,Research Institutes - Competitive Strategic Grant,IFR,Quadram Institute Biosocience,98177989,328623.18,Research Institutes - Competitive Strategic Grant
BEIS,UKRI - BBSRC,15/05/2018,Research Institutes - Competitive Strategic Grant,IFR,Quadram Institute Biosocience,98177989,46083.29,Research Institutes - Competitive Strategic Grant
BEIS,UKRI - BBSRC,15/05/2018,Research Institutes - Competitive Strategic Grant,IFR,Quadram Institute Biosocience,98177989,304426.2,Research Institutes - Competitive Strategic Grant
BEIS,UKRI - BBSRC,15/05/2018,Research Institutes - Competitive Strategic Grant,IFR,Quadram Institute Biosocience,98177989,5833.33,Research Institutes - Competitive Strategic Grant
BEIS,UKRI - BBSRC,15/05/2018,Research Institutes - Competitive Strategic Grant,IBERS,Ibers - Aberystwyth University,98179069,97156.16,Research Institutes - Competitive Strategic Grant
BEIS,UKRI - BBSRC,15/05/2018,Research Institutes - Competitive Strategic Grant,IBERS,Ibers - Aberystwyth University,98179069,52853.25,Research Institutes - Competitive Strategic Grant
BEIS,UKRI - BBSRC,15/05/2018,Research Institutes - Competitive Strategic Grant,IBERS,Ibers - Aberystwyth University,98179069,2916.67,Research Institutes - Competitive Strategic Grant
BEIS,UKRI - BBSRC,15/05/2018,Research Institutes - Competitive Strategic Grant,TGAC,Earlham Institute,98179223,175152.14,Research Institutes - Competitive Strategic Grant
BEIS,UKRI - BBSRC,15/05/2018,Research Institutes - Competitive Strategic Grant,TGAC,Earlham Institute,98179223,72565.05,Research Institutes - Competitive Strategic Grant
BEIS,UKRI - BBSRC,15/05/2018,Research Institutes - Competitive Strategic Grant,TGAC,Earlham Institute,98179223,46166.7,Research Institutes - Competitive Strategic Grant
BEIS,UKRI - BBSRC,15/05/2018,Research Institutes - Competitive Strategic Grant,TGAC,Earlham Institute,98179223,33333.36,Research Institutes - Competitive Strategic Grant
BEIS,UKRI - BBSRC,15/05/2018,Research Institutes - Competitive Strategic Grant,TGAC,Earlham Institute,98179223,111533.08,Research Institutes - Competitive Strategic Grant
BEIS,UKRI - BBSRC,15/05/2018,Research Institutes - Competitive Strategic Grant,TGAC,Earlham Institute,98179223,2916.67,Research Institutes - Competitive Strategic Grant
BEIS,UKRI - BBSRC,15/05/2018,Research Institutes - Competitive Strategic Grant,EBRC (Roslin),University of Edinburgh,98181983,277179.92,Research Institutes - Competitive Strategic Grant
BEIS,UKRI - BBSRC,15/05/2018,Research Institutes - Competitive Strategic Grant,EBRC (Roslin),University of Edinburgh,98181983,206087.5,Research Institutes - Competitive Strategic Grant
BEIS,UKRI - BBSRC,15/05/2018,Research Institutes - Competitive Strategic Grant,EBRC (Roslin),University of Edinburgh,98181983,5833.33,Research Institutes - Competitive Strategic Grant
BEIS,UKRI - BBSRC,15/05/2018,Research Institutes - Competitive Strategic Grant,Pirbright,The Pirbright Institute,98182227,820583.33,Research Institutes - Competitive Strategic Grant
BEIS,UKRI - BBSRC,15/05/2018,Research Institutes - Competitive Strategic Grant,Pirbright,The Pirbright Institute,98182227,234583.33,Research Institutes - Competitive Strategic Grant
BEIS,UKRI - BBSRC,15/05/2018,Research Institutes - Competitive Strategic Grant,Pirbright,The Pirbright Institute,98182227,33333.33,Research Institutes - Competitive Strategic Grant
BEIS,UKRI - BBSRC,15/05/2018,Research Institutes - Competitive Strategic Grant,Pirbright,The Pirbright Institute,98182227,194916.67,Research Institutes - Competitive Strategic Grant
BEIS,UKRI - BBSRC,15/05/2018,Research Institutes - Competitive Strategic Grant,Pirbright,The Pirbright Institute,98182227,4166.67,Research Institutes - Competitive Strategic Grant
BEIS,UKRI - BBSRC,15/05/2018,Research Institutes - Competitive Strategic Grant,Rothamsted Research,Rothamsted Research Ltd,98185133,111253.57,Research Institutes - Competitive Strategic Grant
BEIS,UKRI - BBSRC,15/05/2018,Research Institutes - Competitive Strategic Grant,Rothamsted Research,Rothamsted Research Ltd,98185133,418417.54,Research Institutes - Competitive Strategic Grant
BEIS,UKRI - BBSRC,15/05/2018,Research Institutes - Competitive Strategic Grant,Rothamsted Research,Rothamsted Research Ltd,98185133,64666.8,Research Institutes - Competitive Strategic Grant
BEIS,UKRI - BBSRC,15/05/2018,Research Institutes - Competitive Strategic Grant,Rothamsted Research,Rothamsted Research Ltd,98185133,197000.41,Research Institutes - Competitive Strategic Grant
BEIS,UKRI - BBSRC,15/05/2018,Research Institutes - Competitive Strategic Grant,Rothamsted Research,Rothamsted Research Ltd,98185133,7083.35,Research Institutes - Competitive Strategic Grant
BEIS,UKRI - BBSRC,15/05/2018,Safety Materials & Equipment,JBOS - Maintenance,Arco Limited,98185567,8.26,Safety Materials & Equipment
BEIS,UKRI - BBSRC,15/05/2018,Staff Training,PDG - Director,Calder Conference Ltd,98186566,140,Staff Training
BEIS,UKRI - BBSRC,15/05/2018,Subsidiaries Expenditure,Innovation and Skills Group,University of Southampton,98177215,121100.56,Subsidiaries Expenditure
BEIS,UKRI - BBSRC,15/05/2018,Union Deductions,Balance Sheet,PCS Union,98186131,178.45,Union Deductions
BEIS,UKRI - BBSRC,15/05/2018,Voluntary Deductions,Balance Sheet,Civil Service Benevolent Fund,98186130,2,Voluntary Deductions
BEIS,UKRI - BBSRC,15/05/2018,Voluntary Deductions,Balance Sheet,Ramsden Fund,98186138,230.66,Voluntary Deductions
BEIS,UKRI - BBSRC,16/05/2018,Conferences & Seminars,PDG - Director,Calder Conference Ltd,98187066,344,Staff Training
BEIS,UKRI - BBSRC,16/05/2018,IT Cloud Services,CIMG - Information Systems,Softcat plc,98184085,216.23,IT Cloud Services
BEIS,UKRI - BBSRC,16/05/2018,Non Payroll Salaries,Innovation and Skills Group,University of Edinburgh,98153181,11705.39,Non Payroll Salaries
BEIS,UKRI - BBSRC,16/05/2018,Non Payroll Salaries,Innovation and Skills Group,University of Edinburgh,98153181,2117.78,Non Payroll Salaries
BEIS,UKRI - BBSRC,16/05/2018,Non-staff travel and subsistance,European Initiatives,Non Employee Expenses Supplier,98186532,289.98,Non staff Travel and Subsistence
BEIS,UKRI - BBSRC,16/05/2018,Non-staff travel and subsistance,European Initiatives,Non Employee Expenses Supplier,98186533,427.07,Non staff Travel and Subsistence
BEIS,UKRI - BBSRC,16/05/2018,Non-staff travel and subsistance,Innovation and Skills Group CDSU,Non Employee Expenses Supplier,98186534,294.44,Non staff Travel and Subsistence
BEIS,UKRI - BBSRC,16/05/2018,Non-staff travel and subsistance,Science Group - Delivery Function,Non Employee Expenses Supplier,98186535,276.95,Non staff Travel and Subsistence
BEIS,UKRI - BBSRC,16/05/2018,Non-staff travel and subsistance,Science Group - Delivery Function,Non Employee Expenses Supplier,98186536,310.96,Non staff Travel and Subsistence
BEIS,UKRI - BBSRC,16/05/2018,Research Institutes - Capital Grants: Major Works,Estates - Projects,EMBL (European Molecular Biology Laboratory),98184168,12832.75,Research Institutes - Capital Grants: Major Works
BEIS,UKRI - BBSRC,16/05/2018,Research Institutes - Capital Grants: Major Works,Estates - Projects,EMBL (European Molecular Biology Laboratory),98184170,76843.37,Research Institutes - Capital Grants: Major Works
BEIS,UKRI - BBSRC,16/05/2018,T&S UK - Public Transport,Innovation and Skills Group CDSU,Unspecified,98187441,9.7,T&S UK - Public Transport
BEIS,UKRI - BBSRC,16/05/2018,T&S UK - Public Transport,Innovation and Skills Group CDSU,Unspecified,98187441,17.62,T&S UK - Public Transport
BEIS,UKRI - BBSRC,16/05/2018,T&S UK - Public Transport,Innovation and Skills Group CDSU,Unspecified,98187441,16,T&S UK - Public Transport
BEIS,UKRI - BBSRC,16/05/2018,T&S UK - Public Transport,Innovation and Skills Group,Unspecified,98187442,1.84,T&S UK - Public Transport
BEIS,UKRI - BBSRC,16/05/2018,T&S UK - Subsistence,Innovation and Skills Group,Unspecified,98187442,5.05,T&S UK - Subsistence
BEIS,UKRI - BBSRC,16/05/2018,T&S UK - Subsistence,Innovation and Skills Group,Unspecified,98187442,6.29,T&S UK - Subsistence
BEIS,UKRI - BBSRC,16/05/2018,T&S UK - Subsistence,Innovation and Skills Group,Unspecified,98187442,10.67,T&S UK - Subsistence
BEIS,UKRI - BBSRC,16/05/2018,T&S UK - Subsistence,Innovation and Skills Group,Unspecified,98187442,10,T&S UK - Subsistence
BEIS,UKRI - BBSRC,16/05/2018,T&S UK - Subsistence,Innovation and Skills Group,Unspecified,98187442,20,T&S UK - Subsistence
BEIS,UKRI - BBSRC,16/05/2018,T&S UK - Vehicle Hire,Innovation and Skills Group,Unspecified,98187442,50.39,T&S UK - Vehicle Hire
BEIS,UKRI - BBSRC,16/05/2018,Telecoms - Tele/ Video conferencing,CE - CPS,BT Conferencing,98187221,141.25,Telecoms - Tele/ Video conferencing
BEIS,UKRI - BBSRC,16/05/2018,Telecoms - Tele/ Video conferencing,CE - CPS,BT Conferencing,98187221,147.82,Telecoms - Tele/ Video conferencing
BEIS,UKRI - BBSRC,16/05/2018,Telecoms - Tele/ Video conferencing,FG - Director,BT Conferencing,98187221,256.04,Telecoms - Tele/ Video conferencing
BEIS,UKRI - BBSRC,16/05/2018,Telecoms - Tele/ Video conferencing,Innovation and Skills Group,BT Conferencing,98187221,1101.36,Telecoms - Tele/ Video conferencing
BEIS,UKRI - BBSRC,16/05/2018,Telecoms - Tele/ Video conferencing,PDG - Director,BT Conferencing,98187221,103.97,Telecoms - Tele/ Video conferencing
BEIS,UKRI - BBSRC,17/05/2018,Catering Contracts,JBOS - Restaurant,Baxter Storey Ltd,98166370,1584.1,Catering Contracts
BEIS,UKRI - BBSRC,17/05/2018,Catering Contracts,JBOS - Restaurant,Baxter Storey Ltd,98167720,-4285.04,Catering Contracts
BEIS,UKRI - BBSRC,17/05/2018,Catering Contracts,JBOS - Restaurant,Baxter Storey Ltd,98178969,1196.5,Catering Contracts
BEIS,UKRI - BBSRC,17/05/2018,Conferences & Seminars,CIMG - External Relations,Calder Conference Ltd,98186331,2922,Conferences & Seminars
BEIS,UKRI - BBSRC,17/05/2018,Conferences & Seminars,CIMG - External Relations,Rothamsted Research Ltd,98187883,10000,Conferences & Seminars
BEIS,UKRI - BBSRC,17/05/2018,Conferences & Seminars,PDG - Director,Calder Conference Ltd,98188215,78,Conferences & Seminars
BEIS,UKRI - BBSRC,17/05/2018,Health & Safety (inc. Medicals & Opticians),RISD - UKRO,Unspecified,98189125,27.5,Health & Safety (inc. Medicals & Opticians)
BEIS,UKRI - BBSRC,17/05/2018,Institute Grant Expenditure,Rothamsted Research,Rothamsted Research Ltd,98185130,49250,Institute Grant Expenditure
BEIS,UKRI - BBSRC,17/05/2018,Meetings & Catering,CE - Chief Executive,Baxter Storey Ltd,98176473,383.22,Meetings & Catering
BEIS,UKRI - BBSRC,17/05/2018,Meetings & Catering,CE - IRU,Baxter Storey Ltd,98176473,9,Meetings & Catering
BEIS,UKRI - BBSRC,17/05/2018,Meetings & Catering,FG - Director,Baxter Storey Ltd,98176473,69.36,Meetings & Catering
BEIS,UKRI - BBSRC,17/05/2018,Meetings & Catering,Innovation and Skills Group,Baxter Storey Ltd,98176473,569.7,Meetings & Catering
BEIS,UKRI - BBSRC,17/05/2018,Meetings & Catering,PDG - Director,Baxter Storey Ltd,98176473,307.38,Meetings & Catering
BEIS,UKRI - BBSRC,17/05/2018,Meetings & Catering,RISD - UKRO,Baxter Storey Ltd,98176473,102.72,Meetings & Catering
BEIS,UKRI - BBSRC,17/05/2018,Meetings & Catering,Science Group,Baxter Storey Ltd,98176473,260.4,Meetings & Catering
BEIS,UKRI - BBSRC,17/05/2018,Non-Capital Building Construction,JBOS - Maintenance,Mitie Technical Facilities Management Ltd,98184724,138732.58,Non-Capital Building Construction 
BEIS,UKRI - BBSRC,17/05/2018,Other Programme Costs,FG - Accounts & Business Planning,Engineering & Physical Sciences Research Council,98174756,375319.58,Other Programme Costs
BEIS,UKRI - BBSRC,17/05/2018,Overseas - Professional Memberships & Subscriptions,PDG - Director,Medical Research Council,98174183,1028,UK - Professional Memberships & Subscriptions
BEIS,UKRI - BBSRC,17/05/2018,Postage & Courier Services,JBOS - Post Room,DHL International UK Ltd (DHL Express),98188279,936.75,Postage & Courier Services
BEIS,UKRI - BBSRC,17/05/2018,Postage & Courier Services,JBOS - Post Room,DHL International UK Ltd (DHL Express),98188282,1558.77,Postage & Courier Services
BEIS,UKRI - BBSRC,17/05/2018,Postage & Courier Services,JBOS - Post Room,DHL International UK Ltd (DHL Express),98188287,12.25,Postage & Courier Services
BEIS,UKRI - BBSRC,17/05/2018,Recharges To Councils - General,CIMG - Information Systems,Arts & Humanities Research Council,97860068,-1280.27,Recharges To Councils - General
BEIS,UKRI - BBSRC,17/05/2018,Recharges To Councils - General,CIMG - Information Systems,Arts & Humanities Research Council,98148574,60000,Recharges To Councils - General
BEIS,UKRI - BBSRC,17/05/2018,Recharges To Councils - General,CIMG - Information Systems,Arts & Humanities Research Council,98148574,5617.06,Recharges To Councils - General
BEIS,UKRI - BBSRC,17/05/2018,Recruitment Costs,CIMG - Council Secretariat,Agenda Resource Management Ltd,98187605,33.4,Recruitment Costs
BEIS,UKRI - BBSRC,17/05/2018,Recruitment Costs,CIMG - Council Secretariat,Agenda Resource Management Ltd,98187627,33.4,Recruitment Costs
BEIS,UKRI - BBSRC,17/05/2018,Recruitment Costs,CIMG - Council Secretariat,Agenda Resource Management Ltd,98187629,33.4,Recruitment Costs
BEIS,UKRI - BBSRC,17/05/2018,Recruitment Costs,CIMG - Council Secretariat,Agenda Resource Management Ltd,98187665,33.4,Recruitment Costs
BEIS,UKRI - BBSRC,17/05/2018,Recruitment Costs,CIMG - Council Secretariat,Agenda Resource Management Ltd,98187685,33.4,Recruitment Costs
BEIS,UKRI - BBSRC,17/05/2018,Recruitment Costs,CIMG - Council Secretariat,Agenda Resource Management Ltd,98187686,33.4,Recruitment Costs
BEIS,UKRI - BBSRC,17/05/2018,Recruitment Costs,CIMG - Council Secretariat,Agenda Resource Management Ltd,98187693,33.4,Recruitment Costs
BEIS,UKRI - BBSRC,17/05/2018,Recruitment Costs,CIMG - Council Secretariat,Agenda Resource Management Ltd,98188240,33.4,Recruitment Costs
BEIS,UKRI - BBSRC,17/05/2018,Research Grant Expenditure,FG - Accounts & Business Planning,Engineering & Physical Sciences Research Council,98164139,-3750.08,Research Grant Expenditure
BEIS,UKRI - BBSRC,17/05/2018,Research Grant Expenditure,FG - Accounts & Business Planning,Medical Research Council,98174085,8403.66,Research Grant Expenditure
BEIS,UKRI - BBSRC,17/05/2018,Secondments,CIMG - Programme Office,Arts & Humanities Research Council,98155226,16326.57,Secondments
BEIS,UKRI - BBSRC,17/05/2018,T&S UK - Other Charges,FG - Estates,Unspecified,98188123,17.24,T&S UK - Other Charges
BEIS,UKRI - BBSRC,17/05/2018,T&S UK - Public Transport,FG - Estates,Unspecified,98188123,30,T&S UK - Public Transport
BEIS,UKRI - BBSRC,17/05/2018,T&S UK - Subsistence,Science Group,Unspecified,98188121,4.65,T&S UK - Subsistence
BEIS,UKRI - BBSRC,17/05/2018,T&S UK - Subsistence,Science Group,Unspecified,98188121,3.25,T&S UK - Subsistence
BEIS,UKRI - BBSRC,17/05/2018,T&S UK - Subsistence,CIMG - External Relations,Unspecified,98188122,6.09,T&S UK - Subsistence
BEIS,UKRI - BBSRC,17/05/2018,T&S UK - Subsistence,FG - Estates,Unspecified,98188123,8.68,T&S UK - Subsistence
BEIS,UKRI - BBSRC,17/05/2018,T&S UK - Subsistence,FG - Estates,Unspecified,98188123,10,T&S UK - Subsistence
BEIS,UKRI - BBSRC,17/05/2018,T&S UK - Vehicle Hire,CE - CPS,Enterprise Rent-A-Car UK Ltd,98187588,55.66,T&S UK - Vehicle Hire
BEIS,UKRI - BBSRC,17/05/2018,T&S UK - Vehicle Hire,FG - Estates,Enterprise Rent-A-Car UK Ltd,98187588,183.92,T&S UK - Vehicle Hire
BEIS,UKRI - BBSRC,17/05/2018,T&S UK - Vehicle Hire,FG - RCUK Assurance,Enterprise Rent-A-Car UK Ltd,98187588,64.1,T&S UK - Vehicle Hire
BEIS,UKRI - BBSRC,17/05/2018,T&S UK - Vehicle Hire,Innovation and Skills Group,Enterprise Rent-A-Car UK Ltd,98187588,102.83,T&S UK - Vehicle Hire
BEIS,UKRI - BBSRC,17/05/2018,T&S UK - Vehicle Hire,CIMG - External Relations,Unspecified,98188122,45.09,T&S UK - Vehicle Hire
BEIS,UKRI - BBSRC,17/05/2018,Water,JBOS - Maintenance,Thames Water Utilities Ltd,98174276,-2228.83,Water
BEIS,UKRI - BBSRC,18/05/2018,Mechanical & Electrical Maintenance,JBOS - Maintenance,NEWJAX DRAINAGE AND PROPERTY MAINTENANCE LTD,98185885,1908,General Building Maintenance
BEIS,UKRI - BBSRC,18/05/2018,Non-staff travel and subsistance,PDG - Director,Non Employee Expenses Supplier,98188558,63.8,Non staff Travel and Subsistence
BEIS,UKRI - BBSRC,18/05/2018,Non-staff travel and subsistance,CIMG - Council Secretariat,Non Employee Expenses Supplier,98188559,53,Non staff Travel and Subsistence
BEIS,UKRI - BBSRC,18/05/2018,Non-staff travel and subsistance,CE - CPS,Non Employee Expenses Supplier,98188560,109.5,Non staff Travel and Subsistence
BEIS,UKRI - BBSRC,18/05/2018,Non-staff travel and subsistance,CE - CPS,Non Employee Expenses Supplier,98188561,178.13,Non staff Travel and Subsistence
BEIS,UKRI - BBSRC,18/05/2018,Non-staff travel and subsistance,Innovation and Skills Group CDSU,Non Employee Expenses Supplier,98188562,118.55,Non staff Travel and Subsistence
BEIS,UKRI - BBSRC,18/05/2018,Non-staff travel and subsistance,Innovation and Skills Group CDSU,Non Employee Expenses Supplier,98188563,367.34,Non staff Travel and Subsistence
BEIS,UKRI - BBSRC,18/05/2018,Other Programme Costs,Innovation and Skills Group,Non Employee Expenses Supplier,98188564,1000,Other Programme Costs
BEIS,UKRI - BBSRC,18/05/2018,Postage & Courier Services,JBOS - Post Room,TNT UK Ltd,98188403,758.77,Postage & Courier Services
BEIS,UKRI - BBSRC,18/05/2018,Postage & Courier Services,JBOS - Staff,TNT UK Ltd,98188406,628.9,Postage & Courier Services
BEIS,UKRI - BBSRC,18/05/2018,Postage & Courier Services,JBOS - Post Room,TNT UK Ltd,98188419,750.67,Postage & Courier Services
BEIS,UKRI - BBSRC,18/05/2018,Postage & Courier Services,JBOS - Staff,City Sprint,98188421,1197.96,Postage & Courier Services
BEIS,UKRI - BBSRC,18/05/2018,Postage & Courier Services,JBOS - Post Room,City Sprint,98188422,1903.82,Postage & Courier Services
BEIS,UKRI - BBSRC,18/05/2018,Postage & Courier Services,JBOS - Post Room,DHL International UK Ltd (DHL Express),98188423,2737.19,Postage & Courier Services
BEIS,UKRI - BBSRC,18/05/2018,Postage & Courier Services,JBOS - Staff,TNT UK Ltd,98189203,464.03,Postage & Courier Services
BEIS,UKRI - BBSRC,18/05/2018,Postage & Courier Services,JBOS - Staff,TNT UK Ltd,98189209,486.18,Postage & Courier Services
BEIS,UKRI - BBSRC,18/05/2018,Postage & Courier Services,JBOS - Staff,TNT UK Ltd,98189223,949.72,Postage & Courier Services
BEIS,UKRI - BBSRC,18/05/2018,Postage & Courier Services,JBOS - Post Room,TNT UK Ltd,98189227,647.4,Postage & Courier Services
BEIS,UKRI - BBSRC,18/05/2018,Postage & Courier Services,JBOS - Post Room,TNT UK Ltd,98189251,336.9,Postage & Courier Services
BEIS,UKRI - BBSRC,18/05/2018,Recruitment Costs,CIMG - Council Secretariat,Agenda Resource Management Ltd,98187691,33.4,Recruitment Costs
BEIS,UKRI - BBSRC,18/05/2018,T&S Overseas - Subsistence,CE - IRU,Unspecified,98188687,5,T&S Overseas - Subsistence
BEIS,UKRI - BBSRC,18/05/2018,T&S Overseas - Subsistence,CE - IRU,Unspecified,98188687,10.47,T&S Overseas - Subsistence
BEIS,UKRI - BBSRC,18/05/2018,T&S UK - Mileage,Science Group,Unspecified,98188682,63,T&S UK - Mileage
BEIS,UKRI - BBSRC,18/05/2018,T&S UK - Mileage,Innovation and Skills Group CDSU,Unspecified,98188683,52.2,T&S UK - Mileage
BEIS,UKRI - BBSRC,18/05/2018,T&S UK - Public Transport,Science Group,Unspecified,98188682,6,T&S UK - Public Transport
BEIS,UKRI - BBSRC,18/05/2018,T&S UK - Public Transport,Science Group,Unspecified,98188682,144.45,T&S UK - Public Transport
BEIS,UKRI - BBSRC,18/05/2018,T&S UK - Public Transport,CIMG - External Relations,Unspecified,98188684,8,T&S UK - Public Transport
BEIS,UKRI - BBSRC,18/05/2018,T&S UK - Public Transport,CIMG - External Relations,Unspecified,98188684,28,T&S UK - Public Transport
BEIS,UKRI - BBSRC,18/05/2018,T&S UK - Public Transport,CIMG - External Relations,Unspecified,98188684,267.2,T&S UK - Public Transport
BEIS,UKRI - BBSRC,18/05/2018,T&S UK - Subsistence,Science Group,Unspecified,98188682,10,T&S UK - Subsistence
BEIS,UKRI - BBSRC,18/05/2018,T&S UK - Subsistence,CIMG - External Relations,Unspecified,98188684,47.6,T&S UK - Subsistence
BEIS,UKRI - BBSRC,18/05/2018,T&S UK - Subsistence,CIMG - External Relations,Unspecified,98188684,30.43,T&S UK - Subsistence
BEIS,UKRI - BBSRC,18/05/2018,T&S UK - Subsistence,CIMG - External Relations,Unspecified,98188684,15,T&S UK - Subsistence
BEIS,UKRI - BBSRC,18/05/2018,T&S UK - Subsistence,Innovation and Skills Group CDSU,Unspecified,98188685,16.4,T&S UK - Subsistence
BEIS,UKRI - BBSRC,18/05/2018,T&S UK - Subsistence,Innovation and Skills Group CDSU,Unspecified,98188685,5,T&S UK - Subsistence
BEIS,UKRI - BBSRC,18/05/2018,T&S UK - Subsistence,Innovation and Skills Group CDSU,Unspecified,98188688,10,T&S UK - Subsistence
BEIS,UKRI - BBSRC,21/05/2018,Electricity,JBOS - Maintenance,EDF Energy,98188885,28671.54,Electricity
BEIS,UKRI - BBSRC,21/05/2018,Electricity,JBOS - Maintenance,EDF Energy,98188909,0.02,Electricity
BEIS,UKRI - BBSRC,21/05/2018,Insurance,FG - Accounts & Business Planning,Marsh Limited,98151693,271,Insurance
BEIS,UKRI - BBSRC,21/05/2018,Insurance,FG - Accounts & Business Planning,Marsh Limited,98151693,32.52,Insurance
BEIS,UKRI - BBSRC,21/05/2018,Insurance,FG - Accounts & Business Planning,Marsh Limited,98188868,3030.95,Insurance
BEIS,UKRI - BBSRC,21/05/2018,Legal & Professional Services,PDG - JSS,Logiqwest Ltd,98188748,4062.98,Legal & Professional Services
BEIS,UKRI - BBSRC,21/05/2018,Legal & Professional Services,FG - Estates,Womble Bond Dickinson LLP,98190346,-117,Legal & Professional Services
BEIS,UKRI - BBSRC,21/05/2018,Non-staff travel and subsistance,Science Group - Delivery Function,Redfern Travel Ltd,98189640,72.3,Non staff Travel and Subsistence
BEIS,UKRI - BBSRC,21/05/2018,Non-staff travel and subsistance,Science Group - Delivery Function,Redfern Travel Ltd,98189640,142.26,Non staff Travel and Subsistence
BEIS,UKRI - BBSRC,21/05/2018,T&S Overseas - Accommodation,CE - IRU,Redfern Travel Ltd,98189640,0.5,T&S Overseas - Accommodation
BEIS,UKRI - BBSRC,21/05/2018,T&S Overseas - Accommodation,CE - IRU,Redfern Travel Ltd,98189640,129.95,T&S Overseas - Accommodation
BEIS,UKRI - BBSRC,21/05/2018,T&S Overseas - Accommodation,CE - IRU,Redfern Travel Ltd,98189640,123.87,T&S Overseas - Accommodation
BEIS,UKRI - BBSRC,21/05/2018,T&S Overseas - Accommodation,CE - IRU,Redfern Travel Ltd,98189640,0.1,T&S Overseas - Accommodation
BEIS,UKRI - BBSRC,21/05/2018,T&S Overseas - Accommodation,Science Group,Redfern Travel Ltd,98189640,0.5,T&S Overseas - Accommodation
BEIS,UKRI - BBSRC,21/05/2018,T&S Overseas - Accommodation,Science Group,Redfern Travel Ltd,98189640,0.5,T&S Overseas - Accommodation
BEIS,UKRI - BBSRC,21/05/2018,T&S Overseas - Accommodation,Science Group,Redfern Travel Ltd,98189640,0.2,T&S Overseas - Accommodation
BEIS,UKRI - BBSRC,21/05/2018,T&S Overseas - Flights,CE - Chief Executive,Redfern Travel Ltd,98189640,158,T&S Overseas - Flights
BEIS,UKRI - BBSRC,21/05/2018,T&S Overseas - Flights,CE - IRU,Redfern Travel Ltd,98189640,2893.71,T&S Overseas - Flights
BEIS,UKRI - BBSRC,21/05/2018,T&S Overseas - Flights,CE - IRU,Redfern Travel Ltd,98189640,-2893.71,T&S Overseas - Flights
BEIS,UKRI - BBSRC,21/05/2018,T&S Overseas - Flights,CE - IRU,Redfern Travel Ltd,98189640,263,T&S Overseas - Public Transport
BEIS,UKRI - BBSRC,21/05/2018,T&S Overseas - Flights,CE - IRU,Redfern Travel Ltd,98189640,2.16,T&S Overseas - Flights
BEIS,UKRI - BBSRC,21/05/2018,T&S Overseas - Flights,CE - IRU,Redfern Travel Ltd,98189640,3036.01,T&S Overseas - Flights
BEIS,UKRI - BBSRC,21/05/2018,T&S Overseas - Flights,CE - IRU,Redfern Travel Ltd,98189640,3698.41,T&S Overseas - Flights
BEIS,UKRI - BBSRC,21/05/2018,T&S Overseas - Flights,CE - IRU,Redfern Travel Ltd,98189640,2700.71,T&S Overseas - Flights
BEIS,UKRI - BBSRC,21/05/2018,T&S Overseas - Flights,CE - IRU,Redfern Travel Ltd,98189640,188,T&S Overseas - Public Transport
BEIS,UKRI - BBSRC,21/05/2018,T&S Overseas - Flights,CE - IRU,Redfern Travel Ltd,98189640,170.1,T&S Overseas - Flights
BEIS,UKRI - BBSRC,21/05/2018,T&S Overseas - Flights,CE - IRU,Redfern Travel Ltd,98189640,1505.06,T&S Overseas - Flights
BEIS,UKRI - BBSRC,21/05/2018,T&S Overseas - Flights,CE - IRU,Redfern Travel Ltd,98189640,138,T&S Overseas - Public Transport
BEIS,UKRI - BBSRC,21/05/2018,T&S Overseas - Flights,CE - IRU,Redfern Travel Ltd,98189640,138,T&S Overseas - Public Transport
BEIS,UKRI - BBSRC,21/05/2018,T&S Overseas - Flights,CE - IRU,Redfern Travel Ltd,98189640,2.16,T&S Overseas - Public Transport
BEIS,UKRI - BBSRC,21/05/2018,T&S Overseas - Flights,CE - IRU,Redfern Travel Ltd,98189640,2014.71,T&S Overseas - Flights
BEIS,UKRI - BBSRC,21/05/2018,T&S Overseas - Flights,Science Group,Redfern Travel Ltd,98189640,59.66,T&S Overseas - Flights
BEIS,UKRI - BBSRC,21/05/2018,T&S Overseas - Flights,Science Group,Redfern Travel Ltd,98189640,40.88,T&S Overseas - Flights
BEIS,UKRI - BBSRC,21/05/2018,T&S Overseas - Flights,Science Group,Redfern Travel Ltd,98189640,48.02,T&S Overseas - Flights
BEIS,UKRI - BBSRC,21/05/2018,T&S Overseas - Flights,Science Group,Redfern Travel Ltd,98189640,110.01,T&S Overseas - Flights
BEIS,UKRI - BBSRC,21/05/2018,T&S Overseas - Flights,Science Group,Redfern Travel Ltd,98189640,123.19,T&S Overseas - Flights
BEIS,UKRI - BBSRC,21/05/2018,T&S Overseas - Public Transport,FG - Accounts & Business Planning,Redfern Travel Ltd,98189640,158,T&S Overseas - Public Transport
BEIS,UKRI - BBSRC,21/05/2018,T&S Overseas - Public Transport,FG - Accounts & Business Planning,Redfern Travel Ltd,98189640,158,T&S Overseas - Public Transport
BEIS,UKRI - BBSRC,21/05/2018,T&S Overseas - Public Transport,Innovation and Skills Group,Redfern Travel Ltd,98189640,2.16,T&S Overseas - Public Transport
BEIS,UKRI - BBSRC,21/05/2018,T&S Overseas - Public Transport,Innovation and Skills Group,Redfern Travel Ltd,98189640,30,T&S Overseas - Public Transport
BEIS,UKRI - BBSRC,21/05/2018,T&S Overseas - Public Transport,RISD - UKRO,Redfern Travel Ltd,98189640,114,T&S Overseas - Public Transport
BEIS,UKRI - BBSRC,21/05/2018,T&S Overseas - Public Transport,RISD - UKRO,Redfern Travel Ltd,98189640,325.1,T&S Overseas - Public Transport
BEIS,UKRI - BBSRC,21/05/2018,T&S Overseas - Public Transport,RISD - UKRO,Redfern Travel Ltd,98189640,91,T&S Overseas - Public Transport
BEIS,UKRI - BBSRC,21/05/2018,T&S Overseas - Public Transport,RISD - UKRO,Redfern Travel Ltd,98189640,122,T&S Overseas - Public Transport
BEIS,UKRI - BBSRC,21/05/2018,T&S Overseas - Public Transport,RISD - UKRO,Redfern Travel Ltd,98189640,86,T&S Overseas - Public Transport
BEIS,UKRI - BBSRC,21/05/2018,T&S Overseas - Public Transport,RISD - UKRO,Redfern Travel Ltd,98189640,2.16,T&S Overseas - Public Transport
BEIS,UKRI - BBSRC,21/05/2018,T&S Overseas - Public Transport,RISD - UKRO,Redfern Travel Ltd,98189640,36,T&S Overseas - Public Transport
BEIS,UKRI - BBSRC,21/05/2018,T&S Overseas - Public Transport,RISD - UKRO,Redfern Travel Ltd,98189640,103,T&S Overseas - Public Transport
BEIS,UKRI - BBSRC,21/05/2018,T&S Overseas - Public Transport,RISD - UKRO,Redfern Travel Ltd,98189640,103,T&S Overseas - Public Transport
BEIS,UKRI - BBSRC,21/05/2018,T&S Overseas - Public Transport,RISD - UKRO,Redfern Travel Ltd,98189640,231,T&S Overseas - Public Transport
BEIS,UKRI - BBSRC,21/05/2018,T&S Overseas - Public Transport,RISD - UKRO,Redfern Travel Ltd,98189640,182,T&S Overseas - Public Transport
BEIS,UKRI - BBSRC,21/05/2018,T&S Overseas - Public Transport,RISD - UKRO,Redfern Travel Ltd,98189640,2.16,T&S Overseas - Public Transport
BEIS,UKRI - BBSRC,21/05/2018,T&S Overseas - Public Transport,RISD - UKRO,Redfern Travel Ltd,98189640,62,T&S Overseas - Public Transport
BEIS,UKRI - BBSRC,21/05/2018,T&S Overseas - Public Transport,RISD - UKRO,Redfern Travel Ltd,98189640,212,T&S Overseas - Public Transport
BEIS,UKRI - BBSRC,21/05/2018,T&S Overseas - Public Transport,RISD - UKRO,Redfern Travel Ltd,98189640,30,T&S Overseas - Public Transport
BEIS,UKRI - BBSRC,21/05/2018,T&S Overseas - Public Transport,RISD - UKRO,Redfern Travel Ltd,98189640,173.34,T&S Overseas - Public Transport
BEIS,UKRI - BBSRC,21/05/2018,T&S UK - Accommodation,CE - Chief Executive,Redfern Travel Ltd,98189640,0.5,T&S UK - Accommodation
BEIS,UKRI - BBSRC,21/05/2018,T&S UK - Accommodation,CE - Chief Executive,Redfern Travel Ltd,98189640,194,T&S UK - Accommodation
BEIS,UKRI - BBSRC,21/05/2018,T&S UK - Accommodation,CE - Chief Executive,Redfern Travel Ltd,98189640,0.5,T&S UK - Accommodation
BEIS,UKRI - BBSRC,21/05/2018,T&S UK - Accommodation,CE - Chief Executive,Redfern Travel Ltd,98189640,209,T&S UK - Accommodation
BEIS,UKRI - BBSRC,21/05/2018,T&S UK - Accommodation,CE - Chief Executive,Redfern Travel Ltd,98189640,0.2,T&S UK - Accommodation
BEIS,UKRI - BBSRC,21/05/2018,T&S UK - Accommodation,CE - IRU,Redfern Travel Ltd,98189640,0.5,T&S UK - Accommodation
BEIS,UKRI - BBSRC,21/05/2018,T&S UK - Accommodation,CE - IRU,Redfern Travel Ltd,98189640,1.44,T&S UK - Accommodation
BEIS,UKRI - BBSRC,21/05/2018,T&S UK - Accommodation,CE - IRU,Redfern Travel Ltd,98189640,142,T&S UK - Accommodation
BEIS,UKRI - BBSRC,21/05/2018,T&S UK - Accommodation,CE - IRU,Redfern Travel Ltd,98189640,0.5,T&S UK - Accommodation
BEIS,UKRI - BBSRC,21/05/2018,T&S UK - Accommodation,CE - IRU,Redfern Travel Ltd,98189640,76.5,T&S UK - Accommodation
BEIS,UKRI - BBSRC,21/05/2018,T&S UK - Accommodation,CE - IRU,Redfern Travel Ltd,98189640,0.1,T&S UK - Accommodation
BEIS,UKRI - BBSRC,21/05/2018,T&S UK - Accommodation,CE - IRU,Redfern Travel Ltd,98189640,0.39,T&S UK - Accommodation
BEIS,UKRI - BBSRC,21/05/2018,T&S UK - Accommodation,CIMG - External Relations,Redfern Travel Ltd,98189640,0.5,T&S UK - Accommodation
BEIS,UKRI - BBSRC,21/05/2018,T&S UK - Accommodation,CIMG - External Relations,Redfern Travel Ltd,98189640,0.1,T&S UK - Accommodation
BEIS,UKRI - BBSRC,21/05/2018,T&S UK - Accommodation,CIMG - Information Systems,Redfern Travel Ltd,98189640,0.5,T&S UK - Accommodation
BEIS,UKRI - BBSRC,21/05/2018,T&S UK - Accommodation,CIMG - Information Systems,Redfern Travel Ltd,98189640,0.1,T&S UK - Accommodation
BEIS,UKRI - BBSRC,21/05/2018,T&S UK - Accommodation,CIMG - Programme Office,Redfern Travel Ltd,98189640,0.5,T&S UK - Accommodation
BEIS,UKRI - BBSRC,21/05/2018,T&S UK - Accommodation,CIMG - Programme Office,Redfern Travel Ltd,98189640,90,T&S UK - Accommodation
BEIS,UKRI - BBSRC,21/05/2018,T&S UK - Accommodation,CIMG - Programme Office,Redfern Travel Ltd,98189640,0.5,T&S UK - Accommodation
BEIS,UKRI - BBSRC,21/05/2018,T&S UK - Accommodation,CIMG - Programme Office,Redfern Travel Ltd,98189640,95,T&S UK - Accommodation
BEIS,UKRI - BBSRC,21/05/2018,T&S UK - Accommodation,CIMG - Programme Office,Redfern Travel Ltd,98189640,0.2,T&S UK - Accommodation
BEIS,UKRI - BBSRC,21/05/2018,T&S UK - Accommodation,FG - Director,Redfern Travel Ltd,98189640,0.5,T&S UK - Accommodation
BEIS,UKRI - BBSRC,21/05/2018,T&S UK - Accommodation,FG - Director,Redfern Travel Ltd,98189640,71.38,T&S UK - Accommodation
BEIS,UKRI - BBSRC,21/05/2018,T&S UK - Accommodation,FG - Director,Redfern Travel Ltd,98189640,0.5,T&S UK - Accommodation
BEIS,UKRI - BBSRC,21/05/2018,T&S UK - Accommodation,FG - Director,Redfern Travel Ltd,98189640,170,T&S UK - Accommodation
BEIS,UKRI - BBSRC,21/05/2018,T&S UK - Accommodation,FG - Director,Redfern Travel Ltd,98189640,0.5,T&S UK - Accommodation
BEIS,UKRI - BBSRC,21/05/2018,T&S UK - Accommodation,FG - Director,Redfern Travel Ltd,98189640,162,T&S UK - Accommodation
BEIS,UKRI - BBSRC,21/05/2018,T&S UK - Accommodation,FG - Director,Redfern Travel Ltd,98189640,0.5,T&S UK - Accommodation
BEIS,UKRI - BBSRC,21/05/2018,T&S UK - Accommodation,FG - Director,Redfern Travel Ltd,98189640,88,T&S UK - Accommodation
BEIS,UKRI - BBSRC,21/05/2018,T&S UK - Accommodation,FG - Director,Redfern Travel Ltd,98189640,0.5,T&S UK - Accommodation
BEIS,UKRI - BBSRC,21/05/2018,T&S UK - Accommodation,FG - Director,Redfern Travel Ltd,98189640,130,T&S UK - Accommodation
BEIS,UKRI - BBSRC,21/05/2018,T&S UK - Accommodation,FG - Director,Redfern Travel Ltd,98189640,0.5,T&S UK - Accommodation
BEIS,UKRI - BBSRC,21/05/2018,T&S UK - Accommodation,FG - Director,Redfern Travel Ltd,98189640,88,T&S UK - Accommodation
BEIS,UKRI - BBSRC,21/05/2018,T&S UK - Accommodation,FG - Director,Redfern Travel Ltd,98189640,0.5,T&S UK - Accommodation
BEIS,UKRI - BBSRC,21/05/2018,T&S UK - Accommodation,FG - Director,Redfern Travel Ltd,98189640,243,T&S UK - Accommodation
BEIS,UKRI - BBSRC,21/05/2018,T&S UK - Accommodation,FG - Director,Redfern Travel Ltd,98189640,0.5,T&S UK - Accommodation
BEIS,UKRI - BBSRC,21/05/2018,T&S UK - Accommodation,FG - Director,Redfern Travel Ltd,98189640,162,T&S UK - Accommodation
BEIS,UKRI - BBSRC,21/05/2018,T&S UK - Accommodation,FG - Director,Redfern Travel Ltd,98189640,0.8,T&S UK - Accommodation
BEIS,UKRI - BBSRC,21/05/2018,T&S UK - Accommodation,FG - Estates,Redfern Travel Ltd,98189640,0.5,T&S UK - Accommodation
BEIS,UKRI - BBSRC,21/05/2018,T&S UK - Accommodation,FG - Estates,Redfern Travel Ltd,98189640,295,T&S UK - Accommodation
BEIS,UKRI - BBSRC,21/05/2018,T&S UK - Accommodation,FG - Estates,Redfern Travel Ltd,98189640,0.5,T&S UK - Accommodation
BEIS,UKRI - BBSRC,21/05/2018,T&S UK - Accommodation,FG - Estates,Redfern Travel Ltd,98189640,70,T&S UK - Accommodation
BEIS,UKRI - BBSRC,21/05/2018,T&S UK - Accommodation,FG - Estates,Redfern Travel Ltd,98189640,0.5,T&S UK - Accommodation
BEIS,UKRI - BBSRC,21/05/2018,T&S UK - Accommodation,FG - Estates,Redfern Travel Ltd,98189640,93,T&S UK - Accommodation
BEIS,UKRI - BBSRC,21/05/2018,T&S UK - Accommodation,FG - Estates,Redfern Travel Ltd,98189640,0.5,T&S UK - Accommodation
BEIS,UKRI - BBSRC,21/05/2018,T&S UK - Accommodation,FG - Estates,Redfern Travel Ltd,98189640,62.88,T&S UK - Accommodation
BEIS,UKRI - BBSRC,21/05/2018,T&S UK - Accommodation,FG - Estates,Redfern Travel Ltd,98189640,0.5,T&S UK - Accommodation
BEIS,UKRI - BBSRC,21/05/2018,T&S UK - Accommodation,FG - Estates,Redfern Travel Ltd,98189640,71.38,T&S UK - Accommodation
BEIS,UKRI - BBSRC,21/05/2018,T&S UK - Accommodation,FG - Estates,Redfern Travel Ltd,98189640,0.5,T&S UK - Accommodation
BEIS,UKRI - BBSRC,21/05/2018,T&S UK - Accommodation,FG - Estates,Redfern Travel Ltd,98189640,110,T&S UK - Accommodation
BEIS,UKRI - BBSRC,21/05/2018,T&S UK - Accommodation,FG - Estates,Redfern Travel Ltd,98189640,0.5,T&S UK - Accommodation
BEIS,UKRI - BBSRC,21/05/2018,T&S UK - Accommodation,FG - Estates,Redfern Travel Ltd,98189640,146,T&S UK - Accommodation
BEIS,UKRI - BBSRC,21/05/2018,T&S UK - Accommodation,FG - Estates,Redfern Travel Ltd,98189640,0.5,T&S UK - Accommodation
BEIS,UKRI - BBSRC,21/05/2018,T&S UK - Accommodation,FG - Estates,Redfern Travel Ltd,98189640,62.88,T&S UK - Accommodation
BEIS,UKRI - BBSRC,21/05/2018,T&S UK - Accommodation,FG - Estates,Redfern Travel Ltd,98189640,0.5,T&S UK - Accommodation
BEIS,UKRI - BBSRC,21/05/2018,T&S UK - Accommodation,FG - Estates,Redfern Travel Ltd,98189640,79.3,T&S UK - Accommodation
BEIS,UKRI - BBSRC,21/05/2018,T&S UK - Accommodation,FG - Estates,Redfern Travel Ltd,98189640,0.5,T&S UK - Accommodation
BEIS,UKRI - BBSRC,21/05/2018,T&S UK - Accommodation,FG - Estates,Redfern Travel Ltd,98189640,204,T&S UK - Accommodation
BEIS,UKRI - BBSRC,21/05/2018,T&S UK - Accommodation,FG - Estates,Redfern Travel Ltd,98189640,0.5,T&S UK - Accommodation
BEIS,UKRI - BBSRC,21/05/2018,T&S UK - Accommodation,FG - Estates,Redfern Travel Ltd,98189640,62.88,T&S UK - Accommodation
BEIS,UKRI - BBSRC,21/05/2018,T&S UK - Accommodation,FG - Estates,Redfern Travel Ltd,98189640,0.1,T&S UK - Accommodation
BEIS,UKRI - BBSRC,21/05/2018,T&S UK - Accommodation,FG - Estates,Redfern Travel Ltd,98189640,1,T&S UK - Accommodation
BEIS,UKRI - BBSRC,21/05/2018,T&S UK - Accommodation,FG - RCUK Assurance,Redfern Travel Ltd,98189640,0.5,T&S UK - Accommodation
BEIS,UKRI - BBSRC,21/05/2018,T&S UK - Accommodation,FG - RCUK Assurance,Redfern Travel Ltd,98189640,240,T&S UK - Accommodation
BEIS,UKRI - BBSRC,21/05/2018,T&S UK - Accommodation,FG - RCUK Assurance,Redfern Travel Ltd,98189640,0.5,T&S UK - Accommodation
BEIS,UKRI - BBSRC,21/05/2018,T&S UK - Accommodation,FG - RCUK Assurance,Redfern Travel Ltd,98189640,240,T&S UK - Accommodation
BEIS,UKRI - BBSRC,21/05/2018,T&S UK - Accommodation,FG - RCUK Assurance,Redfern Travel Ltd,98189640,0.5,T&S UK - Accommodation
BEIS,UKRI - BBSRC,21/05/2018,T&S UK - Accommodation,FG - RCUK Assurance,Redfern Travel Ltd,98189640,78,T&S UK - Accommodation
BEIS,UKRI - BBSRC,21/05/2018,T&S UK - Accommodation,FG - RCUK Assurance,Redfern Travel Ltd,98189640,0.5,T&S UK - Accommodation
BEIS,UKRI - BBSRC,21/05/2018,T&S UK - Accommodation,FG - RCUK Assurance,Redfern Travel Ltd,98189640,78,T&S UK - Accommodation
BEIS,UKRI - BBSRC,21/05/2018,T&S UK - Accommodation,FG - RCUK Assurance,Redfern Travel Ltd,98189640,0.4,T&S UK - Accommodation
BEIS,UKRI - BBSRC,21/05/2018,T&S UK - Accommodation,Innovation and Skills Group,Redfern Travel Ltd,98189640,0.5,T&S UK - Accommodation
BEIS,UKRI - BBSRC,21/05/2018,T&S UK - Accommodation,Innovation and Skills Group,Redfern Travel Ltd,98189640,69,T&S UK - Accommodation
BEIS,UKRI - BBSRC,21/05/2018,T&S UK - Accommodation,Innovation and Skills Group,Redfern Travel Ltd,98189640,0.5,T&S UK - Accommodation
BEIS,UKRI - BBSRC,21/05/2018,T&S UK - Accommodation,Innovation and Skills Group,Redfern Travel Ltd,98189640,0.5,T&S UK - Accommodation
BEIS,UKRI - BBSRC,21/05/2018,T&S UK - Accommodation,Innovation and Skills Group,Redfern Travel Ltd,98189640,0.5,T&S UK - Accommodation
BEIS,UKRI - BBSRC,21/05/2018,T&S UK - Accommodation,Innovation and Skills Group,Redfern Travel Ltd,98189640,124,T&S UK - Accommodation
BEIS,UKRI - BBSRC,21/05/2018,T&S UK - Accommodation,Innovation and Skills Group,Redfern Travel Ltd,98189640,0.5,T&S UK - Accommodation
BEIS,UKRI - BBSRC,21/05/2018,T&S UK - Accommodation,Innovation and Skills Group,Redfern Travel Ltd,98189640,212,T&S UK - Accommodation
BEIS,UKRI - BBSRC,21/05/2018,T&S UK - Accommodation,Innovation and Skills Group,Redfern Travel Ltd,98189640,0.5,T&S UK - Accommodation
BEIS,UKRI - BBSRC,21/05/2018,T&S UK - Accommodation,Innovation and Skills Group,Redfern Travel Ltd,98189640,150,T&S UK - Accommodation
BEIS,UKRI - BBSRC,21/05/2018,T&S UK - Accommodation,Innovation and Skills Group,Redfern Travel Ltd,98189640,0.5,T&S UK - Accommodation
BEIS,UKRI - BBSRC,21/05/2018,T&S UK - Accommodation,Innovation and Skills Group,Redfern Travel Ltd,98189640,85,T&S UK - Accommodation
BEIS,UKRI - BBSRC,21/05/2018,T&S UK - Accommodation,Innovation and Skills Group,Redfern Travel Ltd,98189640,0.7,T&S UK - Accommodation
BEIS,UKRI - BBSRC,21/05/2018,T&S UK - Accommodation,Innovation and Skills Group CDSU,Redfern Travel Ltd,98189640,0.5,T&S UK - Accommodation
BEIS,UKRI - BBSRC,21/05/2018,T&S UK - Accommodation,Innovation and Skills Group CDSU,Redfern Travel Ltd,98189640,140,T&S UK - Accommodation
BEIS,UKRI - BBSRC,21/05/2018,T&S UK - Accommodation,Innovation and Skills Group CDSU,Redfern Travel Ltd,98189640,0.5,T&S UK - Accommodation
BEIS,UKRI - BBSRC,21/05/2018,T&S UK - Accommodation,Innovation and Skills Group CDSU,Redfern Travel Ltd,98189640,140,T&S UK - Accommodation
BEIS,UKRI - BBSRC,21/05/2018,T&S UK - Accommodation,Innovation and Skills Group CDSU,Redfern Travel Ltd,98189640,0.5,T&S UK - Accommodation
BEIS,UKRI - BBSRC,21/05/2018,T&S UK - Accommodation,Innovation and Skills Group CDSU,Redfern Travel Ltd,98189640,0.3,T&S UK - Accommodation
BEIS,UKRI - BBSRC,21/05/2018,T&S UK - Accommodation,RISD - UKRO,Redfern Travel Ltd,98189640,0.5,T&S UK - Accommodation
BEIS,UKRI - BBSRC,21/05/2018,T&S UK - Accommodation,RISD - UKRO,Redfern Travel Ltd,98189640,74,T&S UK - Accommodation
BEIS,UKRI - BBSRC,21/05/2018,T&S UK - Accommodation,RISD - UKRO,Redfern Travel Ltd,98189640,0.5,T&S UK - Accommodation
BEIS,UKRI - BBSRC,21/05/2018,T&S UK - Accommodation,RISD - UKRO,Redfern Travel Ltd,98189640,162.9,T&S UK - Accommodation
BEIS,UKRI - BBSRC,21/05/2018,T&S UK - Accommodation,RISD - UKRO,Redfern Travel Ltd,98189640,0.5,T&S UK - Accommodation
BEIS,UKRI - BBSRC,21/05/2018,T&S UK - Accommodation,RISD - UKRO,Redfern Travel Ltd,98189640,0.5,T&S UK - Accommodation
BEIS,UKRI - BBSRC,21/05/2018,T&S UK - Accommodation,RISD - UKRO,Redfern Travel Ltd,98189640,90,T&S UK - Accommodation
BEIS,UKRI - BBSRC,21/05/2018,T&S UK - Accommodation,RISD - UKRO,Redfern Travel Ltd,98189640,0.5,T&S UK - Accommodation
BEIS,UKRI - BBSRC,21/05/2018,T&S UK - Accommodation,RISD - UKRO,Redfern Travel Ltd,98189640,65,T&S UK - Accommodation
BEIS,UKRI - BBSRC,21/05/2018,T&S UK - Accommodation,RISD - UKRO,Redfern Travel Ltd,98189640,0.5,T&S UK - Accommodation
BEIS,UKRI - BBSRC,21/05/2018,T&S UK - Accommodation,RISD - UKRO,Redfern Travel Ltd,98189640,152,T&S UK - Accommodation
BEIS,UKRI - BBSRC,21/05/2018,T&S UK - Accommodation,RISD - UKRO,Redfern Travel Ltd,98189640,0.5,T&S UK - Accommodation
BEIS,UKRI - BBSRC,21/05/2018,T&S UK - Accommodation,RISD - UKRO,Redfern Travel Ltd,98189640,0.1,T&S UK - Accommodation
BEIS,UKRI - BBSRC,21/05/2018,T&S UK - Accommodation,Science Group,Redfern Travel Ltd,98189640,0.5,T&S UK - Accommodation
BEIS,UKRI - BBSRC,21/05/2018,T&S UK - Accommodation,Science Group,Redfern Travel Ltd,98189640,1.44,T&S UK - Accommodation
BEIS,UKRI - BBSRC,21/05/2018,T&S UK - Accommodation,Science Group,Redfern Travel Ltd,98189640,380,T&S UK - Accommodation
BEIS,UKRI - BBSRC,21/05/2018,T&S UK - Accommodation,Science Group,Redfern Travel Ltd,98189640,0.5,T&S UK - Accommodation
BEIS,UKRI - BBSRC,21/05/2018,T&S UK - Accommodation,Science Group,Redfern Travel Ltd,98189640,103.1,T&S UK - Accommodation
BEIS,UKRI - BBSRC,21/05/2018,T&S UK - Accommodation,Science Group,Redfern Travel Ltd,98189640,0.5,T&S UK - Accommodation
BEIS,UKRI - BBSRC,21/05/2018,T&S UK - Accommodation,Science Group,Redfern Travel Ltd,98189640,208,T&S UK - Accommodation
BEIS,UKRI - BBSRC,21/05/2018,T&S UK - Accommodation,Science Group,Redfern Travel Ltd,98189640,0.5,T&S UK - Accommodation
BEIS,UKRI - BBSRC,21/05/2018,T&S UK - Accommodation,Science Group,Redfern Travel Ltd,98189640,208,T&S UK - Accommodation
BEIS,UKRI - BBSRC,21/05/2018,T&S UK - Accommodation,Science Group,Redfern Travel Ltd,98189640,0.5,T&S UK - Accommodation
BEIS,UKRI - BBSRC,21/05/2018,T&S UK - Accommodation,Science Group,Redfern Travel Ltd,98189640,208,T&S UK - Accommodation
BEIS,UKRI - BBSRC,21/05/2018,T&S UK - Accommodation,Science Group,Redfern Travel Ltd,98189640,0.5,T&S UK - Accommodation
BEIS,UKRI - BBSRC,21/05/2018,T&S UK - Accommodation,Science Group,Redfern Travel Ltd,98189640,65.72,T&S UK - Accommodation
BEIS,UKRI - BBSRC,21/05/2018,T&S UK - Accommodation,Science Group,Redfern Travel Ltd,98189640,0.5,T&S UK - Accommodation
BEIS,UKRI - BBSRC,21/05/2018,T&S UK - Accommodation,Science Group,Redfern Travel Ltd,98189640,96,T&S UK - Accommodation
BEIS,UKRI - BBSRC,21/05/2018,T&S UK - Accommodation,Science Group,Redfern Travel Ltd,98189640,0.5,T&S UK - Accommodation
BEIS,UKRI - BBSRC,21/05/2018,T&S UK - Accommodation,Science Group,Redfern Travel Ltd,98189640,96,T&S UK - Accommodation
BEIS,UKRI - BBSRC,21/05/2018,T&S UK - Accommodation,Science Group,Redfern Travel Ltd,98189640,0.5,T&S UK - Accommodation
BEIS,UKRI - BBSRC,21/05/2018,T&S UK - Accommodation,Science Group,Redfern Travel Ltd,98189640,1.44,T&S UK - Accommodation
BEIS,UKRI - BBSRC,21/05/2018,T&S UK - Accommodation,Science Group,Redfern Travel Ltd,98189640,522,T&S UK - Accommodation
BEIS,UKRI - BBSRC,21/05/2018,T&S UK - Accommodation,Science Group,Redfern Travel Ltd,98189640,0.5,T&S UK - Accommodation
BEIS,UKRI - BBSRC,21/05/2018,T&S UK - Accommodation,Science Group,Redfern Travel Ltd,98189640,199,T&S UK - Accommodation
BEIS,UKRI - BBSRC,21/05/2018,T&S UK - Accommodation,Science Group,Redfern Travel Ltd,98189640,0.5,T&S UK - Accommodation
BEIS,UKRI - BBSRC,21/05/2018,T&S UK - Accommodation,Science Group,Redfern Travel Ltd,98189640,1.44,T&S UK - Accommodation
BEIS,UKRI - BBSRC,21/05/2018,T&S UK - Accommodation,Science Group,Redfern Travel Ltd,98189640,348,T&S UK - Accommodation
BEIS,UKRI - BBSRC,21/05/2018,T&S UK - Accommodation,Science Group,Redfern Travel Ltd,98189640,0.5,T&S UK - Accommodation
BEIS,UKRI - BBSRC,21/05/2018,T&S UK - Accommodation,Science Group,Redfern Travel Ltd,98189640,1.44,T&S UK - Accommodation
BEIS,UKRI - BBSRC,21/05/2018,T&S UK - Accommodation,Science Group,Redfern Travel Ltd,98189640,348,T&S UK - Accommodation
BEIS,UKRI - BBSRC,21/05/2018,T&S UK - Accommodation,Science Group,Redfern Travel Ltd,98189640,0.5,T&S UK - Accommodation
BEIS,UKRI - BBSRC,21/05/2018,T&S UK - Accommodation,Science Group,Redfern Travel Ltd,98189640,1.44,T&S UK - Accommodation
BEIS,UKRI - BBSRC,21/05/2018,T&S UK - Accommodation,Science Group,Redfern Travel Ltd,98189640,174,T&S UK - Accommodation
BEIS,UKRI - BBSRC,21/05/2018,T&S UK - Accommodation,Science Group,Redfern Travel Ltd,98189640,0.5,T&S UK - Accommodation
BEIS,UKRI - BBSRC,21/05/2018,T&S UK - Accommodation,Science Group,Redfern Travel Ltd,98189640,1.44,T&S UK - Accommodation
BEIS,UKRI - BBSRC,21/05/2018,T&S UK - Accommodation,Science Group,Redfern Travel Ltd,98189640,174,T&S UK - Accommodation
BEIS,UKRI - BBSRC,21/05/2018,T&S UK - Accommodation,Science Group,Redfern Travel Ltd,98189640,0.5,T&S UK - Accommodation
BEIS,UKRI - BBSRC,21/05/2018,T&S UK - Accommodation,Science Group,Redfern Travel Ltd,98189640,1.44,T&S UK - Accommodation
BEIS,UKRI - BBSRC,21/05/2018,T&S UK - Accommodation,Science Group,Redfern Travel Ltd,98189640,174,T&S UK - Accommodation
BEIS,UKRI - BBSRC,21/05/2018,T&S UK - Accommodation,Science Group,Redfern Travel Ltd,98189640,0.5,T&S UK - Accommodation
BEIS,UKRI - BBSRC,21/05/2018,T&S UK - Accommodation,Science Group,Redfern Travel Ltd,98189640,1.44,T&S UK - Accommodation
BEIS,UKRI - BBSRC,21/05/2018,T&S UK - Accommodation,Science Group,Redfern Travel Ltd,98189640,174,T&S UK - Accommodation
BEIS,UKRI - BBSRC,21/05/2018,T&S UK - Accommodation,Science Group,Redfern Travel Ltd,98189640,0.5,T&S UK - Accommodation
BEIS,UKRI - BBSRC,21/05/2018,T&S UK - Accommodation,Science Group,Redfern Travel Ltd,98189640,210,T&S UK - Accommodation
BEIS,UKRI - BBSRC,21/05/2018,T&S UK - Accommodation,Science Group,Redfern Travel Ltd,98189640,0.5,T&S UK - Accommodation
BEIS,UKRI - BBSRC,21/05/2018,T&S UK - Accommodation,Science Group,Redfern Travel Ltd,98189640,198,T&S UK - Accommodation
BEIS,UKRI - BBSRC,21/05/2018,T&S UK - Accommodation,Science Group,Redfern Travel Ltd,98189640,0.5,T&S UK - Accommodation
BEIS,UKRI - BBSRC,21/05/2018,T&S UK - Accommodation,Science Group,Redfern Travel Ltd,98189640,198,T&S UK - Accommodation
BEIS,UKRI - BBSRC,21/05/2018,T&S UK - Accommodation,Science Group,Redfern Travel Ltd,98189640,0.5,T&S UK - Accommodation
BEIS,UKRI - BBSRC,21/05/2018,T&S UK - Accommodation,Science Group,Redfern Travel Ltd,98189640,198,T&S UK - Accommodation
BEIS,UKRI - BBSRC,21/05/2018,T&S UK - Accommodation,Science Group,Redfern Travel Ltd,98189640,0.5,T&S UK - Accommodation
BEIS,UKRI - BBSRC,21/05/2018,T&S UK - Accommodation,Science Group,Redfern Travel Ltd,98189640,198,T&S UK - Accommodation
BEIS,UKRI - BBSRC,21/05/2018,T&S UK - Accommodation,Science Group,Redfern Travel Ltd,98189640,0.5,T&S UK - Accommodation
BEIS,UKRI - BBSRC,21/05/2018,T&S UK - Accommodation,Science Group,Redfern Travel Ltd,98189640,198,T&S UK - Accommodation
BEIS,UKRI - BBSRC,21/05/2018,T&S UK - Accommodation,Science Group,Redfern Travel Ltd,98189640,0.5,T&S UK - Accommodation
BEIS,UKRI - BBSRC,21/05/2018,T&S UK - Accommodation,Science Group,Redfern Travel Ltd,98189640,198,T&S UK - Accommodation
BEIS,UKRI - BBSRC,21/05/2018,T&S UK - Accommodation,Science Group,Redfern Travel Ltd,98189640,0.5,T&S UK - Accommodation
BEIS,UKRI - BBSRC,21/05/2018,T&S UK - Accommodation,Science Group,Redfern Travel Ltd,98189640,167,T&S UK - Accommodation
BEIS,UKRI - BBSRC,21/05/2018,T&S UK - Accommodation,Science Group,Redfern Travel Ltd,98189640,0.5,T&S UK - Accommodation
BEIS,UKRI - BBSRC,21/05/2018,T&S UK - Accommodation,Science Group,Redfern Travel Ltd,98189640,99,T&S UK - Accommodation
BEIS,UKRI - BBSRC,21/05/2018,T&S UK - Accommodation,Science Group,Redfern Travel Ltd,98189640,0.5,T&S UK - Accommodation
BEIS,UKRI - BBSRC,21/05/2018,T&S UK - Accommodation,Science Group,Redfern Travel Ltd,98189640,95.99,T&S UK - Accommodation
BEIS,UKRI - BBSRC,21/05/2018,T&S UK - Accommodation,Science Group,Redfern Travel Ltd,98189640,0.5,T&S UK - Accommodation
BEIS,UKRI - BBSRC,21/05/2018,T&S UK - Accommodation,Science Group,Redfern Travel Ltd,98189640,75,T&S UK - Accommodation
BEIS,UKRI - BBSRC,21/05/2018,T&S UK - Accommodation,Science Group,Redfern Travel Ltd,98189640,0.5,T&S UK - Accommodation
BEIS,UKRI - BBSRC,21/05/2018,T&S UK - Accommodation,Science Group,Redfern Travel Ltd,98189640,198,T&S UK - Accommodation
BEIS,UKRI - BBSRC,21/05/2018,T&S UK - Accommodation,Science Group,Redfern Travel Ltd,98189640,0.2,T&S UK - Accommodation
BEIS,UKRI - BBSRC,21/05/2018,T&S UK - Accommodation,Science Group,Redfern Travel Ltd,98189640,0.2,T&S UK - Accommodation
BEIS,UKRI - BBSRC,21/05/2018,T&S UK - Accommodation,Science Group,Redfern Travel Ltd,98189640,0.59,T&S UK - Accommodation
BEIS,UKRI - BBSRC,21/05/2018,T&S UK - Accommodation,Science Group,Redfern Travel Ltd,98189640,4.13,T&S UK - Accommodation
BEIS,UKRI - BBSRC,21/05/2018,T&S UK - Accommodation,Science Group - Delivery Function,Redfern Travel Ltd,98189640,0.5,T&S UK - Accommodation
BEIS,UKRI - BBSRC,21/05/2018,T&S UK - Accommodation,Science Group - Delivery Function,Redfern Travel Ltd,98189640,48,T&S UK - Accommodation
BEIS,UKRI - BBSRC,21/05/2018,T&S UK - Accommodation,Science Group - Delivery Function,Redfern Travel Ltd,98189640,0.5,T&S UK - Accommodation
BEIS,UKRI - BBSRC,21/05/2018,T&S UK - Accommodation,Science Group - Delivery Function,Redfern Travel Ltd,98189640,1.44,T&S UK - Accommodation
BEIS,UKRI - BBSRC,21/05/2018,T&S UK - Accommodation,Science Group - Delivery Function,Redfern Travel Ltd,98189640,94,T&S UK - Accommodation
BEIS,UKRI - BBSRC,21/05/2018,T&S UK - Accommodation,Science Group - Delivery Function,Redfern Travel Ltd,98189640,0.1,T&S UK - Accommodation
BEIS,UKRI - BBSRC,21/05/2018,T&S UK - Accommodation,Science Group - Delivery Function,Redfern Travel Ltd,98189640,0.39,T&S UK - Accommodation
BEIS,UKRI - BBSRC,21/05/2018,T&S UK - Flights,CE - Chief Executive,Redfern Travel Ltd,98189640,93.7,T&S UK - Flights
BEIS,UKRI - BBSRC,21/05/2018,T&S UK - Flights,CIMG - External Relations,Redfern Travel Ltd,98189640,73.94,T&S UK - Flights
BEIS,UKRI - BBSRC,21/05/2018,T&S UK - Flights,CIMG - External Relations,Redfern Travel Ltd,98189640,99.3,T&S UK - Flights
BEIS,UKRI - BBSRC,21/05/2018,T&S UK - Flights,FG - Director,Redfern Travel Ltd,98189640,55.31,T&S UK - Flights
BEIS,UKRI - BBSRC,21/05/2018,T&S UK - Flights,FG - Director,Redfern Travel Ltd,98189640,55.31,T&S UK - Flights
BEIS,UKRI - BBSRC,21/05/2018,T&S UK - Flights,FG - Director,Redfern Travel Ltd,98189640,55.31,T&S UK - Flights
BEIS,UKRI - BBSRC,21/05/2018,T&S UK - Flights,FG - Director,Redfern Travel Ltd,98189640,55.31,T&S UK - Flights
BEIS,UKRI - BBSRC,21/05/2018,T&S UK - Flights,FG - Director,Redfern Travel Ltd,98189640,55.31,T&S UK - Flights
BEIS,UKRI - BBSRC,21/05/2018,T&S UK - Flights,FG - Director,Redfern Travel Ltd,98189640,85.59,T&S UK - Flights
BEIS,UKRI - BBSRC,21/05/2018,T&S UK - Flights,FG - Director,Redfern Travel Ltd,98189640,85.59,T&S UK - Flights
BEIS,UKRI - BBSRC,21/05/2018,T&S UK - Flights,FG - Director,Redfern Travel Ltd,98189640,85.59,T&S UK - Flights
BEIS,UKRI - BBSRC,21/05/2018,T&S UK - Flights,FG - Director,Redfern Travel Ltd,98189640,85.59,T&S UK - Flights
BEIS,UKRI - BBSRC,21/05/2018,T&S UK - Flights,FG - Director,Redfern Travel Ltd,98189640,85.59,T&S UK - Flights
BEIS,UKRI - BBSRC,21/05/2018,T&S UK - Flights,FG - Estates,Redfern Travel Ltd,98189640,48.29,T&S UK - Flights
BEIS,UKRI - BBSRC,21/05/2018,T&S UK - Flights,FG - Estates,Redfern Travel Ltd,98189640,87.94,T&S UK - Flights
BEIS,UKRI - BBSRC,21/05/2018,T&S UK - Flights,Innovation and Skills Group,Redfern Travel Ltd,98189640,42.23,T&S UK - Flights
BEIS,UKRI - BBSRC,21/05/2018,T&S UK - Flights,Innovation and Skills Group,Redfern Travel Ltd,98189640,61.42,T&S UK - Flights
BEIS,UKRI - BBSRC,21/05/2018,T&S UK - Flights,Innovation and Skills Group,Redfern Travel Ltd,98189640,83.64,T&S UK - Flights
BEIS,UKRI - BBSRC,21/05/2018,T&S UK - Flights,Innovation and Skills Group,Redfern Travel Ltd,98189640,22.16,T&S UK - Flights
BEIS,UKRI - BBSRC,21/05/2018,T&S UK - Flights,Innovation and Skills Group,Redfern Travel Ltd,98189640,124.3,T&S UK - Flights
BEIS,UKRI - BBSRC,21/05/2018,T&S UK - Flights,Innovation and Skills Group,Redfern Travel Ltd,98189640,73.94,T&S UK - Flights
BEIS,UKRI - BBSRC,21/05/2018,T&S UK - Flights,Science Group,Redfern Travel Ltd,98189640,215,T&S UK - Flights
BEIS,UKRI - BBSRC,21/05/2018,T&S UK - Flights,Science Group,Redfern Travel Ltd,98189640,145.21,T&S UK - Flights
BEIS,UKRI - BBSRC,21/05/2018,T&S UK - Flights,Science Group,Redfern Travel Ltd,98189640,37,T&S UK - Flights
BEIS,UKRI - BBSRC,21/05/2018,T&S UK - Flights,Science Group,Redfern Travel Ltd,98189640,232.3,T&S UK - Flights
BEIS,UKRI - BBSRC,21/05/2018,T&S UK - Flights,Science Group,Redfern Travel Ltd,98189640,42.23,T&S UK - Flights
BEIS,UKRI - BBSRC,21/05/2018,T&S UK - Flights,Science Group,Redfern Travel Ltd,98189640,67.44,T&S UK - Flights
BEIS,UKRI - BBSRC,21/05/2018,T&S UK - Public Transport,CE - IRU,Corporate Airport Transfers,98188784,224.88,T&S UK - Public Transport
BEIS,UKRI - BBSRC,21/05/2018,T&S UK - Public Transport,Innovation and Skills Group,Unspecified,98189075,17.8,T&S UK - Public Transport
BEIS,UKRI - BBSRC,21/05/2018,T&S UK - Public Transport,CE - CPS,Redfern Travel Ltd,98189640,100.7,T&S UK - Public Transport
BEIS,UKRI - BBSRC,21/05/2018,T&S UK - Public Transport,CE - CPS,Redfern Travel Ltd,98189640,-122.6,T&S UK - Public Transport
BEIS,UKRI - BBSRC,21/05/2018,T&S UK - Public Transport,CE - CPS,Redfern Travel Ltd,98189640,46.1,T&S UK - Public Transport
BEIS,UKRI - BBSRC,21/05/2018,T&S UK - Public Transport,CE - CPS,Redfern Travel Ltd,98189640,100.7,T&S UK - Public Transport
BEIS,UKRI - BBSRC,21/05/2018,T&S UK - Public Transport,CE - CPS,Redfern Travel Ltd,98189640,14.7,T&S UK - Public Transport
BEIS,UKRI - BBSRC,21/05/2018,T&S UK - Public Transport,CE - CPS,Redfern Travel Ltd,98189640,32.8,T&S UK - Public Transport
BEIS,UKRI - BBSRC,21/05/2018,T&S UK - Public Transport,CE - CPS,Redfern Travel Ltd,98189640,11.6,T&S UK - Public Transport
BEIS,UKRI - BBSRC,21/05/2018,T&S UK - Public Transport,CE - CPS,Redfern Travel Ltd,98189640,92.15,T&S UK - Public Transport
BEIS,UKRI - BBSRC,21/05/2018,T&S UK - Public Transport,CE - CPS,Redfern Travel Ltd,98189640,139.6,T&S UK - Public Transport
BEIS,UKRI - BBSRC,21/05/2018,T&S UK - Public Transport,CE - CPS,Redfern Travel Ltd,98189640,56.4,T&S UK - Public Transport
BEIS,UKRI - BBSRC,21/05/2018,T&S UK - Public Transport,CE - CPS,Redfern Travel Ltd,98189640,129.8,T&S UK - Public Transport
BEIS,UKRI - BBSRC,21/05/2018,T&S UK - Public Transport,CE - Chief Executive,Redfern Travel Ltd,98189640,139.6,T&S UK - Public Transport
BEIS,UKRI - BBSRC,21/05/2018,T&S UK - Public Transport,CE - Chief Executive,Redfern Travel Ltd,98189640,46.8,T&S UK - Public Transport
BEIS,UKRI - BBSRC,21/05/2018,T&S UK - Public Transport,CE - Chief Executive,Redfern Travel Ltd,98189640,70.6,T&S UK - Public Transport
BEIS,UKRI - BBSRC,21/05/2018,T&S UK - Public Transport,CE - Chief Executive,Redfern Travel Ltd,98189640,139.6,T&S UK - Public Transport
BEIS,UKRI - BBSRC,21/05/2018,T&S UK - Public Transport,CE - Chief Executive,Redfern Travel Ltd,98189640,32.6,T&S UK - Public Transport
BEIS,UKRI - BBSRC,21/05/2018,T&S UK - Public Transport,CE - Chief Executive,Redfern Travel Ltd,98189640,86,T&S UK - Public Transport
BEIS,UKRI - BBSRC,21/05/2018,T&S UK - Public Transport,CE - Chief Executive,Redfern Travel Ltd,98189640,-209.9,T&S UK - Public Transport
BEIS,UKRI - BBSRC,21/05/2018,T&S UK - Public Transport,CE - Chief Executive,Redfern Travel Ltd,98189640,48.6,T&S UK - Public Transport
BEIS,UKRI - BBSRC,21/05/2018,T&S UK - Public Transport,CE - Chief Executive,Redfern Travel Ltd,98189640,172,T&S UK - Public Transport
BEIS,UKRI - BBSRC,21/05/2018,T&S UK - Public Transport,CE - Chief Executive,Redfern Travel Ltd,98189640,172,T&S UK - Public Transport
BEIS,UKRI - BBSRC,21/05/2018,T&S UK - Public Transport,CE - Chief Executive,Redfern Travel Ltd,98189640,31.5,T&S UK - Public Transport
BEIS,UKRI - BBSRC,21/05/2018,T&S UK - Public Transport,CE - Chief Executive,Redfern Travel Ltd,98189640,30.9,T&S UK - Public Transport
BEIS,UKRI - BBSRC,21/05/2018,T&S UK - Public Transport,CE - Chief Executive,Redfern Travel Ltd,98189640,86,T&S UK - Public Transport
BEIS,UKRI - BBSRC,21/05/2018,T&S UK - Public Transport,CE - Chief Executive,Redfern Travel Ltd,98189640,100.7,T&S UK - Public Transport
BEIS,UKRI - BBSRC,21/05/2018,T&S UK - Public Transport,CE - Chief Executive,Redfern Travel Ltd,98189640,67.8,T&S UK - Public Transport
BEIS,UKRI - BBSRC,21/05/2018,T&S UK - Public Transport,CE - Chief Executive,Redfern Travel Ltd,98189640,172,T&S UK - Public Transport
BEIS,UKRI - BBSRC,21/05/2018,T&S UK - Public Transport,CE - Chief Executive,Redfern Travel Ltd,98189640,94.7,T&S UK - Public Transport
BEIS,UKRI - BBSRC,21/05/2018,T&S UK - Public Transport,CE - IRU,Redfern Travel Ltd,98189640,139.6,T&S UK - Public Transport
BEIS,UKRI - BBSRC,21/05/2018,T&S UK - Public Transport,CE - IRU,Redfern Travel Ltd,98189640,139.6,T&S UK - Public Transport
BEIS,UKRI - BBSRC,21/05/2018,T&S UK - Public Transport,CE - IRU,Redfern Travel Ltd,98189640,-26.6,T&S UK - Public Transport
BEIS,UKRI - BBSRC,21/05/2018,T&S UK - Public Transport,CE - IRU,Redfern Travel Ltd,98189640,-20.2,T&S UK - Public Transport
BEIS,UKRI - BBSRC,21/05/2018,T&S UK - Public Transport,CE - IRU,Redfern Travel Ltd,98189640,111,T&S UK - Public Transport
BEIS,UKRI - BBSRC,21/05/2018,T&S UK - Public Transport,CE - IRU,Redfern Travel Ltd,98189640,100.7,T&S UK - Public Transport
BEIS,UKRI - BBSRC,21/05/2018,T&S UK - Public Transport,CE - IRU,Redfern Travel Ltd,98189640,72.1,T&S UK - Public Transport
BEIS,UKRI - BBSRC,21/05/2018,T&S UK - Public Transport,CE - IRU,Redfern Travel Ltd,98189640,88.2,T&S UK - Public Transport
BEIS,UKRI - BBSRC,21/05/2018,T&S UK - Public Transport,CE - IRU,Redfern Travel Ltd,98189640,66.25,T&S UK - Public Transport
BEIS,UKRI - BBSRC,21/05/2018,T&S UK - Public Transport,CE - IRU,Redfern Travel Ltd,98189640,100.7,T&S UK - Public Transport
BEIS,UKRI - BBSRC,21/05/2018,T&S UK - Public Transport,CE - IRU,Redfern Travel Ltd,98189640,67.8,T&S UK - Public Transport
BEIS,UKRI - BBSRC,21/05/2018,T&S UK - Public Transport,CE - IRU,Redfern Travel Ltd,98189640,16,T&S UK - Public Transport
BEIS,UKRI - BBSRC,21/05/2018,T&S UK - Public Transport,CE - IRU,Redfern Travel Ltd,98189640,61.8,T&S UK - Public Transport
BEIS,UKRI - BBSRC,21/05/2018,T&S UK - Public Transport,CE - IRU,Redfern Travel Ltd,98189640,61.8,T&S UK - Public Transport
BEIS,UKRI - BBSRC,21/05/2018,T&S UK - Public Transport,CE - IRU,Redfern Travel Ltd,98189640,-155,T&S UK - Public Transport
BEIS,UKRI - BBSRC,21/05/2018,T&S UK - Public Transport,CE - IRU,Redfern Travel Ltd,98189640,52.9,T&S UK - Public Transport
BEIS,UKRI - BBSRC,21/05/2018,T&S UK - Public Transport,CE - IRU,Redfern Travel Ltd,98189640,-47.9,T&S UK - Public Transport
BEIS,UKRI - BBSRC,21/05/2018,T&S UK - Public Transport,CIMG - External Relations,Redfern Travel Ltd,98189640,66.45,T&S UK - Public Transport
BEIS,UKRI - BBSRC,21/05/2018,T&S UK - Public Transport,CIMG - External Relations,Redfern Travel Ltd,98189640,100.7,T&S UK - Public Transport
BEIS,UKRI - BBSRC,21/05/2018,T&S UK - Public Transport,CIMG - External Relations,Redfern Travel Ltd,98189640,61.8,T&S UK - Public Transport
BEIS,UKRI - BBSRC,21/05/2018,T&S UK - Public Transport,CIMG - External Relations,Redfern Travel Ltd,98189640,61.8,T&S UK - Public Transport
BEIS,UKRI - BBSRC,21/05/2018,T&S UK - Public Transport,CIMG - External Relations,Redfern Travel Ltd,98189640,52.6,T&S UK - Public Transport
BEIS,UKRI - BBSRC,21/05/2018,T&S UK - Public Transport,CIMG - External Relations,Redfern Travel Ltd,98189640,111,T&S UK - Public Transport
BEIS,UKRI - BBSRC,21/05/2018,T&S UK - Public Transport,CIMG - External Relations,Redfern Travel Ltd,98189640,73.25,T&S UK - Public Transport
BEIS,UKRI - BBSRC,21/05/2018,T&S UK - Public Transport,CIMG - External Relations,Redfern Travel Ltd,98189640,-58.2,T&S UK - Public Transport
BEIS,UKRI - BBSRC,21/05/2018,T&S UK - Public Transport,CIMG - External Relations,Redfern Travel Ltd,98189640,155,T&S UK - Public Transport
BEIS,UKRI - BBSRC,21/05/2018,T&S UK - Public Transport,CIMG - External Relations,Redfern Travel Ltd,98189640,14.4,T&S UK - Public Transport
BEIS,UKRI - BBSRC,21/05/2018,T&S UK - Public Transport,CIMG - External Relations,Redfern Travel Ltd,98189640,139.6,T&S UK - Public Transport
BEIS,UKRI - BBSRC,21/05/2018,T&S UK - Public Transport,CIMG - Information Management,Redfern Travel Ltd,98189640,68.5,T&S UK - Public Transport
BEIS,UKRI - BBSRC,21/05/2018,T&S UK - Public Transport,CIMG - Information Systems,Redfern Travel Ltd,98189640,52.6,T&S UK - Public Transport
BEIS,UKRI - BBSRC,21/05/2018,T&S UK - Public Transport,CIMG - Information Systems,Redfern Travel Ltd,98189640,100.7,T&S UK - Public Transport
BEIS,UKRI - BBSRC,21/05/2018,T&S UK - Public Transport,CIMG - Information Systems,Redfern Travel Ltd,98189640,62.5,T&S UK - Public Transport
BEIS,UKRI - BBSRC,21/05/2018,T&S UK - Public Transport,CIMG - Information Systems,Redfern Travel Ltd,98189640,9.8,T&S UK - Public Transport
BEIS,UKRI - BBSRC,21/05/2018,T&S UK - Public Transport,CIMG - Programme Office,Redfern Travel Ltd,98189640,100.7,T&S UK - Public Transport
BEIS,UKRI - BBSRC,21/05/2018,T&S UK - Public Transport,CIMG - Programme Office,Redfern Travel Ltd,98189640,100.7,T&S UK - Public Transport
BEIS,UKRI - BBSRC,21/05/2018,T&S UK - Public Transport,CIMG - Programme Office,Redfern Travel Ltd,98189640,111,T&S UK - Public Transport
BEIS,UKRI - BBSRC,21/05/2018,T&S UK - Public Transport,CIMG - Programme Office,Redfern Travel Ltd,98189640,100.7,T&S UK - Public Transport
BEIS,UKRI - BBSRC,21/05/2018,T&S UK - Public Transport,European Initiatives,Redfern Travel Ltd,98189640,2.16,T&S UK - Public Transport
BEIS,UKRI - BBSRC,21/05/2018,T&S UK - Public Transport,European Initiatives,Redfern Travel Ltd,98189640,52.41,T&S UK - Public Transport
BEIS,UKRI - BBSRC,21/05/2018,T&S UK - Public Transport,European Initiatives,Redfern Travel Ltd,98189640,2.16,T&S UK - Public Transport
BEIS,UKRI - BBSRC,21/05/2018,T&S UK - Public Transport,European Initiatives,Redfern Travel Ltd,98189640,34.81,T&S UK - Public Transport
BEIS,UKRI - BBSRC,21/05/2018,T&S UK - Public Transport,European Initiatives,Redfern Travel Ltd,98189640,11.5,T&S UK - Public Transport
BEIS,UKRI - BBSRC,21/05/2018,T&S UK - Public Transport,European Initiatives,Redfern Travel Ltd,98189640,160.7,T&S UK - Public Transport
BEIS,UKRI - BBSRC,21/05/2018,T&S UK - Public Transport,FG - Accounts & Business Planning,Redfern Travel Ltd,98189640,41.2,T&S UK - Public Transport
BEIS,UKRI - BBSRC,21/05/2018,T&S UK - Public Transport,FG - Accounts & Business Planning,Redfern Travel Ltd,98189640,41.2,T&S UK - Public Transport
BEIS,UKRI - BBSRC,21/05/2018,T&S UK - Public Transport,FG - Accounts & Business Planning,Redfern Travel Ltd,98189640,41.2,T&S UK - Public Transport
BEIS,UKRI - BBSRC,21/05/2018,T&S UK - Public Transport,FG - Accounts & Business Planning,Redfern Travel Ltd,98189640,108.7,T&S UK - Public Transport
BEIS,UKRI - BBSRC,21/05/2018,T&S UK - Public Transport,FG - Accounts & Business Planning,Redfern Travel Ltd,98189640,51.6,T&S UK - Public Transport
BEIS,UKRI - BBSRC,21/05/2018,T&S UK - Public Transport,FG - Accounts & Business Planning,Redfern Travel Ltd,98189640,74.8,T&S UK - Public Transport
BEIS,UKRI - BBSRC,21/05/2018,T&S UK - Public Transport,FG - Director,Redfern Travel Ltd,98189640,196.8,T&S UK - Public Transport
BEIS,UKRI - BBSRC,21/05/2018,T&S UK - Public Transport,FG - Director,Redfern Travel Ltd,98189640,196.8,T&S UK - Public Transport
BEIS,UKRI - BBSRC,21/05/2018,T&S UK - Public Transport,FG - Director,Redfern Travel Ltd,98189640,1,T&S UK - Public Transport
BEIS,UKRI - BBSRC,21/05/2018,T&S UK - Public Transport,FG - Director,Redfern Travel Ltd,98189640,90.6,T&S UK - Public Transport
BEIS,UKRI - BBSRC,21/05/2018,T&S UK - Public Transport,FG - Director,Redfern Travel Ltd,98189640,186.6,T&S UK - Public Transport
BEIS,UKRI - BBSRC,21/05/2018,T&S UK - Public Transport,FG - Director,Redfern Travel Ltd,98189640,70.7,T&S UK - Public Transport
BEIS,UKRI - BBSRC,21/05/2018,T&S UK - Public Transport,FG - Director,Redfern Travel Ltd,98189640,45.6,T&S UK - Public Transport
BEIS,UKRI - BBSRC,21/05/2018,T&S UK - Public Transport,FG - Director,Redfern Travel Ltd,98189640,17.6,T&S UK - Public Transport
BEIS,UKRI - BBSRC,21/05/2018,T&S UK - Public Transport,FG - Director,Redfern Travel Ltd,98189640,91.2,T&S UK - Public Transport
BEIS,UKRI - BBSRC,21/05/2018,T&S UK - Public Transport,FG - Director,Redfern Travel Ltd,98189640,-103.8,T&S UK - Public Transport
BEIS,UKRI - BBSRC,21/05/2018,T&S UK - Public Transport,FG - Director,Redfern Travel Ltd,98189640,1,T&S UK - Public Transport
BEIS,UKRI - BBSRC,21/05/2018,T&S UK - Public Transport,FG - Director,Redfern Travel Ltd,98189640,91.2,T&S UK - Public Transport
BEIS,UKRI - BBSRC,21/05/2018,T&S UK - Public Transport,FG - Estates,Redfern Travel Ltd,98189640,-212.4,T&S UK - Public Transport
BEIS,UKRI - BBSRC,21/05/2018,T&S UK - Public Transport,FG - Estates,Redfern Travel Ltd,98189640,51.6,T&S UK - Public Transport
BEIS,UKRI - BBSRC,21/05/2018,T&S UK - Public Transport,FG - Estates,Redfern Travel Ltd,98189640,-35.7,T&S UK - Public Transport
BEIS,UKRI - BBSRC,21/05/2018,T&S UK - Public Transport,FG - Estates,Redfern Travel Ltd,98189640,105.7,T&S UK - Public Transport
BEIS,UKRI - BBSRC,21/05/2018,T&S UK - Public Transport,FG - Estates,Redfern Travel Ltd,98189640,217.4,T&S UK - Public Transport
